Workbook

Sheet III Liviano (hidden)
A3: Marca | B3: Proveedor | C3: Precio del Mantenimiento Preventivo | D3: Precio del Blindaje | E3: Pintura (10% del exterior del Vehículo) | F3: Adhesivos de emblemas (por metro cuadrado) | G3: Alarma | H3: Barra de luces, sistema de perifoneo y sirena | I3: Sistema de videovigilancia | J3: Dispositivo de localización vehicular AVL | K3: Gancho trasero de fijación | L3: Radioteléfono alto desempeño | M3: Radioteléfono sencillo | N3: Sensor de reversa | O3: Refuerzo de la suspensión | P3: Blindaje para el piso del Vehículo con materiales livianos, si las condiciones del Blindaje son diferentes a las del resto del Vehículo Blindado | Q3: Blindaje para el piso del Vehículo con materiales pesados, si las condiciones del Blindaje son diferentes a las del resto del Vehículo Blindado | R3: Deflector de artefactos explosivos | S3: Blindaje para el techo del Vehículo con materiales livianos, si las condiciones del Blindaje son diferentes a las del resto del Vehículo Blindado | T3: Blindaje para el techo del Vehículo con materiales pesados, si las condiciones del Blindaje son diferentes a las del resto del Vehículo Blindado | U3: Refuerzo del sistema de frenos | V3: Cuatro luces estroboscópicas para señalización controlada con una fuente de poder de mínimo 300 flashes por minuto, de operación manual o automática, instalados en las farolas y stop. | W3: Intercomunicador interior/exterior del Vehículo tipo manos libres | X3: Centradores de puertas | Y3: Protector metálico al carter | Z3: Pito o claxon bitono para prelación de vía con accionamiento en el volante, sirena y alto parlante | AA3: Luces tipo led de color rojo y azul en la parte delantera y trasera, que no afecten la estética ni el sistema eléctrico original | AB3: Prueba balística | AC3: Adaptación de los vidrios de la zona de carga para camperos o camionetas
A4: CHEVROLET | B4: AUTOMAYOR S.A. | C4: 25000000 | D4: 93000000 | E4: 0 | F4: 0 | G4: 0 | H4: 4000000 | I4: 3700000 | J4: 800000 | K4: 800000 | L4: 2800000 | M4: 2000000 | N4: 0 | O4: 0 | P4: 3900000 | Q4: 2900000 | R4: 3300000 | S4: 2000000 | T4: 1500000 | U4: 1800000 | V4: 800000 | W4: 1600000 | X4: 20000 | Y4: 500000 | Z4: 754000 | AA4: 1200000 | AB4: 0 | AC4: 150000
A5: TOYOTA | B5: UNIÓN TEMPORAL TOYONORTE LTDA. - ARMOR INTERNATIONAL DE COLOMBIA LTDA. | C5: 15500000 | D5: 97400000 | E5: 510000 | F5: 80000 | G5: 210000 | H5: 4920000 | I5: 1980000 | J5: 957000 | K5: 603200 | L5: 5450000 | M5: 2970000 | N5: 197200 | O5: 4640000 | P5: 0 | Q5: 4524000 | R5: 2408000 | S5: 0 | T5: 4756000 | U5: 0 | V5: 1150000 | W5: 1508000 | X5: 232000 | Y5: 0 | Z5: 0 | AA5: 980000 | AB5: 0 | AC5: 929160

Sheet III Pesado (hidden)
A4: Marca | B4: Proveedor | C4: Precio del Mantenimiento Preventivo | D4: Precio del Blindaje | E4: Pintura (10% del exterior del Vehículo) | F4: Adhesivos de emblemas (por metro cuadrado) | G4: Alarma | H4: Barra de luces, sistema de perifoneo y sirena | I4: Sistema de videovigilancia | J4: Dispositivo de localización vehicular AVL | K4: Gancho trasero de fijación | L4: Radioteléfono alto desempeño | M4: Radioteléfono sencillo | N4: Sensor de reversa | O4: Refuerzo de la suspensión | P4: Blindaje para el piso del Vehículo con materiales livianos, si las condiciones del Blindaje son diferentes a las del resto del Vehículo Blindado | Q4: Blindaje para el piso del Vehículo con materiales pesados, si las condiciones del Blindaje son diferentes a las del resto del Vehículo Blindado | R4: Deflector de artefactos explosivos | S4: Blindaje para el techo del Vehículo con materiales livianos, si las condiciones del Blindaje son diferentes a las del resto del Vehículo Blindado | T4: Blindaje para el techo del Vehículo con materiales pesados, si las condiciones del Blindaje son diferentes a las del resto del Vehículo Blindado | U4: Refuerzo del sistema de frenos | V4: Cuatro luces estroboscópicas para señalización controlada con una fuente de poder de mínimo 300 flashes por minuto, de operación manual o automática, instalados en las farolas y stop. | W4: Intercomunicador interior/exterior del Vehículo tipo manos libres | X4: Centradores de puertas | Y4: Protector metálico al carter | Z4: Pito o claxon bitono para prelación de vía con accionamiento en el volante, sirena y alto parlante | AA4: Luces tipo led de color rojo y azul en la parte delantera y trasera, que no afecten la estética ni el sistema eléctrico original | AB4: Prueba balística | AC4: Adaptación de los vidrios de la zona de carga para camperos o camionetas
A5: TOYOTA | B5: UNIÓN TEMPORAL TOYONORTE LTDA. - ARMOR INTERNATIONAL DE COLOMBIA LTDA. | C5: 15500000 | D5: 88160000 | E5: 510000 | F5: 80000 | G5: 210000 | H5: 4920000 | I5: 1980000 | J5: 957000 | K5: 603200 | L5: 5450000 | M5: 2970000 | N5: 197200 | O5: 4640000 | P5: 0 | Q5: 4524000 | R5: 2408000 | S5: 0 | T5: 4756000 | U5: 0 | V5: 1150000 | W5: 1508000 | X5: 232000 | Y5: 0 | Z5: 0 | AA5: 980000 | AB5: 0 | AC5: 929160

Sheet III A Liviano (hidden)
A4: Marca | B4: Proveedor | C4: Precio del Mantenimiento Preventivo | D4: Precio del Blindaje | E4: Pintura (10% del exterior del Vehículo) | F4: Adhesivos de emblemas (por metro cuadrado) | G4: Alarma | H4: Barra de luces, sistema de perifoneo y sirena | I4: Sistema de videovigilancia | J4: Dispositivo de localización vehicular AVL | K4: Gancho trasero de fijación | L4: Radioteléfono alto desempeño | M4: Radioteléfono sencillo | N4: Sensor de reversa | O4: Refuerzo de la suspensión | P4: Blindaje para el piso del Vehículo con materiales livianos, si las condiciones del Blindaje son diferentes a las del resto del Vehículo Blindado | Q4: Blindaje para el piso del Vehículo con materiales pesados, si las condiciones del Blindaje son diferentes a las del resto del Vehículo Blindado | R4: Deflector de artefactos explosivos | S4: Blindaje para el techo del Vehículo con materiales livianos, si las condiciones del Blindaje son diferentes a las del resto del Vehículo Blindado | T4: Blindaje para el techo del Vehículo con materiales pesados, si las condiciones del Blindaje son diferentes a las del resto del Vehículo Blindado | U4: Refuerzo del sistema de frenos | V4: Cuatro luces estroboscópicas para señalización controlada con una fuente de poder de mínimo 300 flashes por minuto, de operación manual o automática, instalados en las farolas y stop. | W4: Intercomunicador interior/exterior del Vehículo tipo manos libres | X4: Centradores de puertas | Y4: Protector metálico al carter | Z4: Pito o claxon bitono para prelación de vía con accionamiento en el volante, sirena y alto parlante | AA4: Luces tipo led de color rojo y azul en la parte delantera y trasera, que no afecten la estética ni el sistema eléctrico original | AB4: Prueba balística | AC4: Adaptación de los vidrios de la zona de carga para camperos o camionetas
A5: CHEVROLET | B5: AUTOMAYOR S.A. | C5: 25000000 | D5: 47600000 | E5: 0 | F5: 0 | G5: 0 | H5: 4000000 | I5: 3700000 | J5: 800000 | K5: 800000 | L5: 2800000 | M5: 2000000 | N5: 0 | O5: 700000 | P5: 0 | Q5: 0 | R5: 3300000 | S5: 0 | T5: 0 | U5: 1800000 | V5: 800000 | W5: 1600000 | X5: 20000 | Y5: 500000 | Z5: 754000 | AA5: 1200000 | AB5: 0 | AC5: 150000
A6: FORD | B6: UT-LOS COCHES-IBERPLAS-BLINDADOS | C6: 5500000 | D6: 37758000 | E6: 250000 | F6: 200000 | G6: 200000 | H6: 4756000 | I6: 7000000 | J6: 1160000 | K6: 950000 | L6: 2320000 | M6: 1570000 | N6: 175000 | O6: 4872000 | P6: 3500000 | Q6: 3050000 | R6: 4600000 | S6: 3050000 | T6: 1600000 | U6: 1500000 | V6: 1220000 | W6: 1220000 | X6: 185000 | Y6: 250000 | Z6: 600000 | AA6: 1160000 | AB6: 1322400 | AC6: 1100000
A7: RENAULT | B7: UT-LOS COCHES-IBERPLAS-BLINDADOS | C7: 5500000 | D7: 37758000 | E7: 250000 | F7: 200000 | G7: 200000 | H7: 4756000 | I7: 7000000 | J7: 1160000 | K7: 950000 | L7: 2320000 | M7: 1570000 | N7: 175000 | O7: 4872000 | P7: 3500000 | Q7: 3050000 | R7: 4600000 | S7: 3050000 | T7: 1600000 | U7: 1500000 | V7: 1220000 | W7: 1220000 | X7: 185000 | Y7: 250000 | Z7: 600000 | AA7: 1160000 | AB7: 1322400 | AC7: 1100000
A8: RENAULT | B8: UNION TEMPORAL VEHICULOS BLINDADOS MSA 2015 | C8: 4965850 | D8: 41147470 | E8: 580000 | F8: 371200 | G8: 169538.64 | H8: 4872000 | I8: 8978400 | J8: 1220677.28 | K8: 1000000.04 | L8: 2313371.76 | M8: 1508000 | N8: 298285.88 | O8: 2175000 | P8: 2028000 | Q8: 6090999 | R8: 8890000 | S8: 0 | T8: 0 | U8: 733000 | V8: 1020800 | W8: 591600 | X8: 313000 | Y8: 325000 | Z8: 1798000 | AA8: 951200 | AB8: 974400 | AC8: 0
A9: DODGE | B9: UT-LOS COCHES-IBERPLAS-BLINDADOS | C9: 7000000 | D9: 37758000 | E9: 250000 | F9: 200000 | G9: 200000 | H9: 4756000 | I9: 7000000 | J9: 1160000 | K9: 950000 | L9: 2320000 | M9: 1570000 | N9: 175000 | O9: 4872000 | P9: 3500000 | Q9: 3050000 | R9: 4600000 | S9: 3050000 | T9: 1600000 | U9: 1500000 | V9: 1220000 | W9: 1220000 | X9: 185000 | Y9: 250000 | Z9: 600000 | AA9: 1160000 | AB9: 1322400 | AC9: 1100000
A10: JEEP | B10: UT-LOS COCHES-IBERPLAS-BLINDADOS | C10: 7000000 | D10: 37758000 | E10: 250000 | F10: 200000 | G10: 200000 | H10: 4756000 | I10: 7000000 | J10: 1160000 | K10: 950000 | L10: 2320000 | M10: 1570000 | N10: 175000 | O10: 4872000 | P10: 3500000 | Q10: 3050000 | R10: 4600000 | S10: 3050000 | T10: 1600000 | U10: 1500000 | V10: 1220000 | W10: 1220000 | X10: 185000 | Y10: 250000 | Z10: 600000 | AA10: 1160000 | AB10: 1322400 | AC10: 1100000
A11: TOYOTA | B11: UNIÓN TEMPORAL TOYONORTE LTDA. - ARMOR INTERNATIONAL DE COLOMBIA LTDA. | C11: 15500000 | D11: 47560000 | E11: 510000 | F11: 80000 | G11: 210000 | H11: 4920000 | I11: 1980000 | J11: 957000 | K11: 603200 | L11: 5450000 | M11: 2970000 | N11: 197200 | O11: 0 | P11: 1276000 | Q11: 1218000 | R11: 2408000 | S11: 5916000 | T11: 2668000 | U11: 0 | V11: 1150000 | W11: 1508000 | X11: 232000 | Y11: 0 | Z11: 0 | AA11: 980000 | AB11: 0 | AC11: 603200
A12: VOLVO | B12: UT-LOS COCHES-IBERPLAS-BLINDADOS | C12: 18300000 | D12: 37758000 | E12: 250000 | F12: 200000 | G12: 200000 | H12: 4756000 | I12: 7000000 | J12: 1160000 | K12: 950000 | L12: 2320000 | M12: 1570000 | N12: 175000 | O12: 4872000 | P12: 3500000 | Q12: 3050000 | R12: 4600000 | S12: 3050000 | T12: 1600000 | U12: 1500000 | V12: 1220000 | W12: 1220000 | X12: 185000 | Y12: 250000 | Z12: 600000 | AA12: 1160000 | AB12: 1322400 | AC12: 1100000
A13: MITSUBISHI | B13: UNION TEMPORAL VEHICULOS BLINDADOS M&B | C13: 11900000 | D13: 44080000 | E13: 500000 | F13: 260000 | G13: 180000 | H13: 4200000 | I13: 8000000 | J13: 950000 | K13: 850000 | L13: 1995000 | M13: 1300000 | N13: 0 | O13: 650000 | P13: 2500000 | Q13: 1750000 | R13: 3100000 | S13: 3100000 | T13: 2170000 | U13: 390000 | V13: 880000 | W13: 1125000 | X13: 680000 | Y13: 320000 | Z13: 1100000 | AA13: 820000 | AB13: 600000 | AC13: 394000
A14: VOLKSWAGEN | B14: UT-LOS COCHES-IBERPLAS-BLINDADOS | C14: 8300000 | D14: 37758000 | E14: 250000 | F14: 200000 | G14: 200000 | H14: 4756000 | I14: 7000000 | J14: 1160000 | K14: 950000 | L14: 2320000 | M14: 1570000 | N14: 175000 | O14: 4872000 | P14: 3500000 | Q14: 3050000 | R14: 4600000 | S14: 3050000 | T14: 1600000 | U14: 1500000 | V14: 1220000 | W14: 1220000 | X14: 185000 | Y14: 250000 | Z14: 600000 | AA14: 1160000 | AB14: 1322400 | AC14: 1100000

Sheet IIIA Pesado (hidden)
A3: Marca | B3: Proveedor | C3: Precio del Mantenimiento Preventivo | D3: Precio del Blindaje | E3: Pintura (10% del exterior del Vehículo) | F3: Adhesivos de emblemas (por metro cuadrado) | G3: Alarma | H3: Barra de luces, sistema de perifoneo y sirena | I3: Sistema de videovigilancia | J3: Dispositivo de localización vehicular AVL | K3: Gancho trasero de fijación | L3: Radioteléfono alto desempeño | M3: Radioteléfono sencillo | N3: Sensor de reversa | O3: Refuerzo de la suspensión | P3: Blindaje para el piso del Vehículo con materiales livianos, si las condiciones del Blindaje son diferentes a las del resto del Vehículo Blindado | Q3: Blindaje para el piso del Vehículo con materiales pesados, si las condiciones del Blindaje son diferentes a las del resto del Vehículo Blindado | R3: Deflector de artefactos explosivos | S3: Blindaje para el techo del Vehículo con materiales livianos, si las condiciones del Blindaje son diferentes a las del resto del Vehículo Blindado | T3: Blindaje para el techo del Vehículo con materiales pesados, si las condiciones del Blindaje son diferentes a las del resto del Vehículo Blindado | U3: Refuerzo del sistema de frenos | V3: Cuatro luces estroboscópicas para señalización controlada con una fuente de poder de mínimo 300 flashes por minuto, de operación manual o automática, instalados en las farolas y stop. | W3: Intercomunicador interior/exterior del Vehículo tipo manos libres | X3: Centradores de puertas | Y3: Protector metálico al carter | Z3: Pito o claxon bitono para prelación de vía con accionamiento en el volante, sirena y alto parlante | AA3: Luces tipo led de color rojo y azul en la parte delantera y trasera, que no afecten la estética ni el sistema eléctrico original | AB3: Prueba balística | AC3: Adaptación de los vidrios de la zona de carga para camperos o camionetas
A4: CHEVROLET | B4: AUTOMAYOR S.A. | C4: 25000000 | D4: 42000000 | E4: 0 | F4: 0 | G4: 0 | H4: 4000000 | I4: 3700000 | J4: 800000 | K4: 800000 | L4: 2800000 | M4: 2000000 | N4: 0 | O4: 700000 | P4: 0 | Q4: 0 | R4: 3300000 | S4: 0 | T4: 0 | U4: 1800000 | V4: 800000 | W4: 1600000 | X4: 20000 | Y4: 500000 | Z4: 754000 | AA4: 1200000 | AB4: 0 | AC4: 150000
A5: RENAULT | B5: UT-LOS COCHES-IBERPLAS-BLINDADOS | C5: 5500000 | D5: 32886000 | E5: 250000 | F5: 200000 | G5: 200000 | H5: 4756000 | I5: 7000000 | J5: 1160000 | K5: 950000 | L5: 2320000 | M5: 1570000 | N5: 175000 | O5: 4872000 | P5: 3500000 | Q5: 3050000 | R5: 4600000 | S5: 3050000 | T5: 1600000 | U5: 1500000 | V5: 1220000 | W5: 1220000 | X5: 185000 | Y5: 250000 | Z5: 600000 | AA5: 1160000 | AB5: 1322400 | AC5: 1100000
A6: FORD | B6: UT-LOS COCHES-IBERPLAS-BLINDADOS | C6: 6150000 | D6: 32886000 | E6: 250000 | F6: 200000 | G6: 200000 | H6: 4756000 | I6: 7000000 | J6: 1160000 | K6: 950000 | L6: 2320000 | M6: 1570000 | N6: 175000 | O6: 4872000 | P6: 3500000 | Q6: 3050000 | R6: 4600000 | S6: 3050000 | T6: 1600000 | U6: 1500000 | V6: 1220000 | W6: 1220000 | X6: 185000 | Y6: 250000 | Z6: 600000 | AA6: 1160000 | AB6: 1322400 | AC6: 1100000
A7: DODGE | B7: UT-LOS COCHES-IBERPLAS-BLINDADOS | C7: 7000000 | D7: 32886000 | E7: 250000 | F7: 200000 | G7: 200000 | H7: 4756000 | I7: 7000000 | J7: 1160000 | K7: 950000 | L7: 2320000 | M7: 1570000 | N7: 175000 | O7: 4872000 | P7: 3500000 | Q7: 3050000 | R7: 4600000 | S7: 3050000 | T7: 1600000 | U7: 1500000 | V7: 1220000 | W7: 1220000 | X7: 185000 | Y7: 250000 | Z7: 600000 | AA7: 1160000 | AB7: 1322400 | AC7: 1100000
A8: JEEP | B8: UT-LOS COCHES-IBERPLAS-BLINDADOS | C8: 7000000 | D8: 32886000 | E8: 250000 | F8: 200000 | G8: 200000 | H8: 4756000 | I8: 7000000 | J8: 1160000 | K8: 950000 | L8: 2320000 | M8: 1570000 | N8: 175000 | O8: 4872000 | P8: 3500000 | Q8: 3050000 | R8: 4600000 | S8: 3050000 | T8: 1600000 | U8: 1500000 | V8: 1220000 | W8: 1220000 | X8: 185000 | Y8: 250000 | Z8: 600000 | AA8: 1160000 | AB8: 1322400 | AC8: 1100000
A9: TOYOTA | B9: UNIÓN TEMPORAL TOYONORTE LTDA. - ARMOR INTERNATIONAL DE COLOMBIA LTDA. | C9: 15500000 | D9: 41760000 | E9: 510000 | F9: 80000 | G9: 210000 | H9: 4920000 | I9: 1980000 | J9: 957000 | K9: 603200 | L9: 5450000 | M9: 2970000 | N9: 197200 | O9: 0 | P9: 1276000 | Q9: 1218000 | R9: 2408000 | S9: 5916000 | T9: 2668000 | U9: 0 | V9: 1150000 | W9: 1508000 | X9: 232000 | Y9: 0 | Z9: 0 | AA9: 980000 | AB9: 0 | AC9: 603200
A10: VOLVO | B10: UT-LOS COCHES-IBERPLAS-BLINDADOS | C10: 18300000 | D10: 32886000 | E10: 250000 | F10: 200000 | G10: 200000 | H10: 4756000 | I10: 7000000 | J10: 1160000 | K10: 950000 | L10: 2320000 | M10: 1570000 | N10: 175000 | O10: 4872000 | P10: 3500000 | Q10: 3050000 | R10: 4600000 | S10: 3050000 | T10: 1600000 | U10: 1500000 | V10: 1220000 | W10: 1220000 | X10: 185000 | Y10: 250000 | Z10: 600000 | AA10: 1160000 | AB10: 1322400 | AC10: 1100000
A11: MITSUBISHI | B11: UNION TEMPORAL VEHICULOS BLINDADOS M&B | C11: 11900000 | D11: 39440000 | E11: 500000 | F11: 260000 | G11: 180000 | H11: 4200000 | I11: 8000000 | J11: 950000 | K11: 850000 | L11: 1995000 | M11: 1300000 | N11: 0 | O11: 650000 | P11: 2500000 | Q11: 1750000 | R11: 3100000 | S11: 3100000 | T11: 2170000 | U11: 390000 | V11: 880000 | W11: 1125000 | X11: 680000 | Y11: 320000 | Z11: 1100000 | AA11: 820000 | AB11: 600000 | AC11: 394000

Sheet IV Liviano (hidden)
A3: Marca | B3: Proveedor | C3: Precio del Mantenimiento Preventivo | D3: Precio del Blindaje | E3: Pintura (10% del exterior del Vehículo) | F3: Adhesivos de emblemas (por metro cuadrado) | G3: Alarma | H3: Barra de luces, sistema de perifoneo y sirena | I3: Sistema de videovigilancia | J3: Dispositivo de localización vehicular AVL | K3: Gancho trasero de fijación | L3: Radioteléfono alto desempeño | M3: Radioteléfono sencillo | N3: Sensor de reversa | O3: Refuerzo de la suspensión | P3: Blindaje para el piso del Vehículo con materiales livianos, si las condiciones del Blindaje son diferentes a las del resto del Vehículo Blindado | Q3: Blindaje para el piso del Vehículo con materiales pesados, si las condiciones del Blindaje son diferentes a las del resto del Vehículo Blindado | R3: Deflector de artefactos explosivos | S3: Blindaje para el techo del Vehículo con materiales livianos, si las condiciones del Blindaje son diferentes a las del resto del Vehículo Blindado | T3: Blindaje para el techo del Vehículo con materiales pesados, si las condiciones del Blindaje son diferentes a las del resto del Vehículo Blindado | U3: Refuerzo del sistema de frenos | V3: Cuatro luces estroboscópicas para señalización controlada con una fuente de poder de mínimo 300 flashes por minuto, de operación manual o automática, instalados en las farolas y stop. | W3: Intercomunicador interior/exterior del Vehículo tipo manos libres | X3: Centradores de puertas | Y3: Protector metálico al carter | Z3: Pito o claxon bitono para prelación de vía con accionamiento en el volante, sirena y alto parlante | AA3: Luces tipo led de color rojo y azul en la parte delantera y trasera, que no afecten la estética ni el sistema eléctrico original | AB3: Prueba balística | AC3: Adaptación de los vidrios de la zona de carga para camperos o camionetas
A4: TOYOTA | B4: UNIÓN TEMPORAL TOYONORTE LTDA. - ARMOR INTERNATIONAL DE COLOMBIA LTDA. | C4: 0 | D4: 113680000 | E4: 510000 | F4: 80000 | G4: 210000 | H4: 4920000 | I4: 1980000 | J4: 957000 | K4: 603200 | L4: 5450000 | M4: 2970000 | N4: 197200 | O4: 5684000 | P4: 0 | Q4: 5145760 | R4: 2408000 | S4: 0 | T4: 4222400 | U4: 0 | V4: 1150000 | W4: 1508000 | X4: 232000 | Y4: 0 | Z4: 0 | AA4: 980000 | AB4: 0 | AC4: 1334000

Sheet IV Pesado (hidden)
A3: Marca | B3: Proveedor | C3: Precio del Mantenimiento Preventivo | D3: Precio del Blindaje | E3: Pintura (10% del exterior del Vehículo) | F3: Adhesivos de emblemas (por metro cuadrado) | G3: Alarma | H3: Barra de luces, sistema de perifoneo y sirena | I3: Sistema de videovigilancia | J3: Dispositivo de localización vehicular AVL | K3: Gancho trasero de fijación | L3: Radioteléfono alto desempeño | M3: Radioteléfono sencillo | N3: Sensor de reversa | O3: Refuerzo de la suspensión | P3: Blindaje para el piso del Vehículo con materiales livianos, si las condiciones del Blindaje son diferentes a las del resto del Vehículo Blindado | Q3: Blindaje para el piso del Vehículo con materiales pesados, si las condiciones del Blindaje son diferentes a las del resto del Vehículo Blindado | R3: Deflector de artefactos explosivos | S3: Blindaje para el techo del Vehículo con materiales livianos, si las condiciones del Blindaje son diferentes a las del resto del Vehículo Blindado | T3: Blindaje para el techo del Vehículo con materiales pesados, si las condiciones del Blindaje son diferentes a las del resto del Vehículo Blindado | U3: Refuerzo del sistema de frenos | V3: Cuatro luces estroboscópicas para señalización controlada con una fuente de poder de mínimo 300 flashes por minuto, de operación manual o automática, instalados en las farolas y stop. | W3: Intercomunicador interior/exterior del Vehículo tipo manos libres | X3: Centradores de puertas | Y3: Protector metálico al carter | Z3: Pito o claxon bitono para prelación de vía con accionamiento en el volante, sirena y alto parlante | AA3: Luces tipo led de color rojo y azul en la parte delantera y trasera, que no afecten la estética ni el sistema eléctrico original | AB3: Prueba balística | AC3: Adaptación de los vidrios de la zona de carga para camperos o camionetas
A4: TOYOTA | B4: UNIÓN TEMPORAL TOYONORTE LTDA. - ARMOR INTERNATIONAL DE COLOMBIA LTDA. | C4: 15500000 | D4: 104400000 | E4: 510000 | F4: 80000 | G4: 210000 | H4: 4920000 | I4: 1980000 | J4: 957000 | K4: 603200 | L4: 5450000 | M4: 2970000 | N4: 197200 | O4: 5684000 | P4: 0 | Q4: 5145760 | R4: 2408000 | S4: 0 | T4: 4222400 | U4: 0 | V4: 1150000 | W4: 1508000 | X4: 232000 | Y4: 0 | Z4: 0 | AA4: 280000 | AB4: 0 | AC4: 1334000

Sheet Referencias Camperos
B4: Versión: 15 -- 24/10/2019
B5: Listado de Vehículos de Referencia para el Acuerdo Marco de Precios LP-AMP-137-2017 para la adquisición de Vehículos Blindados
B7: Proveedor | C7: Tipo de blindaje | D7: Marca del Vehículo | E7: Vehículos de Referencia | F7: Código Fasecolda | G7: Precio Vehiculo | H7: 1 | I7: 2 a 10 | J7: 11 a 20 | K7: 21 a 30 | L7: 31 a 40 | M7: Mayor a 40 | N7: filtro | O7: Activo
B8: Unión Temporal Toyonorte Ltda. - Armor International De Colombia Ltda. – Blindex S.A. | C8: Blindaje nivel IIIA (NIJ) con materiales livianos | D8: TOYOTA | E8: RAV4 [4] [FL] XROADTP 2500CC 4X4 5P | F8: 9008208 | G8: =VLOOKUP(F8,[3]Hoja1!$A$2:$B$14197,2,FALSE) -> 133900000 | H8: 0.01 | I8: 0.015 | J8: 0.017 | K8: 0.02 | L8: 0.025 | M8: 0.03 | N8: =VLOOKUP($F8,ActFasecolda!#REF!,59,0)*1000 ->  | O8: 0
B9: Unión Temporal Toyonorte Ltda. - Armor International De Colombia Ltda. – Blindex S.A. | C9: Blindaje nivel IIIA (NIJ) con materiales livianos | D9: TOYOTA | E9: FORTUNER [2] 2.8L TP 2800CC TD 7AB 4X4 EURO IV | F9: 9008226 | G9: =VLOOKUP(F9,[4]Hoja1!$A$2:$B$14258,2,FALSE) -> 176100000 | H9: 0.01 | I9: 0.015 | J9: 0.017 | K9: 0.02 | L9: 0.025 | M9: 0.03 | O9: 1
B10: Unión Temporal Toyonorte Ltda. - Armor International De Colombia Ltda. – Blindex S.A. | C10: Blindaje nivel IIIA (NIJ) con materiales livianos | D10: TOYOTA | E10: FORTUNER [2] 2.8L TP 2800CC TD 7AB 4X4 EURO IV TC | F10: 9008227 | G10: =VLOOKUP(F10,[4]Hoja1!$A$2:$B$14258,2,FALSE) -> 200600000 | H10: 0.01 | I10: 0.015 | J10: 0.017 | K10: 0.02 | L10: 0.025 | M10: 0.03 | O10: 1
B11: Unión Temporal Toyonorte Ltda. - Armor International De Colombia Ltda. – Blindex S.A. | C11: Blindaje nivel IIIA (NIJ) con materiales livianos | D11: TOYOTA | E11: 4RUNNER [5] SR5 [FL]TP 4000CC 6AB | F11: 9008205 | G11: =VLOOKUP(F11,[3]Hoja1!$A$2:$B$14197,2,FALSE) -> 172500000 | H11: 0.01 | I11: 0.015 | J11: 0.017 | K11: 0.02 | L11: 0.025 | M11: 0.03 | O11: 0
B12: Unión Temporal Toyonorte Ltda. - Armor International De Colombia Ltda. – Blindex S.A. | C12: Blindaje nivel IIIA (NIJ) con materiales livianos | D12: TOYOTA | E12: 4RUNNER [5] LIMITED [FL]TP 4000CC 6AB | F12: 9008204 | G12: =VLOOKUP(F12,[4]Hoja1!$A$2:$B$14258,2,FALSE) -> 202900000 | H12: 0.01 | I12: 0.015 | J12: 0.017 | K12: 0.02 | L12: 0.025 | M12: 0.03 | O12: 1
B13: Unión Temporal Toyonorte Ltda. - Armor International De Colombia Ltda. – Blindex S.A. | C13: Blindaje nivel IIIA (NIJ) con materiales livianos | D13: TOYOTA | E13: LAND CRUISER [LC 200] IMPERIALTP 4600CC 8AB EURO IV | F13: 9008206 | G13: =VLOOKUP(F13,[4]Hoja1!$A$2:$B$14258,2,FALSE) -> 389600000 | H13: 0.01 | I13: 0.015 | J13: 0.017 | K13: 0.02 | L13: 0.025 | M13: 0.03 | O13: 1
B14: Unión Temporal Toyonorte Ltda. - Armor International De Colombia Ltda. – Blindex S.A. | C14: Blindaje nivel IIIA (NIJ) con materiales livianos | D14: TOYOTA | E14: LAND CRUISER [LC 200] IMPERIALTP 4500CC TD 8AB EURO IV | F14: 9008201 | G14: =VLOOKUP(F14,[4]Hoja1!$A$2:$B$14258,2,FALSE) -> 400400000 | H14: 0.01 | I14: 0.015 | J14: 0.017 | K14: 0.02 | L14: 0.025 | M14: 0.03 | O14: 1
B15: Unión Temporal Toyonorte Ltda. - Armor International De Colombia Ltda. – Blindex S.A. | C15: Blindaje nivel IIIA (NIJ) con materiales livianos | D15: TOYOTA | E15: LAND CRUISER [LC 70] GRJ76MT 4000CC V6 5P | F15: 9008160 | G15: =VLOOKUP(F15,[4]Hoja1!$A$2:$B$14258,2,FALSE) -> 209500000 | H15: 0.01 | I15: 0.015 | J15: 0.017 | K15: 0.02 | L15: 0.025 | M15: 0.03 | O15: 1
B16: Unión Temporal Toyonorte Ltda. - Armor International De Colombia Ltda. – Blindex S.A. | C16: Blindaje nivel IIIA (NIJ) con materiales livianos | D16: TOYOTA | E16: LAND CRUISER [LC 70] GRJ78MT 4000CC V6 | F16: 9008143 | G16: =VLOOKUP(F16,[4]Hoja1!$A$2:$B$14258,2,FALSE) -> 185700000 | H16: 0.01 | I16: 0.015 | J16: 0.017 | K16: 0.02 | L16: 0.025 | M16: 0.03 | O16: 1
B17: Unión Temporal Toyonorte Ltda. - Armor International De Colombia Ltda. – Blindex S.A. | C17: Blindaje nivel IIIA (NIJ) con materiales pesados | D17: TOYOTA | E17: RAV4 [4] [FL] XROADTP 2500CC 4X4 5P | F17: 9008208 | G17: =VLOOKUP(F17,[3]Hoja1!$A$2:$B$14197,2,FALSE) -> 133900000 | H17: 0.01 | I17: 0.015 | J17: 0.017 | K17: 0.02 | L17: 0.025 | M17: 0.03 | O17: 0
B18: Unión Temporal Toyonorte Ltda. - Armor International De Colombia Ltda. – Blindex S.A. | C18: Blindaje nivel IIIA (NIJ) con materiales pesados | D18: TOYOTA | E18: FORTUNER [2] 2.8L TP 2800CC TD 7AB 4X4 EURO IV TC | F18: 9008227 | G18: =VLOOKUP(F18,[4]Hoja1!$A$2:$B$14258,2,FALSE) -> 200600000 | H18: 0.01 | I18: 0.015 | J18: 0.017 | K18: 0.02 | L18: 0.025 | M18: 0.03 | O18: 1
B19: Unión Temporal Toyonorte Ltda. - Armor International De Colombia Ltda. – Blindex S.A. | C19: Blindaje nivel IIIA (NIJ) con materiales pesados | D19: TOYOTA | E19: FORTUNER [2] 2.8L TP 2800CC TD 7AB 4X4 EURO IV | F19: 9008226 | G19: =VLOOKUP(F19,[4]Hoja1!$A$2:$B$14258,2,FALSE) -> 176100000 | H19: 0.01 | I19: 0.015 | J19: 0.017 | K19: 0.02 | L19: 0.025 | M19: 0.03 | O19: 1
B20: Unión Temporal Toyonorte Ltda. - Armor International De Colombia Ltda. – Blindex S.A. | C20: Blindaje nivel IIIA (NIJ) con materiales pesados | D20: TOYOTA | E20: 4RUNNER [5] SR5 [FL]TP 4000CC 6AB | F20: 9008205 | G20: =VLOOKUP(F20,[4]Hoja1!$A$2:$B$14258,2,FALSE) -> 172500000 | H20: 0.01 | I20: 0.015 | J20: 0.017 | K20: 0.02 | L20: 0.025 | M20: 0.03 | O20: 1
B21: Unión Temporal Toyonorte Ltda. - Armor International De Colombia Ltda. – Blindex S.A. | C21: Blindaje nivel IIIA (NIJ) con materiales pesados | D21: TOYOTA | E21: 4RUNNER [5] LIMITED [FL]TP 4000CC 6AB | F21: 9008204 | G21: =VLOOKUP(F21,[3]Hoja1!$A$2:$B$14197,2,FALSE) -> 202900000 | H21: 0.01 | I21: 0.015 | J21: 0.017 | K21: 0.02 | L21: 0.025 | M21: 0.03 | O21: 0
B22: Unión Temporal Toyonorte Ltda. - Armor International De Colombia Ltda. – Blindex S.A. | C22: Blindaje nivel IIIA (NIJ) con materiales pesados | D22: TOYOTA | E22: LAND CRUISER [LC 200] IMPERIALTP 4600CC 8AB EURO IV | F22: 9008206 | G22: =VLOOKUP(F22,[4]Hoja1!$A$2:$B$14258,2,FALSE) -> 389600000 | H22: 0.01 | I22: 0.015 | J22: 0.017 | K22: 0.02 | L22: 0.025 | M22: 0.03 | O22: 1
B23: Unión Temporal Toyonorte Ltda. - Armor International De Colombia Ltda. – Blindex S.A. | C23: Blindaje nivel IIIA (NIJ) con materiales pesados | D23: TOYOTA | E23: LAND CRUISER [LC 200] IMPERIALTP 4500CC TD 8AB EURO IV | F23: 9008201 | G23: =VLOOKUP(F23,[4]Hoja1!$A$2:$B$14258,2,FALSE) -> 400400000 | H23: 0.01 | I23: 0.015 | J23: 0.017 | K23: 0.02 | L23: 0.025 | M23: 0.03 | O23: 1
B24: Unión Temporal Toyonorte Ltda. - Armor International De Colombia Ltda. – Blindex S.A. | C24: Blindaje nivel IIIA (NIJ) con materiales pesados | D24: TOYOTA | E24: LAND CRUISER [LC 70] GRJ76MT 4000CC V6 5P | F24: 9008160 | G24: =VLOOKUP(F24,[4]Hoja1!$A$2:$B$14258,2,FALSE) -> 209500000 | H24: 0.01 | I24: 0.015 | J24: 0.017 | K24: 0.02 | L24: 0.025 | M24: 0.03 | O24: 1
B25: Unión Temporal Toyonorte Ltda. - Armor International De Colombia Ltda. – Blindex S.A. | C25: Blindaje nivel IIIA (NIJ) con materiales pesados | D25: TOYOTA | E25: LAND CRUISER [LC 70] GRJ78MT 4000CC V6 | F25: 9008143 | G25: =VLOOKUP(F25,[4]Hoja1!$A$2:$B$14258,2,FALSE) -> 185700000 | H25: 0.01 | I25: 0.015 | J25: 0.017 | K25: 0.02 | L25: 0.025 | M25: 0.03 | O25: 1
B26: Unión Temporal Toyonorte Ltda. - Armor International De Colombia Ltda. – Blindex S.A. | C26: Blindaje nivel III (NIJ) con materiales livianos | D26: TOYOTA | E26: FORTUNER [2] 2.8L TP 2800CC TD 7AB 4X4 EURO IV | F26: 9008226 | G26: =VLOOKUP(F26,[4]Hoja1!$A$2:$B$14258,2,FALSE) -> 176100000 | H26: 0.01 | I26: 0.015 | J26: 0.017 | K26: 0.02 | L26: 0.025 | M26: 0.03 | O26: 1
B27: Unión Temporal Toyonorte Ltda. - Armor International De Colombia Ltda. – Blindex S.A. | C27: Blindaje nivel III (NIJ) con materiales livianos | D27: TOYOTA | E27: FORTUNER [2] 2.8L TP 2800CC TD 7AB 4X4 EURO IV TC | F27: 9008227 | G27: =VLOOKUP(F27,[4]Hoja1!$A$2:$B$14258,2,FALSE) -> 200600000 | H27: 0.01 | I27: 0.015 | J27: 0.017 | K27: 0.02 | L27: 0.025 | M27: 0.03 | O27: 1
B28: Unión Temporal Toyonorte Ltda. - Armor International De Colombia Ltda. – Blindex S.A. | C28: Blindaje nivel III (NIJ) con materiales livianos | D28: TOYOTA | E28: 4RUNNER [5] SR5 [FL]TP 4000CC 6AB | F28: 9008205 | G28: =VLOOKUP(F28,[4]Hoja1!$A$2:$B$14258,2,FALSE) -> 172500000 | H28: 0.01 | I28: 0.015 | J28: 0.017 | K28: 0.02 | L28: 0.025 | M28: 0.03 | O28: 1
B29: Unión Temporal Toyonorte Ltda. - Armor International De Colombia Ltda. – Blindex S.A. | C29: Blindaje nivel III (NIJ) con materiales livianos | D29: TOYOTA | E29: 4RUNNER [5] LIMITED [FL]TP 4000CC 6AB | F29: 9008204 | G29: =VLOOKUP(F29,[4]Hoja1!$A$2:$B$14258,2,FALSE) -> 202900000 | H29: 0.01 | I29: 0.015 | J29: 0.017 | K29: 0.02 | L29: 0.025 | M29: 0.03 | O29: 1
B30: Unión Temporal Toyonorte Ltda. - Armor International De Colombia Ltda. – Blindex S.A. | C30: Blindaje nivel III (NIJ) con materiales livianos | D30: TOYOTA | E30: LAND CRUISER [LC 200] IMPERIALTP 4600CC 8AB EURO IV | F30: 9008206 | G30: =VLOOKUP(F30,[4]Hoja1!$A$2:$B$14258,2,FALSE) -> 389600000 | H30: 0.01 | I30: 0.015 | J30: 0.017 | K30: 0.02 | L30: 0.025 | M30: 0.03 | O30: 1
B31: Unión Temporal Toyonorte Ltda. - Armor International De Colombia Ltda. – Blindex S.A. | C31: Blindaje nivel III (NIJ) con materiales livianos | D31: TOYOTA | E31: LAND CRUISER [LC 200] IMPERIALTP 4500CC TD 8AB EURO IV | F31: 9008201 | G31: =VLOOKUP(F31,[4]Hoja1!$A$2:$B$14258,2,FALSE) -> 400400000 | H31: 0.01 | I31: 0.015 | J31: 0.017 | K31: 0.02 | L31: 0.025 | M31: 0.03 | O31: 1
B32: Unión Temporal Toyonorte Ltda. - Armor International De Colombia Ltda. – Blindex S.A. | C32: Blindaje nivel III (NIJ) con materiales livianos | D32: TOYOTA | E32: LAND CRUISER [LC 70] GRJ76MT 4000CC V6 5P | F32: 9008160 | G32: =VLOOKUP(F32,[4]Hoja1!$A$2:$B$14258,2,FALSE) -> 209500000 | H32: 0.01 | I32: 0.015 | J32: 0.017 | K32: 0.02 | L32: 0.025 | M32: 0.03 | O32: 1
B33: Unión Temporal Toyonorte Ltda. - Armor International De Colombia Ltda. – Blindex S.A. | C33: Blindaje nivel III (NIJ) con materiales livianos | D33: TOYOTA | E33: LAND CRUISER [LC 70] GRJ78MT 4000CC V6 | F33: 9008143 | G33: =VLOOKUP(F33,[4]Hoja1!$A$2:$B$14258,2,FALSE) -> 185700000 | H33: 0.01 | I33: 0.015 | J33: 0.017 | K33: 0.02 | L33: 0.025 | M33: 0.03 | O33: 1
B34: Unión Temporal Toyonorte Ltda. - Armor International De Colombia Ltda. – Blindex S.A. | C34: Blindaje nivel III (NIJ) con materiales pesados | D34: TOYOTA | E34: 4RUNNER [5] SR5 [FL]TP 4000CC 6AB | F34: 9008205 | G34: =VLOOKUP(F34,[4]Hoja1!$A$2:$B$14258,2,FALSE) -> 172500000 | H34: 0.01 | I34: 0.015 | J34: 0.017 | K34: 0.02 | L34: 0.025 | M34: 0.03 | O34: 1
B35: Unión Temporal Toyonorte Ltda. - Armor International De Colombia Ltda. – Blindex S.A. | C35: Blindaje nivel III (NIJ) con materiales pesados | D35: TOYOTA | E35: 4RUNNER [5] LIMITED [FL]TP 4000CC 6AB | F35: 9008204 | G35: =VLOOKUP(F35,[4]Hoja1!$A$2:$B$14258,2,FALSE) -> 202900000 | H35: 0.01 | I35: 0.015 | J35: 0.017 | K35: 0.02 | L35: 0.025 | M35: 0.03 | O35: 1
B36: Unión Temporal Toyonorte Ltda. - Armor International De Colombia Ltda. – Blindex S.A. | C36: Blindaje nivel III (NIJ) con materiales pesados | D36: TOYOTA | E36: LAND CRUISER [LC 200] IMPERIALTP 4600CC 8AB EURO IV | F36: 9008206 | G36: =VLOOKUP(F36,[4]Hoja1!$A$2:$B$14258,2,FALSE) -> 389600000 | H36: 0.01 | I36: 0.015 | J36: 0.017 | K36: 0.02 | L36: 0.025 | M36: 0.03 | O36: 1
B37: Unión Temporal Toyonorte Ltda. - Armor International De Colombia Ltda. – Blindex S.A. | C37: Blindaje nivel III (NIJ) con materiales pesados | D37: TOYOTA | E37: LAND CRUISER [LC 200] IMPERIALTP 4500CC TD 8AB EURO IV | F37: 9008201 | G37: =VLOOKUP(F37,[4]Hoja1!$A$2:$B$14258,2,FALSE) -> 400400000 | H37: 0.01 | I37: 0.015 | J37: 0.017 | K37: 0.02 | L37: 0.025 | M37: 0.03 | O37: 1
B38: Unión Temporal Toyonorte Ltda. - Armor International De Colombia Ltda. – Blindex S.A. | C38: Blindaje nivel III (NIJ) con materiales pesados | D38: TOYOTA | E38: LAND CRUISER [LC 70] GRJ76MT 4000CC V6 5P | F38: 9008160 | G38: =VLOOKUP(F38,[4]Hoja1!$A$2:$B$14258,2,FALSE) -> 209500000 | H38: 0.01 | I38: 0.015 | J38: 0.017 | K38: 0.02 | L38: 0.025 | M38: 0.03 | O38: 1
B39: Unión Temporal Toyonorte Ltda. - Armor International De Colombia Ltda. – Blindex S.A. | C39: Blindaje nivel III (NIJ) con materiales pesados | D39: TOYOTA | E39: LAND CRUISER [LC 70] GRJ78MT 4000CC V6 | F39: 9021067 | G39: =VLOOKUP(F39,[4]Hoja1!$A$2:$B$14258,2,FALSE) -> 154900000 | H39: 0.01 | I39: 0.015 | J39: 0.017 | K39: 0.02 | L39: 0.025 | M39: 0.03 | O39: 1
B40: Unión Temporal Toyonorte Ltda. - Armor International De Colombia Ltda. – Blindex S.A. | C40: Blindaje nivel IV (NIJ) con materiales livianos | D40: TOYOTA | E40: LAND CRUISER [LC 200] IMPERIALTP 4600CC 8AB EURO IV | F40: 9008206 | G40: =VLOOKUP(F40,[4]Hoja1!$A$2:$B$14258,2,FALSE) -> 389600000 | H40: 0.01 | I40: 0.015 | J40: 0.017 | K40: 0.02 | L40: 0.025 | M40: 0.03 | O40: 1
B41: Unión Temporal Toyonorte Ltda. - Armor International De Colombia Ltda. – Blindex S.A. | C41: Blindaje nivel IV (NIJ) con materiales livianos | D41: TOYOTA | E41: LAND CRUISER [LC 200] IMPERIALTP 4500CC TD 8AB EURO IV | F41: 9008201 | G41: =VLOOKUP(F41,[4]Hoja1!$A$2:$B$14258,2,FALSE) -> 400400000 | H41: 0.01 | I41: 0.015 | J41: 0.017 | K41: 0.02 | L41: 0.025 | M41: 0.03 | O41: 1
B42: Unión Temporal Toyonorte Ltda. - Armor International De Colombia Ltda. – Blindex S.A. | C42: Blindaje nivel IV (NIJ) con materiales livianos | D42: TOYOTA | E42: LAND CRUISER [LC 70] GRJ76MT 4000CC V6 5P | F42: 9008160 | G42: =VLOOKUP(F42,[4]Hoja1!$A$2:$B$14258,2,FALSE) -> 209500000 | H42: 0.01 | I42: 0.015 | J42: 0.017 | K42: 0.02 | L42: 0.025 | M42: 0.03 | O42: 1
B43: Unión Temporal Toyonorte Ltda. - Armor International De Colombia Ltda. – Blindex S.A. | C43: Blindaje nivel IV (NIJ) con materiales livianos | D43: TOYOTA | E43: LAND CRUISER [LC 70] GRJ78MT 4000CC V6 | F43: 9008143 | G43: =VLOOKUP(F43,[4]Hoja1!$A$2:$B$14258,2,FALSE) -> 185700000 | H43: 0.01 | I43: 0.015 | J43: 0.017 | K43: 0.02 | L43: 0.025 | M43: 0.03 | O43: 1
B44: Unión Temporal Toyonorte Ltda. - Armor International De Colombia Ltda. – Blindex S.A. | C44: Blindaje nivel IV (NIJ) con materiales pesados | D44: TOYOTA | E44: LAND CRUISER [LC 200] IMPERIALTP 4600CC 8AB EURO IV | F44: 9008206 | G44: =VLOOKUP(F44,[4]Hoja1!$A$2:$B$14258,2,FALSE) -> 389600000 | H44: 0.01 | I44: 0.015 | J44: 0.017 | K44: 0.02 | L44: 0.025 | M44: 0.03 | O44: 1
B45: Unión Temporal Toyonorte Ltda. - Armor International De Colombia Ltda. – Blindex S.A. | C45: Blindaje nivel IV (NIJ) con materiales pesados | D45: TOYOTA | E45: LAND CRUISER [LC 200] IMPERIALTP 4500CC TD 8AB EURO IV | F45: 9008201 | G45: =VLOOKUP(F45,[4]Hoja1!$A$2:$B$14258,2,FALSE) -> 400400000 | H45: 0.01 | I45: 0.015 | J45: 0.017 | K45: 0.02 | L45: 0.025 | M45: 0.03 | O45: 1
B46: Unión Temporal Toyonorte Ltda. - Armor International De Colombia Ltda. – Blindex S.A. | C46: Blindaje nivel IV (NIJ) con materiales pesados | D46: TOYOTA | E46: LAND CRUISER [LC 70] GRJ76MT 4000CC V6 5P | F46: 9008160 | G46: =VLOOKUP(F46,[4]Hoja1!$A$2:$B$14258,2,FALSE) -> 209500000 | H46: 0.01 | I46: 0.015 | J46: 0.017 | K46: 0.02 | L46: 0.025 | M46: 0.03 | O46: 1
B47: Unión Temporal Toyonorte Ltda. - Armor International De Colombia Ltda. – Blindex S.A. | C47: Blindaje nivel IV (NIJ) con materiales pesados | D47: TOYOTA | E47: LAND CRUISER [LC 70] GRJ78MT 4000CC V6 | F47: 9008143 | G47: =VLOOKUP(F47,[4]Hoja1!$A$2:$B$14258,2,FALSE) -> 185700000 | H47: 0.01 | I47: 0.015 | J47: 0.017 | K47: 0.02 | L47: 0.025 | M47: 0.03 | O47: 1
B48: 7m Group S.A. | C48: Blindaje nivel IIIA (NIJ) con materiales livianos | D48: RENAULT | E48: DUSTER [FL] DYNAMIQUE MT 2000CC 4X4 | F48: 8008014 | G48: =VLOOKUP(F48,[4]Hoja1!$A$2:$B$14258,2,FALSE) -> 73900000 | H48: 0.077 | I48: 0.078 | J48: 0.079 | K48: 0.08 | L48: 0.081 | M48: 0.082 | O48: 1
B49: 7m Group S.A. | C49: Blindaje nivel IIIA (NIJ) con materiales livianos | D49: RENAULT | E49: KOLEOS [2] INTENS TP 2500CC CT TC 4X4 | F49: 8006058 | G49: =VLOOKUP(F49,[4]Hoja1!$A$2:$B$14258,2,FALSE) -> 122600000 | H49: 0.077 | I49: 0.078 | J49: 0.079 | K49: 0.08 | L49: 0.081 | M49: 0.082 | O49: 1
B50: 7m Group S.A. | C50: Blindaje nivel IIIA (NIJ) con materiales livianos | D50: JEEP | E50: RENEGADE LONGITUDE TP 2400CC 4X4 | F50: 4206061 | G50: =VLOOKUP(F50,[4]Hoja1!$A$2:$B$14258,2,FALSE) -> 109500000 | H50: 0.062 | I50: 0.064 | J50: 0.066 | K50: 0.068 | L50: 0.07 | M50: 0.072 | O50: 1
B51: 7m Group S.A. | C51: Blindaje nivel IIIA (NIJ) con materiales livianos | D51: JEEP | E51: CHEROKEE [4] LONGITUDE PLUS TP 3200CC 4X4 CT TC | F51: 4206057 | G51: =VLOOKUP(F51,[4]Hoja1!$A$2:$B$14258,2,FALSE) -> 127000000 | H51: 0.062 | I51: 0.064 | J51: 0.066 | K51: 0.068 | L51: 0.07 | M51: 0.072 | O51: 1
B52: 7m Group S.A. | C52: Blindaje nivel IIIA (NIJ) con materiales livianos | D52: JEEP | E52: GRAND CHEROKEE [4] [FL] LIMITED TP 3600CC CT 4X4 | F52: 4208109 | G52: =VLOOKUP(F52,[4]Hoja1!$A$2:$B$14258,2,FALSE) -> 189000000 | H52: 0.062 | I52: 0.064 | J52: 0.066 | K52: 0.068 | L52: 0.07 | M52: 0.072 | O52: 1
B53: 7m Group S.A. | C53: Blindaje nivel IIIA (NIJ) con materiales livianos | D53: JEEP | E53: GRAND CHEROKEE [4] SRT8 TP 6400CC 4X4 | F53: 4208105 | G53: =VLOOKUP(F53,[4]Hoja1!$A$2:$B$14258,2,FALSE) -> 320000000 | H53: 0.062 | I53: 0.064 | J53: 0.066 | K53: 0.068 | L53: 0.07 | M53: 0.072 | O53: 1
B54: 7m Group S.A. | C54: Blindaje nivel IIIA (NIJ) con materiales livianos | D54: JEEP | E54: WRANGLER [3] RUBICON AT 3600CC | F54: 4208103 | G54: =VLOOKUP(F54,[4]Hoja1!$A$2:$B$14258,2,FALSE) -> 180000000 | H54: 0.062 | I54: 0.064 | J54: 0.066 | K54: 0.068 | L54: 0.07 | M54: 0.072 | O54: 1
B55: 7m Group S.A. | C55: Blindaje nivel IIIA (NIJ) con materiales livianos | D55: JEEP | E55: WRANGLER UNLIMITED [3] SPORT TP 3600CC 4X4 4P | F55: 4208108 | G55: =VLOOKUP(F55,[4]Hoja1!$A$2:$B$14258,2,FALSE) -> 167000000 | H55: 0.062 | I55: 0.064 | J55: 0.066 | K55: 0.068 | L55: 0.07 | M55: 0.072 | O55: 1
B56: 7m Group S.A. | C56: Blindaje nivel IIIA (NIJ) con materiales livianos | D56: DODGE | E56: DURANGO [3] [FL] LIMITED PLUS TP 3600CC V6 AWD 7PSJ CT | F56: 2408008 | G56: =VLOOKUP(F56,[4]Hoja1!$A$2:$B$14258,2,FALSE) -> 170000000 | H56: 0.062 | I56: 0.064 | J56: 0.066 | K56: 0.068 | L56: 0.07 | M56: 0.072 | O56: 1
B57: 7m Group S.A. | C57: Blindaje nivel IIIA (NIJ) con materiales livianos | D57: PEUGEOT | E57: 3008 [2] ACTIVE TP 1600CC T R17 | F57: 6806041 | G57: =VLOOKUP(F57,[4]Hoja1!$A$2:$B$14258,2,FALSE) -> 105000000 | H57: 0.062 | I57: 0.064 | J57: 0.066 | K57: 0.068 | L57: 0.07 | M57: 0.072 | O57: 1
B58: UNION TEMPORAL YOKOMOTOR S.A. - BLINSECURITY DE COLOMBIA LTDA - GMW SECURITY RENT A CAR LTDA | C58: Blindaje nivel IIIA (NIJ) con materiales pesados | D58: TOYOTA | E58: PRADO [LC 150] TX [FL] TP 4000CC 5P 2AB | F58: 9008194 | G58: =VLOOKUP(F58,[4]Hoja1!$A$2:$B$14258,2,FALSE) -> 197900000 | H58: 0.01 | I58: 0.015 | J58: 0.017 | K58: 0.02 | L58: 0.025 | M58: 0.03 | O58: 1
B59: UNION TEMPORAL YOKOMOTOR S.A. - BLINSECURITY DE COLOMBIA LTDA - GMW SECURITY RENT A CAR LTDA | C59: Blindaje nivel IIIA (NIJ) con materiales pesados | D59: TOYOTA | E59: PRADO [LC 150] TX [FL] TP 3000CC 5P TD EURO IV | F59: 9008222 | G59: =VLOOKUP(F59,[4]Hoja1!$A$2:$B$14258,2,FALSE) -> 224300000 | H59: 0.01 | I59: 0.015 | J59: 0.017 | K59: 0.02 | L59: 0.025 | M59: 0.03 | O59: 1
B60: UNION TEMPORAL YOKOMOTOR S.A. - BLINSECURITY DE COLOMBIA LTDA - GMW SECURITY RENT A CAR LTDA | C60: Blindaje nivel IIIA (NIJ) con materiales pesados | D60: TOYOTA | E60: PRADO [LC 150] TX-L [FL] TP 4000CC 5P CT TC | F60: 9008221 | G60: =VLOOKUP(F60,[4]Hoja1!$A$2:$B$14258,2,FALSE) -> 219900000 | H60: 0.01 | I60: 0.015 | J60: 0.017 | K60: 0.02 | L60: 0.025 | M60: 0.03 | O60: 1
B61: UNION TEMPORAL YOKOMOTOR S.A. - BLINSECURITY DE COLOMBIA LTDA - GMW SECURITY RENT A CAR LTDA | C61: Blindaje nivel IIIA (NIJ) con materiales pesados | D61: TOYOTA | E61: PRADO [LC 150] TX-L [FL] TP 3000CC 5P TD EURO IV | F61: 9008220 | G61: =VLOOKUP(F61,[4]Hoja1!$A$2:$B$14258,2,FALSE) -> 228600000 | H61: 0.01 | I61: 0.015 | J61: 0.017 | K61: 0.02 | L61: 0.025 | M61: 0.03 | O61: 1
B62: UNION TEMPORAL YOKOMOTOR S.A. - BLINSECURITY DE COLOMBIA LTDA - GMW SECURITY RENT A CAR LTDA | C62: Blindaje nivel IIIA (NIJ) con materiales pesados | D62: TOYOTA | E62: 4RUNNER [5] LIMITED [FL] TP 4000CC 6AB | F62: 9008204 | G62: =VLOOKUP(F62,[4]Hoja1!$A$2:$B$14258,2,FALSE) -> 202900000 | H62: 0.01 | I62: 0.015 | J62: 0.017 | K62: 0.02 | L62: 0.025 | M62: 0.03 | O62: 1
B63: UNION TEMPORAL YOKOMOTOR S.A. - BLINSECURITY DE COLOMBIA LTDA - GMW SECURITY RENT A CAR LTDA | C63: Blindaje nivel IIIA (NIJ) con materiales pesados | D63: TOYOTA | E63: 4RUNNER [5] SR5 [FL] TP 4000CC 6AB | F63: 9008205 | G63: =VLOOKUP(F63,[4]Hoja1!$A$2:$B$14258,2,FALSE) -> 172500000 | H63: 0.01 | I63: 0.015 | J63: 0.017 | K63: 0.02 | L63: 0.025 | M63: 0.03 | O63: 1
B64: UNION TEMPORAL YOKOMOTOR S.A. - BLINSECURITY DE COLOMBIA LTDA - GMW SECURITY RENT A CAR LTDA | C64: Blindaje nivel IIIA (NIJ) con materiales pesados | D64: TOYOTA | E64: FORTUNER [2] 2.8L TP 2800CC TD 7AB 4X4 EURO IV | F64: 9008226 | G64: =VLOOKUP(F64,[4]Hoja1!$A$2:$B$14258,2,FALSE) -> 176100000 | H64: 0.01 | I64: 0.015 | J64: 0.017 | K64: 0.02 | L64: 0.025 | M64: 0.03 | O64: 1
B65: UNION TEMPORAL YOKOMOTOR S.A. - BLINSECURITY DE COLOMBIA LTDA - GMW SECURITY RENT A CAR LTDA | C65: Blindaje nivel IIIA (NIJ) con materiales pesados | D65: TOYOTA | E65: RAV4 [4] [FL] XROAD TP 2000CC 4X4 5P | F65: 9008209 | G65: =VLOOKUP(F65,[4]Hoja1!$A$2:$B$14258,2,FALSE) -> 123900000 | H65: 0.01 | I65: 0.015 | J65: 0.017 | K65: 0.02 | L65: 0.025 | M65: 0.03 | O65: 1
B66: UNION TEMPORAL YOKOMOTOR S.A. - BLINSECURITY DE COLOMBIA LTDA - GMW SECURITY RENT A CAR LTDA | C66: Blindaje nivel IIIA (NIJ) con materiales pesados | D66: TOYOTA | E66: RAV4 [4] [FL] XROAD TP 2500CC 4X4 5P | F66: 9008208 | G66: =VLOOKUP(F66,[4]Hoja1!$A$2:$B$14258,2,FALSE) -> 133900000 | H66: 0.01 | I66: 0.015 | J66: 0.017 | K66: 0.02 | L66: 0.025 | M66: 0.03 | O66: 1
B67: UNION TEMPORAL YOKOMOTOR S.A. - BLINSECURITY DE COLOMBIA LTDA - GMW SECURITY RENT A CAR LTDA | C67: Blindaje nivel IIIA (NIJ) con materiales pesados | D67: TOYOTA | E67: LAND CRUISER [LC 200] IMPERIAL TP 4600CC 8AB EURO IV | F67: 9008206 | G67: =VLOOKUP(F67,[4]Hoja1!$A$2:$B$14258,2,FALSE) -> 389600000 | H67: 0.01 | I67: 0.015 | J67: 0.017 | K67: 0.02 | L67: 0.025 | M67: 0.03 | O67: 1
B68: UNION TEMPORAL YOKOMOTOR S.A. - BLINSECURITY DE COLOMBIA LTDA - GMW SECURITY RENT A CAR LTDA | C68: Blindaje nivel IIIA (NIJ) con materiales pesados | D68: TOYOTA | E68: LAND CRUISER [LC 200] IMPERIAL TP 4500CC TD 8AB EURO IV | F68: 9008201 | G68: =VLOOKUP(F68,[4]Hoja1!$A$2:$B$14258,2,FALSE) -> 400400000 | H68: 0.01 | I68: 0.015 | J68: 0.017 | K68: 0.02 | L68: 0.025 | M68: 0.03 | O68: 1
B69: UNION TEMPORAL YOKOMOTOR S.A. - BLINSECURITY DE COLOMBIA LTDA - GMW SECURITY RENT A CAR LTDA | C69: Blindaje nivel IIIA (NIJ) con materiales pesados | D69: TOYOTA | E69: LAND CRUISER [LC 70] GRJ71 MT 4000CC V6 | F69: 9008154 | G69: =VLOOKUP(F69,[4]Hoja1!$A$2:$B$14258,2,FALSE) -> 189500000 | H69: 0.01 | I69: 0.015 | J69: 0.017 | K69: 0.02 | L69: 0.025 | M69: 0.03 | O69: 1
B70: UNION TEMPORAL YOKOMOTOR S.A. - BLINSECURITY DE COLOMBIA LTDA - GMW SECURITY RENT A CAR LTDA | C70: Blindaje nivel IIIA (NIJ) con materiales pesados | D70: TOYOTA | E70: LAND CRUISER [LC 70] GRJ76 MT 4000CC V6 5P | F70: 9008160 | G70: =VLOOKUP(F70,[4]Hoja1!$A$2:$B$14258,2,FALSE) -> 209500000 | H70: 0.01 | I70: 0.015 | J70: 0.017 | K70: 0.02 | L70: 0.025 | M70: 0.03 | O70: 1
B71: UNION TEMPORAL YOKOMOTOR S.A. - BLINSECURITY DE COLOMBIA LTDA - GMW SECURITY RENT A CAR LTDA | C71: Blindaje nivel IIIA (NIJ) con materiales pesados | D71: TOYOTA | E71: LAND CRUISER [LC 70] GRJ78 MT 4000CC V6 | F71: 9008143 | G71: =VLOOKUP(F71,[4]Hoja1!$A$2:$B$14258,2,FALSE) -> 185700000 | H71: 0.01 | I71: 0.015 | J71: 0.017 | K71: 0.02 | L71: 0.025 | M71: 0.03 | O71: 1
B72: UNION TEMPORAL YOKOMOTOR S.A. - BLINSECURITY DE COLOMBIA LTDA - GMW SECURITY RENT A CAR LTDA | C72: Blindaje nivel IIIA (NIJ) con materiales pesados | D72: TOYOTA | E72: LAND CRUISER [LC 70] GRJ79 MT 4000CC V6 EST | F72: 9020050 | G72: =VLOOKUP(F72,[4]Hoja1!$A$2:$B$14258,2,FALSE) -> 211400000 | H72: 0.01 | I72: 0.015 | J72: 0.017 | K72: 0.02 | L72: 0.025 | M72: 0.03 | O72: 1
B73: UNION TEMPORAL YOKOMOTOR S.A. - BLINSECURITY DE COLOMBIA LTDA - GMW SECURITY RENT A CAR LTDA | C73: Blindaje nivel IIIA (NIJ) con materiales pesados | D73: TOYOTA | E73: LAND CRUISER [LC 200] ELITE TP 4500CC TD 2AB | F73: 9008137 | G73: =VLOOKUP(F73,[4]Hoja1!$A$2:$B$14258,2,FALSE) -> 313900000 | H73: 0.01 | I73: 0.015 | J73: 0.017 | K73: 0.02 | L73: 0.025 | M73: 0.03 | O73: 1
B74: UNION TEMPORAL YOKOMOTOR S.A. - BLINSECURITY DE COLOMBIA LTDA - GMW SECURITY RENT A CAR LTDA | C74: Blindaje nivel IIIA (NIJ) con materiales pesados | D74: TOYOTA | E74: FORTUNER [2] 2.8L TP 2800CC TD 4X4 EURO IV TC | F74: 9008211 | G74: =VLOOKUP(F74,[4]Hoja1!$A$2:$B$14258,2,FALSE) -> 188500000 | H74: 0.01 | I74: 0.015 | J74: 0.017 | K74: 0.02 | L74: 0.025 | M74: 0.03 | O74: 1
B75: UNION TEMPORAL YOKOMOTOR S.A. - BLINSECURITY DE COLOMBIA LTDA - GMW SECURITY RENT A CAR LTDA | C75: Blindaje nivel IIIA (NIJ) con materiales pesados | D75: TOYOTA | E75: FORTUNER [2] 2.8L TP 2800CC TD 7AB 4X4 EURO IV | F75: 9008226 | G75: =VLOOKUP(F75,[4]Hoja1!$A$2:$B$14258,2,FALSE) -> 176100000 | H75: 0.01 | I75: 0.015 | J75: 0.017 | K75: 0.02 | L75: 0.025 | M75: 0.03 | O75: 1
B76: UNION TEMPORAL YOKOMOTOR S.A. - BLINSECURITY DE COLOMBIA LTDA - GMW SECURITY RENT A CAR LTDA | C76: Blindaje nivel IIIA (NIJ) con materiales livianos | D76: TOYOTA | E76: PRADO [LC 150] TX [FL] TP 4000CC 5P 2AB | F76: 9008194 | G76: =VLOOKUP(F76,[4]Hoja1!$A$2:$B$14258,2,FALSE) -> 197900000 | H76: 0.01 | I76: 0.015 | J76: 0.017 | K76: 0.02 | L76: 0.025 | M76: 0.03 | O76: 1
B77: UNION TEMPORAL YOKOMOTOR S.A. - BLINSECURITY DE COLOMBIA LTDA - GMW SECURITY RENT A CAR LTDA | C77: Blindaje nivel IIIA (NIJ) con materiales livianos | D77: TOYOTA | E77: PRADO [LC 150] TX [FL] TP 3000CC 5P TD EURO IV | F77: 9008222 | G77: =VLOOKUP(F77,[4]Hoja1!$A$2:$B$14258,2,FALSE) -> 224300000 | H77: 0.01 | I77: 0.015 | J77: 0.017 | K77: 0.02 | L77: 0.025 | M77: 0.03 | O77: 1
B78: UNION TEMPORAL YOKOMOTOR S.A. - BLINSECURITY DE COLOMBIA LTDA - GMW SECURITY RENT A CAR LTDA | C78: Blindaje nivel IIIA (NIJ) con materiales livianos | D78: TOYOTA | E78: PRADO [LC 150] TX-L [FL] TP 4000CC 5P CT TC | F78: 9008221 | G78: =VLOOKUP(F78,[4]Hoja1!$A$2:$B$14258,2,FALSE) -> 219900000 | H78: 0.01 | I78: 0.015 | J78: 0.017 | K78: 0.02 | L78: 0.025 | M78: 0.03 | O78: 1
B79: UNION TEMPORAL YOKOMOTOR S.A. - BLINSECURITY DE COLOMBIA LTDA - GMW SECURITY RENT A CAR LTDA | C79: Blindaje nivel IIIA (NIJ) con materiales livianos | D79: TOYOTA | E79: PRADO [LC 150] TX-L [FL] TP 3000CC 5P TD EURO IV | F79: 9008220 | G79: =VLOOKUP(F79,[4]Hoja1!$A$2:$B$14258,2,FALSE) -> 228600000 | H79: 0.01 | I79: 0.015 | J79: 0.017 | K79: 0.02 | L79: 0.025 | M79: 0.03 | O79: 1
B80: UNION TEMPORAL YOKOMOTOR S.A. - BLINSECURITY DE COLOMBIA LTDA - GMW SECURITY RENT A CAR LTDA | C80: Blindaje nivel IIIA (NIJ) con materiales livianos | D80: TOYOTA | E80: 4RUNNER [5] LIMITED [FL] TP 4000CC 6AB | F80: 9008204 | G80: =VLOOKUP(F80,[4]Hoja1!$A$2:$B$14258,2,FALSE) -> 202900000 | H80: 0.01 | I80: 0.015 | J80: 0.017 | K80: 0.02 | L80: 0.025 | M80: 0.03 | O80: 1
B81: UNION TEMPORAL YOKOMOTOR S.A. - BLINSECURITY DE COLOMBIA LTDA - GMW SECURITY RENT A CAR LTDA | C81: Blindaje nivel IIIA (NIJ) con materiales livianos | D81: TOYOTA | E81: 4RUNNER [5] SR5 [FL] TP 4000CC 6AB | F81: 9008205 | G81: =VLOOKUP(F81,[4]Hoja1!$A$2:$B$14258,2,FALSE) -> 172500000 | H81: 0.01 | I81: 0.015 | J81: 0.017 | K81: 0.02 | L81: 0.025 | M81: 0.03 | O81: 1
B82: UNION TEMPORAL YOKOMOTOR S.A. - BLINSECURITY DE COLOMBIA LTDA - GMW SECURITY RENT A CAR LTDA | C82: Blindaje nivel IIIA (NIJ) con materiales livianos | D82: TOYOTA | E82: FORTUNER [2] 2.8L TP 2800CC TD 7AB 4X4 EURO IV | F82: 9008226 | G82: =VLOOKUP(F82,[4]Hoja1!$A$2:$B$14258,2,FALSE) -> 176100000 | H82: 0.01 | I82: 0.015 | J82: 0.017 | K82: 0.02 | L82: 0.025 | M82: 0.03 | O82: 1
B83: UNION TEMPORAL YOKOMOTOR S.A. - BLINSECURITY DE COLOMBIA LTDA - GMW SECURITY RENT A CAR LTDA | C83: Blindaje nivel IIIA (NIJ) con materiales livianos | D83: TOYOTA | E83: RAV4 [4] [FL] XROAD TP 2000CC 4X4 5P | F83: 9008209 | G83: =VLOOKUP(F83,[4]Hoja1!$A$2:$B$14258,2,FALSE) -> 123900000 | H83: 0.01 | I83: 0.015 | J83: 0.017 | K83: 0.02 | L83: 0.025 | M83: 0.03 | O83: 1
B84: UNION TEMPORAL YOKOMOTOR S.A. - BLINSECURITY DE COLOMBIA LTDA - GMW SECURITY RENT A CAR LTDA | C84: Blindaje nivel IIIA (NIJ) con materiales livianos | D84: TOYOTA | E84: RAV4 [4] [FL] XROAD TP 2500CC 4X4 5P | F84: 9008208 | G84: =VLOOKUP(F84,[4]Hoja1!$A$2:$B$14258,2,FALSE) -> 133900000 | H84: 0.01 | I84: 0.015 | J84: 0.017 | K84: 0.02 | L84: 0.025 | M84: 0.03 | O84: 1
B85: UNION TEMPORAL YOKOMOTOR S.A. - BLINSECURITY DE COLOMBIA LTDA - GMW SECURITY RENT A CAR LTDA | C85: Blindaje nivel IIIA (NIJ) con materiales livianos | D85: TOYOTA | E85: LAND CRUISER [LC 200] IMPERIAL TP 4600CC 8AB EURO IV | F85: 9008206 | G85: =VLOOKUP(F85,[4]Hoja1!$A$2:$B$14258,2,FALSE) -> 389600000 | H85: 0.01 | I85: 0.015 | J85: 0.017 | K85: 0.02 | L85: 0.025 | M85: 0.03 | O85: 1
B86: UNION TEMPORAL YOKOMOTOR S.A. - BLINSECURITY DE COLOMBIA LTDA - GMW SECURITY RENT A CAR LTDA | C86: Blindaje nivel IIIA (NIJ) con materiales livianos | D86: TOYOTA | E86: LAND CRUISER [LC 200] IMPERIAL TP 4500CC TD 8AB EURO IV | F86: 9008201 | G86: =VLOOKUP(F86,[4]Hoja1!$A$2:$B$14258,2,FALSE) -> 400400000 | H86: 0.01 | I86: 0.015 | J86: 0.017 | K86: 0.02 | L86: 0.025 | M86: 0.03 | O86: 1
B87: UNION TEMPORAL YOKOMOTOR S.A. - BLINSECURITY DE COLOMBIA LTDA - GMW SECURITY RENT A CAR LTDA | C87: Blindaje nivel IIIA (NIJ) con materiales livianos | D87: TOYOTA | E87: LAND CRUISER [LC 70] GRJ71 MT 4000CC V6 | F87: 9008154 | G87: =VLOOKUP(F87,[4]Hoja1!$A$2:$B$14258,2,FALSE) -> 189500000 | H87: 0.01 | I87: 0.015 | J87: 0.017 | K87: 0.02 | L87: 0.025 | M87: 0.03 | O87: 1
B88: UNION TEMPORAL YOKOMOTOR S.A. - BLINSECURITY DE COLOMBIA LTDA - GMW SECURITY RENT A CAR LTDA | C88: Blindaje nivel IIIA (NIJ) con materiales livianos | D88: TOYOTA | E88: LAND CRUISER [LC 70] GRJ76 MT 4000CC V6 5P | F88: 9008160 | G88: =VLOOKUP(F88,[4]Hoja1!$A$2:$B$14258,2,FALSE) -> 209500000 | H88: 0.01 | I88: 0.015 | J88: 0.017 | K88: 0.02 | L88: 0.025 | M88: 0.03 | O88: 1
B89: UNION TEMPORAL YOKOMOTOR S.A. - BLINSECURITY DE COLOMBIA LTDA - GMW SECURITY RENT A CAR LTDA | C89: Blindaje nivel IIIA (NIJ) con materiales livianos | D89: TOYOTA | E89: LAND CRUISER [LC 70] GRJ78 MT 4000CC V6 | F89: 9008143 | G89: =VLOOKUP(F89,[4]Hoja1!$A$2:$B$14258,2,FALSE) -> 185700000 | H89: 0.01 | I89: 0.015 | J89: 0.017 | K89: 0.02 | L89: 0.025 | M89: 0.03 | O89: 1
B90: UNION TEMPORAL YOKOMOTOR S.A. - BLINSECURITY DE COLOMBIA LTDA - GMW SECURITY RENT A CAR LTDA | C90: Blindaje nivel IIIA (NIJ) con materiales livianos | D90: TOYOTA | E90: LAND CRUISER [LC 70] GRJ79 MT 4000CC V6 EST | F90: 9020050 | G90: =VLOOKUP(F90,[4]Hoja1!$A$2:$B$14258,2,FALSE) -> 211400000 | H90: 0.01 | I90: 0.015 | J90: 0.017 | K90: 0.02 | L90: 0.025 | M90: 0.03 | O90: 1
B91: UNION TEMPORAL YOKOMOTOR S.A. - BLINSECURITY DE COLOMBIA LTDA - GMW SECURITY RENT A CAR LTDA | C91: Blindaje nivel IIIA (NIJ) con materiales livianos | D91: TOYOTA | E91: LAND CRUISER [LC 200] ELITE TP 4500CC TD 2AB | F91: 9008137 | G91: =VLOOKUP(F91,[4]Hoja1!$A$2:$B$14258,2,FALSE) -> 313900000 | H91: 0.01 | I91: 0.015 | J91: 0.017 | K91: 0.02 | L91: 0.025 | M91: 0.03 | O91: 1
B92: UNION TEMPORAL YOKOMOTOR S.A. - BLINSECURITY DE COLOMBIA LTDA - GMW SECURITY RENT A CAR LTDA | C92: Blindaje nivel IIIA (NIJ) con materiales livianos | D92: TOYOTA | E92: FORTUNER [2] 2.8L TP 2800CC TD 4X4 EURO IV TC | F92: 9008211 | G92: =VLOOKUP(F92,[4]Hoja1!$A$2:$B$14258,2,FALSE) -> 188500000 | H92: 0.01 | I92: 0.015 | J92: 0.017 | K92: 0.02 | L92: 0.025 | M92: 0.03 | O92: 1
B93: UNION TEMPORAL YOKOMOTOR S.A. - BLINSECURITY DE COLOMBIA LTDA - GMW SECURITY RENT A CAR LTDA | C93: Blindaje nivel IIIA (NIJ) con materiales livianos | D93: TOYOTA | E93: FORTUNER [2] 2.8L TP 2800CC TD 7AB 4X4 EURO IV | F93: 9008226 | G93: =VLOOKUP(F93,[4]Hoja1!$A$2:$B$14258,2,FALSE) -> 176100000 | H93: 0.01 | I93: 0.015 | J93: 0.017 | K93: 0.02 | L93: 0.025 | M93: 0.03 | O93: 1
B94: UNION TEMPORAL YOKOMOTOR S.A. - BLINSECURITY DE COLOMBIA LTDA - GMW SECURITY RENT A CAR LTDA | C94: Blindaje nivel III (NIJ) con materiales pesados | D94: TOYOTA | E94: PRADO [LC 150] TX [FL] TP 4000CC 5P 2AB | F94: 9008194 | G94: =VLOOKUP(F94,[4]Hoja1!$A$2:$B$14258,2,FALSE) -> 197900000 | H94: 0.01 | I94: 0.015 | J94: 0.017 | K94: 0.02 | L94: 0.025 | M94: 0.03 | O94: 1
B95: UNION TEMPORAL YOKOMOTOR S.A. - BLINSECURITY DE COLOMBIA LTDA - GMW SECURITY RENT A CAR LTDA | C95: Blindaje nivel III (NIJ) con materiales pesados | D95: TOYOTA | E95: PRADO [LC 150] TX [FL] TP 3000CC 5P TD EURO IV | F95: 9008222 | G95: =VLOOKUP(F95,[4]Hoja1!$A$2:$B$14258,2,FALSE) -> 224300000 | H95: 0.01 | I95: 0.015 | J95: 0.017 | K95: 0.02 | L95: 0.025 | M95: 0.03 | O95: 1
B96: UNION TEMPORAL YOKOMOTOR S.A. - BLINSECURITY DE COLOMBIA LTDA - GMW SECURITY RENT A CAR LTDA | C96: Blindaje nivel III (NIJ) con materiales pesados | D96: TOYOTA | E96: PRADO [LC 150] TX-L [FL] TP 4000CC 5P CT TC | F96: 9008221 | G96: =VLOOKUP(F96,[4]Hoja1!$A$2:$B$14258,2,FALSE) -> 219900000 | H96: 0.01 | I96: 0.015 | J96: 0.017 | K96: 0.02 | L96: 0.025 | M96: 0.03 | O96: 1
B97: UNION TEMPORAL YOKOMOTOR S.A. - BLINSECURITY DE COLOMBIA LTDA - GMW SECURITY RENT A CAR LTDA | C97: Blindaje nivel III (NIJ) con materiales pesados | D97: TOYOTA | E97: PRADO [LC 150] TX-L [FL] TP 3000CC 5P TD EURO IV | F97: 9008220 | G97: =VLOOKUP(F97,[4]Hoja1!$A$2:$B$14258,2,FALSE) -> 228600000 | H97: 0.01 | I97: 0.015 | J97: 0.017 | K97: 0.02 | L97: 0.025 | M97: 0.03 | O97: 1
B98: UNION TEMPORAL YOKOMOTOR S.A. - BLINSECURITY DE COLOMBIA LTDA - GMW SECURITY RENT A CAR LTDA | C98: Blindaje nivel III (NIJ) con materiales pesados | D98: TOYOTA | E98: 4RUNNER [5] LIMITED [FL] TP 4000CC 6AB | F98: 9008204 | G98: =VLOOKUP(F98,[4]Hoja1!$A$2:$B$14258,2,FALSE) -> 202900000 | H98: 0.01 | I98: 0.015 | J98: 0.017 | K98: 0.02 | L98: 0.025 | M98: 0.03 | O98: 1
B99: UNION TEMPORAL YOKOMOTOR S.A. - BLINSECURITY DE COLOMBIA LTDA - GMW SECURITY RENT A CAR LTDA | C99: Blindaje nivel III (NIJ) con materiales pesados | D99: TOYOTA | E99: 4RUNNER [5] SR5 [FL] TP 4000CC 6AB | F99: 9008205 | G99: =VLOOKUP(F99,[4]Hoja1!$A$2:$B$14258,2,FALSE) -> 172500000 | H99: 0.01 | I99: 0.015 | J99: 0.017 | K99: 0.02 | L99: 0.025 | M99: 0.03 | O99: 1
B100: UNION TEMPORAL YOKOMOTOR S.A. - BLINSECURITY DE COLOMBIA LTDA - GMW SECURITY RENT A CAR LTDA | C100: Blindaje nivel III (NIJ) con materiales pesados | D100: TOYOTA | E100: FORTUNER [2] 2.8L TP 2800CC TD 7AB 4X4 EURO IV | F100: 9008226 | G100: =VLOOKUP(F100,[4]Hoja1!$A$2:$B$14258,2,FALSE) -> 176100000 | H100: 0.01 | I100: 0.015 | J100: 0.017 | K100: 0.02 | L100: 0.025 | M100: 0.03 | O100: 1
B101: UNION TEMPORAL YOKOMOTOR S.A. - BLINSECURITY DE COLOMBIA LTDA - GMW SECURITY RENT A CAR LTDA | C101: Blindaje nivel III (NIJ) con materiales pesados | D101: TOYOTA | E101: LAND CRUISER [LC 200] IMPERIAL TP 4600CC 8AB EURO IV | F101: 9008206 | G101: =VLOOKUP(F101,[4]Hoja1!$A$2:$B$14258,2,FALSE) -> 389600000 | H101: 0.01 | I101: 0.015 | J101: 0.017 | K101: 0.02 | L101: 0.025 | M101: 0.03 | O101: 1
B102: UNION TEMPORAL YOKOMOTOR S.A. - BLINSECURITY DE COLOMBIA LTDA - GMW SECURITY RENT A CAR LTDA | C102: Blindaje nivel III (NIJ) con materiales pesados | D102: TOYOTA | E102: LAND CRUISER [LC 200] IMPERIAL TP 4500CC TD 8AB EURO IV | F102: 9008201 | G102: =VLOOKUP(F102,[4]Hoja1!$A$2:$B$14258,2,FALSE) -> 400400000 | H102: 0.01 | I102: 0.015 | J102: 0.017 | K102: 0.02 | L102: 0.025 | M102: 0.03 | O102: 1
B103: UNION TEMPORAL YOKOMOTOR S.A. - BLINSECURITY DE COLOMBIA LTDA - GMW SECURITY RENT A CAR LTDA | C103: Blindaje nivel III (NIJ) con materiales pesados | D103: TOYOTA | E103: LAND CRUISER [LC 70] GRJ71 MT 4000CC V6 | F103: 9008154 | G103: =VLOOKUP(F103,[4]Hoja1!$A$2:$B$14258,2,FALSE) -> 189500000 | H103: 0.01 | I103: 0.015 | J103: 0.017 | K103: 0.02 | L103: 0.025 | M103: 0.03 | O103: 1
B104: UNION TEMPORAL YOKOMOTOR S.A. - BLINSECURITY DE COLOMBIA LTDA - GMW SECURITY RENT A CAR LTDA | C104: Blindaje nivel III (NIJ) con materiales pesados | D104: TOYOTA | E104: LAND CRUISER [LC 70] GRJ76 MT 4000CC V6 5P | F104: 9008160 | G104: =VLOOKUP(F104,[4]Hoja1!$A$2:$B$14258,2,FALSE) -> 209500000 | H104: 0.01 | I104: 0.015 | J104: 0.017 | K104: 0.02 | L104: 0.025 | M104: 0.03 | O104: 1
B105: UNION TEMPORAL YOKOMOTOR S.A. - BLINSECURITY DE COLOMBIA LTDA - GMW SECURITY RENT A CAR LTDA | C105: Blindaje nivel III (NIJ) con materiales pesados | D105: TOYOTA | E105: LAND CRUISER [LC 70] GRJ78 MT 4000CC V6 | F105: 9008143 | G105: =VLOOKUP(F105,[4]Hoja1!$A$2:$B$14258,2,FALSE) -> 185700000 | H105: 0.01 | I105: 0.015 | J105: 0.017 | K105: 0.02 | L105: 0.025 | M105: 0.03 | O105: 1
B106: UNION TEMPORAL YOKOMOTOR S.A. - BLINSECURITY DE COLOMBIA LTDA - GMW SECURITY RENT A CAR LTDA | C106: Blindaje nivel III (NIJ) con materiales pesados | D106: TOYOTA | E106: LAND CRUISER [LC 70] GRJ79 MT 4000CC V6 EST | F106: 9020050 | G106: =VLOOKUP(F106,[4]Hoja1!$A$2:$B$14258,2,FALSE) -> 211400000 | H106: 0.01 | I106: 0.015 | J106: 0.017 | K106: 0.02 | L106: 0.025 | M106: 0.03 | O106: 1
B107: UNION TEMPORAL YOKOMOTOR S.A. - BLINSECURITY DE COLOMBIA LTDA - GMW SECURITY RENT A CAR LTDA | C107: Blindaje nivel III (NIJ) con materiales pesados | D107: TOYOTA | E107: LAND CRUISER [LC 200] ELITE TP 4500CC TD 2AB | F107: 9008137 | G107: =VLOOKUP(F107,[4]Hoja1!$A$2:$B$14258,2,FALSE) -> 313900000 | H107: 0.01 | I107: 0.015 | J107: 0.017 | K107: 0.02 | L107: 0.025 | M107: 0.03 | O107: 1
B108: UNION TEMPORAL YOKOMOTOR S.A. - BLINSECURITY DE COLOMBIA LTDA - GMW SECURITY RENT A CAR LTDA | C108: Blindaje nivel III (NIJ) con materiales pesados | D108: TOYOTA | E108: FORTUNER [2] 2.8L TP 2800CC TD 4X4 EURO IV TC | F108: 9008211 | G108: =VLOOKUP(F108,[4]Hoja1!$A$2:$B$14258,2,FALSE) -> 188500000 | H108: 0.01 | I108: 0.015 | J108: 0.017 | K108: 0.02 | L108: 0.025 | M108: 0.03 | O108: 1
B109: UNION TEMPORAL YOKOMOTOR S.A. - BLINSECURITY DE COLOMBIA LTDA - GMW SECURITY RENT A CAR LTDA | C109: Blindaje nivel III (NIJ) con materiales pesados | D109: TOYOTA | E109: FORTUNER [2] 2.8L MT 2800CC TD 4X4 EURO IV | F109: 9008213 | G109: =VLOOKUP(F109,[4]Hoja1!$A$2:$B$14258,2,FALSE) -> 167300000 | H109: 0.01 | I109: 0.015 | J109: 0.017 | K109: 0.02 | L109: 0.025 | M109: 0.03 | O109: 1
B110: UNION TEMPORAL YOKOMOTOR S.A. - BLINSECURITY DE COLOMBIA LTDA - GMW SECURITY RENT A CAR LTDA | C110: Blindaje nivel III (NIJ) con materiales livianos | D110: TOYOTA | E110: PRADO [LC 150] TX [FL] TP 4000CC 5P 2AB | F110: 9008194 | G110: =VLOOKUP(F110,[4]Hoja1!$A$2:$B$14258,2,FALSE) -> 197900000 | H110: 0.01 | I110: 0.015 | J110: 0.017 | K110: 0.02 | L110: 0.025 | M110: 0.03 | O110: 1
B111: UNION TEMPORAL YOKOMOTOR S.A. - BLINSECURITY DE COLOMBIA LTDA - GMW SECURITY RENT A CAR LTDA | C111: Blindaje nivel III (NIJ) con materiales livianos | D111: TOYOTA | E111: PRADO [LC 150] TX [FL] TP 3000CC 5P TD EURO IV | F111: 9008222 | G111: =VLOOKUP(F111,[4]Hoja1!$A$2:$B$14258,2,FALSE) -> 224300000 | H111: 0.01 | I111: 0.015 | J111: 0.017 | K111: 0.02 | L111: 0.025 | M111: 0.03 | O111: 1
B112: UNION TEMPORAL YOKOMOTOR S.A. - BLINSECURITY DE COLOMBIA LTDA - GMW SECURITY RENT A CAR LTDA | C112: Blindaje nivel III (NIJ) con materiales livianos | D112: TOYOTA | E112: PRADO [LC 150] TX-L [FL] TP 4000CC 5P CT TC | F112: 9008221 | G112: =VLOOKUP(F112,[4]Hoja1!$A$2:$B$14258,2,FALSE) -> 219900000 | H112: 0.01 | I112: 0.015 | J112: 0.017 | K112: 0.02 | L112: 0.025 | M112: 0.03 | O112: 1
B113: UNION TEMPORAL YOKOMOTOR S.A. - BLINSECURITY DE COLOMBIA LTDA - GMW SECURITY RENT A CAR LTDA | C113: Blindaje nivel III (NIJ) con materiales livianos | D113: TOYOTA | E113: PRADO [LC 150] TX-L [FL] TP 3000CC 5P TD EURO IV | F113: 9008220 | G113: =VLOOKUP(F113,[4]Hoja1!$A$2:$B$14258,2,FALSE) -> 228600000 | H113: 0.01 | I113: 0.015 | J113: 0.017 | K113: 0.02 | L113: 0.025 | M113: 0.03 | O113: 1
B114: UNION TEMPORAL YOKOMOTOR S.A. - BLINSECURITY DE COLOMBIA LTDA - GMW SECURITY RENT A CAR LTDA | C114: Blindaje nivel III (NIJ) con materiales livianos | D114: TOYOTA | E114: 4RUNNER [5] LIMITED [FL] TP 4000CC 6AB | F114: 9008204 | G114: =VLOOKUP(F114,[4]Hoja1!$A$2:$B$14258,2,FALSE) -> 202900000 | H114: 0.01 | I114: 0.015 | J114: 0.017 | K114: 0.02 | L114: 0.025 | M114: 0.03 | O114: 1
B115: UNION TEMPORAL YOKOMOTOR S.A. - BLINSECURITY DE COLOMBIA LTDA - GMW SECURITY RENT A CAR LTDA | C115: Blindaje nivel III (NIJ) con materiales livianos | D115: TOYOTA | E115: 4RUNNER [5] SR5 [FL] TP 4000CC 6AB | F115: 9008205 | G115: =VLOOKUP(F115,[4]Hoja1!$A$2:$B$14258,2,FALSE) -> 172500000 | H115: 0.01 | I115: 0.015 | J115: 0.017 | K115: 0.02 | L115: 0.025 | M115: 0.03 | O115: 1
B116: UNION TEMPORAL YOKOMOTOR S.A. - BLINSECURITY DE COLOMBIA LTDA - GMW SECURITY RENT A CAR LTDA | C116: Blindaje nivel III (NIJ) con materiales livianos | D116: TOYOTA | E116: FORTUNER [2] 2.8L TP 2800CC TD 7AB 4X4 EURO IV | F116: 9008226 | G116: =VLOOKUP(F116,[4]Hoja1!$A$2:$B$14258,2,FALSE) -> 176100000 | H116: 0.01 | I116: 0.015 | J116: 0.017 | K116: 0.02 | L116: 0.025 | M116: 0.03 | O116: 1
B117: UNION TEMPORAL YOKOMOTOR S.A. - BLINSECURITY DE COLOMBIA LTDA - GMW SECURITY RENT A CAR LTDA | C117: Blindaje nivel III (NIJ) con materiales livianos | D117: TOYOTA | E117: LAND CRUISER [LC 200] IMPERIAL TP 4600CC 8AB EURO IV | F117: 9008206 | G117: =VLOOKUP(F117,[4]Hoja1!$A$2:$B$14258,2,FALSE) -> 389600000 | H117: 0.01 | I117: 0.015 | J117: 0.017 | K117: 0.02 | L117: 0.025 | M117: 0.03 | O117: 1
B118: UNION TEMPORAL YOKOMOTOR S.A. - BLINSECURITY DE COLOMBIA LTDA - GMW SECURITY RENT A CAR LTDA | C118: Blindaje nivel III (NIJ) con materiales livianos | D118: TOYOTA | E118: LAND CRUISER [LC 200] IMPERIAL TP 4500CC TD 8AB EURO IV | F118: 9008201 | G118: =VLOOKUP(F118,[4]Hoja1!$A$2:$B$14258,2,FALSE) -> 400400000 | H118: 0.01 | I118: 0.015 | J118: 0.017 | K118: 0.02 | L118: 0.025 | M118: 0.03 | O118: 1
B119: UNION TEMPORAL YOKOMOTOR S.A. - BLINSECURITY DE COLOMBIA LTDA - GMW SECURITY RENT A CAR LTDA | C119: Blindaje nivel III (NIJ) con materiales livianos | D119: TOYOTA | E119: LAND CRUISER [LC 70] GRJ71 MT 4000CC V6 | F119: 9008154 | G119: =VLOOKUP(F119,[4]Hoja1!$A$2:$B$14258,2,FALSE) -> 189500000 | H119: 0.01 | I119: 0.015 | J119: 0.017 | K119: 0.02 | L119: 0.025 | M119: 0.03 | O119: 1
B120: UNION TEMPORAL YOKOMOTOR S.A. - BLINSECURITY DE COLOMBIA LTDA - GMW SECURITY RENT A CAR LTDA | C120: Blindaje nivel III (NIJ) con materiales livianos | D120: TOYOTA | E120: LAND CRUISER [LC 70] GRJ76 MT 4000CC V6 5P | F120: 9008160 | G120: =VLOOKUP(F120,[4]Hoja1!$A$2:$B$14258,2,FALSE) -> 209500000 | H120: 0.01 | I120: 0.015 | J120: 0.017 | K120: 0.02 | L120: 0.025 | M120: 0.03 | O120: 1
B121: UNION TEMPORAL YOKOMOTOR S.A. - BLINSECURITY DE COLOMBIA LTDA - GMW SECURITY RENT A CAR LTDA | C121: Blindaje nivel III (NIJ) con materiales livianos | D121: TOYOTA | E121: LAND CRUISER [LC 70] GRJ78 MT 4000CC V6 | F121: 9008143 | G121: =VLOOKUP(F121,[4]Hoja1!$A$2:$B$14258,2,FALSE) -> 185700000 | H121: 0.01 | I121: 0.015 | J121: 0.017 | K121: 0.02 | L121: 0.025 | M121: 0.03 | O121: 1
B122: UNION TEMPORAL YOKOMOTOR S.A. - BLINSECURITY DE COLOMBIA LTDA - GMW SECURITY RENT A CAR LTDA | C122: Blindaje nivel III (NIJ) con materiales livianos | D122: TOYOTA | E122: LAND CRUISER [LC 70] GRJ79 MT 4000CC V6 EST | F122: 9020050 | G122: =VLOOKUP(F122,[4]Hoja1!$A$2:$B$14258,2,FALSE) -> 211400000 | H122: 0.01 | I122: 0.015 | J122: 0.017 | K122: 0.02 | L122: 0.025 | M122: 0.03 | O122: 1
B123: UNION TEMPORAL YOKOMOTOR S.A. - BLINSECURITY DE COLOMBIA LTDA - GMW SECURITY RENT A CAR LTDA | C123: Blindaje nivel III (NIJ) con materiales livianos | D123: TOYOTA | E123: LAND CRUISER [LC 200] ELITE TP 4500CC TD 2AB | F123: 9008137 | G123: =VLOOKUP(F123,[4]Hoja1!$A$2:$B$14258,2,FALSE) -> 313900000 | H123: 0.01 | I123: 0.015 | J123: 0.017 | K123: 0.02 | L123: 0.025 | M123: 0.03 | O123: 1
B124: UNION TEMPORAL YOKOMOTOR S.A. - BLINSECURITY DE COLOMBIA LTDA - GMW SECURITY RENT A CAR LTDA | C124: Blindaje nivel III (NIJ) con materiales livianos | D124: TOYOTA | E124: FORTUNER [2] 2.8L TP 2800CC TD 4X4 EURO IV TC | F124: 9008211 | G124: =VLOOKUP(F124,[4]Hoja1!$A$2:$B$14258,2,FALSE) -> 188500000 | H124: 0.01 | I124: 0.015 | J124: 0.017 | K124: 0.02 | L124: 0.025 | M124: 0.03 | O124: 1
B125: UNION TEMPORAL YOKOMOTOR S.A. - BLINSECURITY DE COLOMBIA LTDA - GMW SECURITY RENT A CAR LTDA | C125: Blindaje nivel III (NIJ) con materiales livianos | D125: TOYOTA | E125: FORTUNER [2] 2.8L MT 2800CC TD 4X4 EURO IV | F125: 9008213 | G125: =VLOOKUP(F125,[4]Hoja1!$A$2:$B$14258,2,FALSE) -> 167300000 | H125: 0.01 | I125: 0.015 | J125: 0.017 | K125: 0.02 | L125: 0.025 | M125: 0.03 | O125: 1
B126: UNION TEMPORAL YOKOMOTOR S.A. - BLINSECURITY DE COLOMBIA LTDA - GMW SECURITY RENT A CAR LTDA | C126: Blindaje nivel IV (NIJ) con materiales pesados | D126: TOYOTA | E126: LAND CRUISER [LC 200] IMPERIAL TP 4600CC 8AB EURO IV | F126: 9008206 | G126: =VLOOKUP(F126,[4]Hoja1!$A$2:$B$14258,2,FALSE) -> 389600000 | H126: 0.01 | I126: 0.015 | J126: 0.017 | K126: 0.02 | L126: 0.025 | M126: 0.03 | O126: 1
B127: UNION TEMPORAL YOKOMOTOR S.A. - BLINSECURITY DE COLOMBIA LTDA - GMW SECURITY RENT A CAR LTDA | C127: Blindaje nivel IV (NIJ) con materiales pesados | D127: TOYOTA | E127: LAND CRUISER [LC 200] IMPERIAL TP 4500CC TD 8AB EURO IV | F127: 9008201 | G127: =VLOOKUP(F127,[4]Hoja1!$A$2:$B$14258,2,FALSE) -> 400400000 | H127: 0.01 | I127: 0.015 | J127: 0.017 | K127: 0.02 | L127: 0.025 | M127: 0.03 | O127: 1
B128: UNION TEMPORAL YOKOMOTOR S.A. - BLINSECURITY DE COLOMBIA LTDA - GMW SECURITY RENT A CAR LTDA | C128: Blindaje nivel IV (NIJ) con materiales pesados | D128: TOYOTA | E128: LAND CRUISER [LC 70] GRJ78 MT 4000CC V6 | F128: 9008143 | G128: =VLOOKUP(F128,[4]Hoja1!$A$2:$B$14258,2,FALSE) -> 185700000 | H128: 0.01 | I128: 0.015 | J128: 0.017 | K128: 0.02 | L128: 0.025 | M128: 0.03 | O128: 1
B129: UNION TEMPORAL YOKOMOTOR S.A. - BLINSECURITY DE COLOMBIA LTDA - GMW SECURITY RENT A CAR LTDA | C129: Blindaje nivel IV (NIJ) con materiales pesados | D129: TOYOTA | E129: LAND CRUISER [LC 70] GRJ79 MT 4000CC V6 EST | F129: 9020050 | G129: =VLOOKUP(F129,[4]Hoja1!$A$2:$B$14258,2,FALSE) -> 211400000 | H129: 0.01 | I129: 0.015 | J129: 0.017 | K129: 0.02 | L129: 0.025 | M129: 0.03 | O129: 1
B130: UNION TEMPORAL YOKOMOTOR S.A. - BLINSECURITY DE COLOMBIA LTDA - GMW SECURITY RENT A CAR LTDA | C130: Blindaje nivel IV (NIJ) con materiales pesados | D130: TOYOTA | E130: LAND CRUISER [LC 200] ELITE TP 4500CC TD 2AB | F130: 9008137 | G130: =VLOOKUP(F130,[4]Hoja1!$A$2:$B$14258,2,FALSE) -> 313900000 | H130: 0.01 | I130: 0.015 | J130: 0.017 | K130: 0.02 | L130: 0.025 | M130: 0.03 | O130: 1
B131: UNION TEMPORAL YOKOMOTOR S.A. - BLINSECURITY DE COLOMBIA LTDA - GMW SECURITY RENT A CAR LTDA | C131: Blindaje nivel IV (NIJ) con materiales pesados | D131: TOYOTA | E131: LAND CRUISER [LC 70] GRJ71 MT 4000CC V6 | F131: 9008154 | G131: =VLOOKUP(F131,[4]Hoja1!$A$2:$B$14258,2,FALSE) -> 189500000 | H131: 0.01 | I131: 0.015 | J131: 0.017 | K131: 0.02 | L131: 0.025 | M131: 0.03 | O131: 1
B132: UNION TEMPORAL YOKOMOTOR S.A. - BLINSECURITY DE COLOMBIA LTDA - GMW SECURITY RENT A CAR LTDA | C132: Blindaje nivel IV (NIJ) con materiales pesados | D132: TOYOTA | E132: LAND CRUISER [LC 70] GRJ76 MT 4000CC V6 5P | F132: 9008160 | G132: =VLOOKUP(F132,[4]Hoja1!$A$2:$B$14258,2,FALSE) -> 209500000 | H132: 0.01 | I132: 0.015 | J132: 0.017 | K132: 0.02 | L132: 0.025 | M132: 0.03 | O132: 1
B133: UNION TEMPORAL YOKOMOTOR S.A. - BLINSECURITY DE COLOMBIA LTDA - GMW SECURITY RENT A CAR LTDA | C133: Blindaje nivel IV (NIJ) con materiales livianos | D133: TOYOTA | E133: LAND CRUISER [LC 200] IMPERIAL TP 4600CC 8AB EURO IV | F133: 9008206 | G133: =VLOOKUP(F133,[4]Hoja1!$A$2:$B$14258,2,FALSE) -> 389600000 | H133: 0.01 | I133: 0.015 | J133: 0.017 | K133: 0.02 | L133: 0.025 | M133: 0.03 | O133: 1
B134: UNION TEMPORAL YOKOMOTOR S.A. - BLINSECURITY DE COLOMBIA LTDA - GMW SECURITY RENT A CAR LTDA | C134: Blindaje nivel IV (NIJ) con materiales livianos | D134: TOYOTA | E134: LAND CRUISER [LC 200] IMPERIAL TP 4500CC TD 8AB EURO IV | F134: 9008201 | G134: =VLOOKUP(F134,[4]Hoja1!$A$2:$B$14258,2,FALSE) -> 400400000 | H134: 0.01 | I134: 0.015 | J134: 0.017 | K134: 0.02 | L134: 0.025 | M134: 0.03 | O134: 1
B135: UNION TEMPORAL YOKOMOTOR S.A. - BLINSECURITY DE COLOMBIA LTDA - GMW SECURITY RENT A CAR LTDA | C135: Blindaje nivel IV (NIJ) con materiales livianos | D135: TOYOTA | E135: LAND CRUISER [LC 70] GRJ78 MT 4000CC V6 | F135: 9008143 | G135: =VLOOKUP(F135,[4]Hoja1!$A$2:$B$14258,2,FALSE) -> 185700000 | H135: 0.01 | I135: 0.015 | J135: 0.017 | K135: 0.02 | L135: 0.025 | M135: 0.03 | O135: 1
B136: UNION TEMPORAL YOKOMOTOR S.A. - BLINSECURITY DE COLOMBIA LTDA - GMW SECURITY RENT A CAR LTDA | C136: Blindaje nivel IV (NIJ) con materiales livianos | D136: TOYOTA | E136: LAND CRUISER [LC 70] GRJ79 MT 4000CC V6 EST | F136: 9020050 | G136: =VLOOKUP(F136,[4]Hoja1!$A$2:$B$14258,2,FALSE) -> 211400000 | H136: 0.01 | I136: 0.015 | J136: 0.017 | K136: 0.02 | L136: 0.025 | M136: 0.03 | O136: 1
B137: UNION TEMPORAL YOKOMOTOR S.A. - BLINSECURITY DE COLOMBIA LTDA - GMW SECURITY RENT A CAR LTDA | C137: Blindaje nivel IV (NIJ) con materiales livianos | D137: TOYOTA | E137: LAND CRUISER [LC 200] ELITE TP 4500CC TD 2AB | F137: 9008137 | G137: =VLOOKUP(F137,[4]Hoja1!$A$2:$B$14258,2,FALSE) -> 313900000 | H137: 0.01 | I137: 0.015 | J137: 0.017 | K137: 0.02 | L137: 0.025 | M137: 0.03 | O137: 1
B138: UNION TEMPORAL YOKOMOTOR S.A. - BLINSECURITY DE COLOMBIA LTDA - GMW SECURITY RENT A CAR LTDA | C138: Blindaje nivel IV (NIJ) con materiales livianos | D138: TOYOTA | E138: LAND CRUISER [LC 70] GRJ71 MT 4000CC V6 | F138: 9008154 | G138: =VLOOKUP(F138,[4]Hoja1!$A$2:$B$14258,2,FALSE) -> 189500000 | H138: 0.01 | I138: 0.015 | J138: 0.017 | K138: 0.02 | L138: 0.025 | M138: 0.03 | O138: 1
B139: UNION TEMPORAL YOKOMOTOR S.A. - BLINSECURITY DE COLOMBIA LTDA - GMW SECURITY RENT A CAR LTDA | C139: Blindaje nivel IV (NIJ) con materiales livianos | D139: TOYOTA | E139: LAND CRUISER [LC 70] GRJ76 MT 4000CC V6 5P | F139: 9008160 | G139: =VLOOKUP(F139,[4]Hoja1!$A$2:$B$14258,2,FALSE) -> 209500000 | H139: 0.01 | I139: 0.015 | J139: 0.017 | K139: 0.02 | L139: 0.025 | M139: 0.03 | O139: 1
B140: UNION TEMPORAL MOTORYSA - CASATORO - CENTIGON | C140: Blindaje nivel IIIA (NIJ) con materiales livianos | D140: MITSUBISHI | E140: MONTERO V97 WAGON AT 3800CC 5P TC CT | F140: 6208123 | G140: =VLOOKUP(F140,[4]Hoja1!$A$2:$B$14258,2,FALSE) -> 184900000 | H140: 0.08 | I140: 0.08 | J140: 0.08 | K140: 0.08 | L140: 0.08 | M140: 0.08 | O140: 1
B141: UNION TEMPORAL MOTORYSA - CASATORO - CENTIGON | C141: Blindaje nivel IIIA (NIJ) con materiales pesados | D141: MITSUBISHI | E141: MONTERO V97 WAGON AT 3800CC 5P TC CT | F141: 6208123 | G141: =VLOOKUP(F141,[4]Hoja1!$A$2:$B$14258,2,FALSE) -> 184900000 | H141: 0.08 | I141: 0.08 | J141: 0.08 | K141: 0.08 | L141: 0.08 | M141: 0.08 | O141: 1
B142: UNION TEMPORAL MOTORYSA - CASATORO - CENTIGON | C142: Blindaje nivel IIIA (NIJ) con materiales livianos | D142: MITSUBISHI | E142: MONTERO SPORT [5] 2.5 TP 2500CC 4X4 8AB TD TC | F142: 6208149 | G142: =VLOOKUP(F142,[4]Hoja1!$A$2:$B$14258,2,FALSE) -> 236800000 | H142: 0.08 | I142: 0.08 | J142: 0.08 | K142: 0.08 | L142: 0.08 | M142: 0.08 | O142: 1
B143: UNION TEMPORAL MOTORYSA - CASATORO - CENTIGON | C143: Blindaje nivel IIIA (NIJ) con materiales pesados | D143: MITSUBISHI | E143: MONTERO SPORT [5] 2.5 TP 2500CC 4X4 8AB TD TC | F143: 6208149 | G143: =VLOOKUP(F143,[4]Hoja1!$A$2:$B$14258,2,FALSE) -> 236800000 | H143: 0.08 | I143: 0.08 | J143: 0.08 | K143: 0.08 | L143: 0.08 | M143: 0.08 | O143: 1
B144: UNION TEMPORAL MOTORYSA - CASATORO - CENTIGON | C144: Blindaje nivel IIIA (NIJ) con materiales livianos | D144: MITSUBISHI | E144: MONTERO SPORT [5] 3.0 TP 3000CC 4X4 8AB TC | F144: 6208150 | G144: =VLOOKUP(F144,[4]Hoja1!$A$2:$B$14258,2,FALSE) -> 221900000 | H144: 0.08 | I144: 0.08 | J144: 0.08 | K144: 0.08 | L144: 0.08 | M144: 0.08 | O144: 1
B145: UNION TEMPORAL MOTORYSA - CASATORO - CENTIGON | C145: Blindaje nivel IIIA (NIJ) con materiales pesados | D145: MITSUBISHI | E145: MONTERO SPORT [5] 3.0 TP 3000CC 4X4 8AB TC | F145: 6208150 | G145: =VLOOKUP(F145,[4]Hoja1!$A$2:$B$14258,2,FALSE) -> 221900000 | H145: 0.08 | I145: 0.08 | J145: 0.08 | K145: 0.08 | L145: 0.08 | M145: 0.08 | O145: 1
B146: UNION TEMPORAL MOTORYSA - CASATORO - CENTIGON | C146: Blindaje nivel IIIA (NIJ) con materiales livianos | D146: VOLKSWAGEN | E146: TRANSPORTER KOMBI T6 MT 2000CC TD [9PSJ] AA | F146: 9206066 | G146: =VLOOKUP(F146,[4]Hoja1!$A$2:$B$14258,2,FALSE) -> 120000000 | H146: 0.02 | I146: 0.02 | J146: 0.02 | K146: 0.02 | L146: 0.02 | M146: 0.02 | O146: 1
B147: UNION TEMPORAL MOTORYSA - CASATORO - CENTIGON | C147: Blindaje nivel IIIA (NIJ) con materiales pesados | D147: VOLKSWAGEN | E147: TRANSPORTER KOMBI T6 MT 2000CC TD [9PSJ] AA | F147: 9206066 | G147: =VLOOKUP(F147,[4]Hoja1!$A$2:$B$14258,2,FALSE) -> 120000000 | H147: 0.02 | I147: 0.02 | J147: 0.02 | K147: 0.02 | L147: 0.02 | M147: 0.02 | O147: 1
B148: UNION TEMPORAL MOTORYSA - CASATORO - CENTIGON | C148: Blindaje nivel IIIA (NIJ) con materiales livianos | D148: MAZDA | E148: CX9 [2] GRAND TOURING LX TP 2500CC T 6AB TC CT | F148: 5606080 | G148: =VLOOKUP(F148,[4]Hoja1!$A$2:$B$14258,2,FALSE) -> 165100000 | H148: 0.01 | I148: 0.01 | J148: 0.01 | K148: 0.01 | L148: 0.01 | M148: 0.01 | O148: 1
B149: UNION TEMPORAL MOTORYSA - CASATORO - CENTIGON | C149: Blindaje nivel IIIA (NIJ) con materiales pesados | D149: MAZDA | E149: CX5 [FL] GRAND TOURING LX TP 2500CC 4X4 TC CT | F149: 5608006 | G149: =VLOOKUP(F149,[4]Hoja1!$A$2:$B$14258,2,FALSE) -> 111600000 | H149: 0.01 | I149: 0.01 | J149: 0.01 | K149: 0.01 | L149: 0.01 | M149: 0.01 | O149: 1
B150: UNION TEMPORAL MOTORYSA - CASATORO - CENTIGON | C150: Blindaje nivel IIIA (NIJ) con materiales livianos | D150: FORD | E150: EXPEDITION [3] [FL] LIMITED TP 3500CC | F150: 3008057 | G150: =VLOOKUP(F150,[4]Hoja1!$A$2:$B$14258,2,FALSE) -> 202900000 | H150: 0.02 | I150: 0.02 | J150: 0.02 | K150: 0.02 | L150: 0.02 | M150: 0.02 | O150: 1
B151: UNION TEMPORAL MOTORYSA - CASATORO - CENTIGON | C151: Blindaje nivel IIIA (NIJ) con materiales pesados | D151: FORD | E151: EXPEDITION [3] [FL] LIMITED TP 3500CC | F151: 3008057 | G151: =VLOOKUP(F151,[4]Hoja1!$A$2:$B$14258,2,FALSE) -> 202900000 | H151: 0.02 | I151: 0.02 | J151: 0.02 | K151: 0.02 | L151: 0.02 | M151: 0.02 | O151: 1
B152: UNION TEMPORAL MOTORYSA - CASATORO - CENTIGON | C152: Blindaje nivel III (NIJ) con materiales livianos | D152: FORD | E152: EXPEDITION [3] [FL] LIMITED TP 3500CC | F152: 3008057 | G152: =VLOOKUP(F152,[4]Hoja1!$A$2:$B$14258,2,FALSE) -> 202900000 | H152: 0.02 | I152: 0.02 | J152: 0.02 | K152: 0.02 | L152: 0.02 | M152: 0.02 | O152: 1
B153: UNION TEMPORAL MOTORYSA - CASATORO - CENTIGON | C153: Blindaje nivel III (NIJ) con materiales pesados | D153: FORD | E153: EXPEDITION [3] [FL] LIMITED TP 3500CC | F153: 3008057 | G153: =VLOOKUP(F153,[4]Hoja1!$A$2:$B$14258,2,FALSE) -> 202900000 | H153: 0.02 | I153: 0.02 | J153: 0.02 | K153: 0.02 | L153: 0.02 | M153: 0.02 | O153: 1
B154: UNION TEMPORAL MOTORYSA - CASATORO - CENTIGON | C154: Blindaje nivel IV (NIJ) con materiales livianos | D154: FORD | E154: EXPEDITION [3] [FL] LIMITED TP 3500CC | F154: 3008057 | G154: =VLOOKUP(F154,[4]Hoja1!$A$2:$B$14258,2,FALSE) -> 202900000 | H154: 0.02 | I154: 0.02 | J154: 0.02 | K154: 0.02 | L154: 0.02 | M154: 0.02 | O154: 1
B155: UNION TEMPORAL MOTORYSA - CASATORO - CENTIGON | C155: Blindaje nivel IV (NIJ) con materiales pesados | D155: FORD | E155: EXPEDITION [3] [FL] LIMITED TP 3500CC | F155: 3008057 | G155: =VLOOKUP(F155,[4]Hoja1!$A$2:$B$14258,2,FALSE) -> 202900000 | H155: 0.02 | I155: 0.02 | J155: 0.02 | K155: 0.02 | L155: 0.02 | M155: 0.02 | O155: 1
B156: UNION TEMPORAL MOTORYSA - CASATORO - CENTIGON | C156: Blindaje nivel IIIA (NIJ) con materiales livianos | D156: FORD | E156: EXPLORER [5] [FL] LIMITED TP 3500CC 4X4 | F156: 3008054 | G156: =VLOOKUP(F156,[4]Hoja1!$A$2:$B$14258,2,FALSE) -> 154000000 | H156: 0.02 | I156: 0.02 | J156: 0.02 | K156: 0.02 | L156: 0.02 | M156: 0.02 | O156: 1
B157: UNION TEMPORAL MOTORYSA - CASATORO - CENTIGON | C157: Blindaje nivel IIIA (NIJ) con materiales pesados | D157: FORD | E157: EXPLORER [5] [FL] LIMITED TP 3500CC 4X4 | F157: 3008054 | G157: =VLOOKUP(F157,[4]Hoja1!$A$2:$B$14258,2,FALSE) -> 154000000 | H157: 0.02 | I157: 0.02 | J157: 0.02 | K157: 0.02 | L157: 0.02 | M157: 0.02 | O157: 1
B158: UNION TEMPORAL MOTORYSA - CASATORO - CENTIGON | C158: Blindaje nivel IIIA (NIJ) con materiales livianos | D158: FORD | E158: EDGE [2] TITANIUM TP 3500CC | F158: 3008056 | G158: =VLOOKUP(F158,[4]Hoja1!$A$2:$B$14258,2,FALSE) -> 140000000 | H158: 0.02 | I158: 0.02 | J158: 0.02 | K158: 0.02 | L158: 0.02 | M158: 0.02 | O158: 1
B159: UNION TEMPORAL MOTORYSA - CASATORO - CENTIGON | C159: Blindaje nivel IIIA (NIJ) con materiales pesados | D159: FORD | E159: EDGE [2] TITANIUM TP 3500CC | F159: 3008056 | G159: =VLOOKUP(F159,[4]Hoja1!$A$2:$B$14258,2,FALSE) -> 140000000 | H159: 0.02 | I159: 0.02 | J159: 0.02 | K159: 0.02 | L159: 0.02 | M159: 0.02 | O159: 1
B160: UNION TEMPORAL MOTORYSA - CASATORO - CENTIGON | C160: Blindaje nivel IIIA (NIJ) con materiales livianos | D160: MERCEDES BENZ | E160: GLE 250 [W166] CDI 4MATIC TP 2200CC TD | F160: 5806051 | G160: =VLOOKUP(F160,[4]Hoja1!$A$2:$B$14258,2,FALSE) -> 219900000 | H160: 0.03 | I160: 0.03 | J160: 0.03 | K160: 0.03 | L160: 0.03 | M160: 0.03 | O160: 1
B161: UNION TEMPORAL MOTORYSA - CASATORO - CENTIGON | C161: Blindaje nivel IIIA (NIJ) con materiales pesados | D161: MERCEDES BENZ | E161: GLE 250 [W166] CDI 4MATIC TP 2200CC TD | F161: 5806051 | G161: =VLOOKUP(F161,[4]Hoja1!$A$2:$B$14258,2,FALSE) -> 219900000 | H161: 0.03 | I161: 0.03 | J161: 0.03 | K161: 0.03 | L161: 0.03 | M161: 0.03 | O161: 1
B162: UNION TEMPORAL MOTORYSA - CASATORO - CENTIGON | C162: Blindaje nivel IIIA (NIJ) con materiales livianos | D162: MERCEDES BENZ | E162: GLE 500 [W166] 4MATIC TP 4700CC V8 T | F162: 5806054 | G162: =VLOOKUP(F162,[4]Hoja1!$A$2:$B$14258,2,FALSE) -> 287900000 | H162: 0.03 | I162: 0.03 | J162: 0.03 | K162: 0.03 | L162: 0.03 | M162: 0.03 | O162: 1
B163: UNION TEMPORAL MOTORYSA - CASATORO - CENTIGON | C163: Blindaje nivel IIIA (NIJ) con materiales pesados | D163: MERCEDES BENZ | E163: GLE 500 [W166] 4MATIC TP 4700CC V8 T | F163: 5806054 | G163: =VLOOKUP(F163,[4]Hoja1!$A$2:$B$14258,2,FALSE) -> 287900000 | H163: 0.03 | I163: 0.03 | J163: 0.03 | K163: 0.03 | L163: 0.03 | M163: 0.03 | O163: 1
B164: UNION TEMPORAL MOTORYSA - CASATORO - CENTIGON | C164: Blindaje nivel III (NIJ) con materiales livianos | D164: MERCEDES BENZ | E164: GLE 500 [W166] 4MATIC TP 4700CC V8 T | F164: 5806054 | G164: =VLOOKUP(F164,[4]Hoja1!$A$2:$B$14258,2,FALSE) -> 287900000 | H164: 0.03 | I164: 0.03 | J164: 0.03 | K164: 0.03 | L164: 0.03 | M164: 0.03 | O164: 1
B165: UNION TEMPORAL MOTORYSA - CASATORO - CENTIGON | C165: Blindaje nivel III (NIJ) con materiales pesados | D165: MERCEDES BENZ | E165: GLE 500 [W166] 4MATIC TP 4700CC V8 T | F165: 5806054 | G165: =VLOOKUP(F165,[4]Hoja1!$A$2:$B$14258,2,FALSE) -> 287900000 | H165: 0.03 | I165: 0.03 | J165: 0.03 | K165: 0.03 | L165: 0.03 | M165: 0.03 | O165: 1
B166: UNION TEMPORAL MOTORYSA - CASATORO - CENTIGON | C166: Blindaje nivel IIIA (NIJ) con materiales livianos | D166: MERCEDES BENZ | E166: GLS 500 [X166] 4MATIC TP 4700CC V8 T | F166: 5806057 | G166: =VLOOKUP(F166,[4]Hoja1!$A$2:$B$14258,2,FALSE) -> 309900000 | H166: 0.03 | I166: 0.03 | J166: 0.03 | K166: 0.03 | L166: 0.03 | M166: 0.03 | O166: 1
B167: UNION TEMPORAL MOTORYSA - CASATORO - CENTIGON | C167: Blindaje nivel IIIA (NIJ) con materiales pesados | D167: MERCEDES BENZ | E167: GLS 500 [X166] 4MATIC TP 4700CC V8 T | F167: 5806057 | G167: =VLOOKUP(F167,[4]Hoja1!$A$2:$B$14258,2,FALSE) -> 309900000 | H167: 0.03 | I167: 0.03 | J167: 0.03 | K167: 0.03 | L167: 0.03 | M167: 0.03 | O167: 1
B168: UNION TEMPORAL MOTORYSA - CASATORO - CENTIGON | C168: Blindaje nivel III (NIJ) con materiales livianos | D168: MERCEDES BENZ | E168: GLS 500 [X166] 4MATIC TP 4700CC V8 T | F168: 5806057 | G168: =VLOOKUP(F168,[4]Hoja1!$A$2:$B$14258,2,FALSE) -> 309900000 | H168: 0.03 | I168: 0.03 | J168: 0.03 | K168: 0.03 | L168: 0.03 | M168: 0.03 | O168: 1
B169: UNION TEMPORAL MOTORYSA - CASATORO - CENTIGON | C169: Blindaje nivel III (NIJ) con materiales pesados | D169: MERCEDES BENZ | E169: GLS 500 [X166] 4MATIC TP 4700CC V8 T | F169: 5806057 | G169: =VLOOKUP(F169,[4]Hoja1!$A$2:$B$14258,2,FALSE) -> 309900000 | H169: 0.03 | I169: 0.03 | J169: 0.03 | K169: 0.03 | L169: 0.03 | M169: 0.03 | O169: 1
B170: DISTRIBUIDORA NISSAN S.A. | C170: Blindaje nivel III (NIJ) con materiales livianos | D170: NISSAN | E170: PATROL [Y62] KING TP 5600CC 5P | F170: 6408104 | G170: =VLOOKUP(F170,[4]Hoja1!$A$2:$B$14258,2,FALSE) -> 335000000 | H170: 0.02 | I170: 0.02 | J170: 0.02 | K170: 0.02 | L170: 0.02 | M170: 0.02 | O170: 1
B171: ALBORAUTOS S.A.S | C171: Blindaje nivel III (NIJ) con materiales pesados | D171: SUZUKI | E171: GRAND VITARA [3] [FL] SZ GLX SPORT MT 2400CC 5P 4X4 | F171: 8808032 | G171: =VLOOKUP(F171,[4]Hoja1!$A$2:$B$14258,2,FALSE) -> 81500000 | H171: 0.01 | I171: 0.03 | J171: 0.04 | K171: 0.05 | L171: 0.05 | M171: 0.05 | O171: 1
B172: ALBORAUTOS S.A.S | C172: Blindaje nivel III (NIJ) con materiales pesados | D172: SUZUKI | E172: GRAND VITARA [3] [FL] SZ GLX SPORT AT 2400CC 5P 4X4 | F172: 8808033 | G172: =VLOOKUP(F172,[4]Hoja1!$A$2:$B$14258,2,FALSE) -> 84500000 | H172: 0.01 | I172: 0.03 | J172: 0.04 | K172: 0.05 | L172: 0.05 | M172: 0.05 | O172: 1
B173: AUTOMAYOR S.A. | C173: Blindaje nivel IIIA (NIJ) con materiales pesados | D173: CHEVROLET | E173: TAHOE(4) LT TP 5300CC | F173: 1608057 | G173: =VLOOKUP(F173,[4]Hoja1!$A$2:$B$14258,2,FALSE) -> 267400000 | H173: 0.14 | I173: 0.14 | J173: 0.14 | K173: 0.14 | L173: 0.14 | M173: 0.14 | O173: 1
B174: AUTOMAYOR S.A. | C174: Blindaje nivel IIIA (NIJ) con materiales livianos | D174: CHEVROLET | E174: TAHOE(4) LT TP 5300CC | F174: 1608057 | G174: =VLOOKUP(F174,[4]Hoja1!$A$2:$B$14258,2,FALSE) -> 267400000 | H174: 0.14 | I174: 0.14 | J174: 0.14 | K174: 0.14 | L174: 0.14 | M174: 0.14 | O174: 1
B175: AUTOMAYOR S.A. | C175: Blindaje nivel III (NIJ) con materiales pesados | D175: CHEVROLET | E175: TAHOE(4) LT TP 5300CC | F175: 1608057 | G175: =VLOOKUP(F175,[4]Hoja1!$A$2:$B$14258,2,FALSE) -> 267400000 | H175: 0.14 | I175: 0.14 | J175: 0.14 | K175: 0.14 | L175: 0.14 | M175: 0.14 | O175: 1
B176: AUTOMAYOR S.A. | C176: Blindaje nivel III (NIJ) con materiales livianos | D176: CHEVROLET | E176: TAHOE(4) LT TP 5300CC | F176: 1608057 | G176: =VLOOKUP(F176,[4]Hoja1!$A$2:$B$14258,2,FALSE) -> 267400000 | H176: 0.14 | I176: 0.14 | J176: 0.14 | K176: 0.14 | L176: 0.14 | M176: 0.14 | O176: 1
B177: Unión Temporal Toyonorte Ltda. - Armor International De Colombia Ltda. – Blindex S.A. | C177: Blindaje nivel IIIA (NIJ) con materiales livianos | D177: TOYOTA | E177: PRADO [LC 150] TX-L [FL] [2] TP 3000CC 5P TD TC CT EURO IV | F177: 9008220 | G177: =VLOOKUP(F177,[4]Hoja1!$A$2:$B$14258,2,FALSE) -> 228600000 | H177: 0.01 | I177: 0.015 | J177: 0.017 | K177: 0.02 | L177: 0.025 | M177: 0.03 | O177: 1
B178: Unión Temporal Toyonorte Ltda. - Armor International De Colombia Ltda. – Blindex S.A. | C178: Blindaje nivel IIIA (NIJ) con materiales livianos | D178: TOYOTA | E178: PRADO [LC 150] TX-L [FL] [2] TP 4000CC 5P TC CT | F178: 9008221 | G178: =VLOOKUP(F178,[4]Hoja1!$A$2:$B$14258,2,FALSE) -> 219900000 | H178: 0.01 | I178: 0.015 | J178: 0.017 | K178: 0.02 | L178: 0.025 | M178: 0.03 | O178: 1
B179: Unión Temporal Toyonorte Ltda. - Armor International De Colombia Ltda. – Blindex S.A. | C179: Blindaje nivel IIIA (NIJ) con materiales pesados | D179: TOYOTA | E179: PRADO [LC 150] TX [FL] [2] TP 3000CC 5P 2AB EURO IV | F179: 9008222 | G179: =VLOOKUP(F179,[4]Hoja1!$A$2:$B$14258,2,FALSE) -> 224300000 | H179: 0.01 | I179: 0.015 | J179: 0.017 | K179: 0.02 | L179: 0.025 | M179: 0.03 | O179: 1
B180: Unión Temporal Toyonorte Ltda. - Armor International De Colombia Ltda. – Blindex S.A. | C180: Blindaje nivel IIIA (NIJ) con materiales pesados | D180: TOYOTA | E180: PRADO [LC 150] TX-L [FL] [2] TP 4000CC 5P TC CT | F180: 9008221 | G180: =VLOOKUP(F180,[4]Hoja1!$A$2:$B$14258,2,FALSE) -> 219900000 | H180: 0.01 | I180: 0.015 | J180: 0.017 | K180: 0.02 | L180: 0.025 | M180: 0.03 | O180: 1
B181: Unión Temporal Toyonorte Ltda. - Armor International De Colombia Ltda. – Blindex S.A. | C181: Blindaje nivel III (NIJ) con materiales livianos | D181: TOYOTA | E181: PRADO [LC 150] TX-L [FL] [2] TP 3000CC 5P TD TC CT EURO IV | F181: 9008220 | G181: =VLOOKUP(F181,[4]Hoja1!$A$2:$B$14258,2,FALSE) -> 228600000 | H181: 0.01 | I181: 0.015 | J181: 0.017 | K181: 0.02 | L181: 0.025 | M181: 0.03 | O181: 1
B182: Unión Temporal Toyonorte Ltda. - Armor International De Colombia Ltda. – Blindex S.A. | C182: Blindaje nivel III (NIJ) con materiales livianos | D182: TOYOTA | E182: PRADO [LC 150] TX-L [FL] [2] TP 4000CC 5P TC CT | F182: 9008221 | G182: =VLOOKUP(F182,[4]Hoja1!$A$2:$B$14258,2,FALSE) -> 219900000 | H182: 0.01 | I182: 0.015 | J182: 0.017 | K182: 0.02 | L182: 0.025 | M182: 0.03 | O182: 1
B183: Unión Temporal Toyonorte Ltda. - Armor International De Colombia Ltda. – Blindex S.A. | C183: Blindaje nivel III (NIJ) con materiales pesados | D183: TOYOTA | E183: PRADO [LC 150] TX-L [FL] [2] TP 3000CC 5P TD TC CT EURO IV | F183: 9008220 | G183: =VLOOKUP(F183,[4]Hoja1!$A$2:$B$14258,2,FALSE) -> 228600000 | H183: 0.01 | I183: 0.015 | J183: 0.017 | K183: 0.02 | L183: 0.025 | M183: 0.03 | O183: 1
B184: Unión Temporal Toyonorte Ltda. - Armor International De Colombia Ltda. – Blindex S.A. | C184: Blindaje nivel III (NIJ) con materiales pesados | D184: TOYOTA | E184: PRADO [LC 150] TX-L [FL] [2] TP 4000CC 5P TC CT | F184: 9008221 | G184: =VLOOKUP(F184,[4]Hoja1!$A$2:$B$14258,2,FALSE) -> 219900000 | H184: 0.01 | I184: 0.015 | J184: 0.017 | K184: 0.02 | L184: 0.025 | M184: 0.03 | O184: 1
B185: Unión Temporal Toyonorte Ltda. - Armor International De Colombia Ltda. – Blindex S.A. | C185: Blindaje nivel IIIA (NIJ) con materiales pesados | D185: TOYOTA | E185: PRADO [LC 150] TX-L [FL] [2] TP 3000CC 5P TD TC CT EURO IV | F185: 9008220 | G185: =VLOOKUP(F185,[4]Hoja1!$A$2:$B$14258,2,FALSE) -> 228600000 | H185: 0.01 | I185: 0.015 | J185: 0.017 | K185: 0.02 | L185: 0.025 | M185: 0.03 | O185: 1
B186: Unión Temporal Toyonorte Ltda. - Armor International De Colombia Ltda. – Blindex S.A. | C186: Blindaje nivel IIIA (NIJ) con materiales livianos | D186: TOYOTA | E186: PRADO [LC 150] TX [FL] [2] TP 3000CC 5P 2AB EURO IV | F186: 9008222 | G186: =VLOOKUP(F186,[4]Hoja1!$A$2:$B$14258,2,FALSE) -> 224300000 | H186: 0.01 | I186: 0.015 | J186: 0.017 | K186: 0.02 | L186: 0.025 | M186: 0.03 | O186: 1
B187: Unión Temporal Toyonorte Ltda. - Armor International De Colombia Ltda. – Blindex S.A. | C187: Blindaje nivel III (NIJ) con materiales pesados | D187: TOYOTA | E187: PRADO [LC 150] TX [FL] [2] TP 3000CC 5P 2AB EURO IV | F187: 9008222 | G187: =VLOOKUP(F187,[4]Hoja1!$A$2:$B$14258,2,FALSE) -> 224300000 | H187: 0.01 | I187: 0.015 | J187: 0.017 | K187: 0.02 | L187: 0.025 | M187: 0.03 | O187: 1
B188: Unión Temporal Toyonorte Ltda. - Armor International De Colombia Ltda. – Blindex S.A. | C188: Blindaje nivel III (NIJ) con materiales livianos | D188: TOYOTA | E188: PRADO [LC 150] TX [FL] [2] TP 3000CC 5P 2AB EURO IV | F188: 9008222 | G188: =VLOOKUP(F188,[4]Hoja1!$A$2:$B$14258,2,FALSE) -> 224300000 | H188: 0.01 | I188: 0.015 | J188: 0.017 | K188: 0.02 | L188: 0.025 | M188: 0.03 | O188: 1

Sheet Precios Blindaje Camperos
B1: Precios de Blindaje, Adecuaciones y Acsesorios
B2: Acuerdo Marco de Precios Vehículos Blindados LP-AMP-137-2017
B5: Tipo de Vehículo: Campero
A7: Marca | B7: Proveedor | C7: Tipo de Blindaje | D7: Precio del Mantenimiento Preventivo | E7: Precio del Blindaje | F7: Refuerzo de la suspensión | G7: Blindaje para el piso del Vehículo con materiales livianos | H7: Blindaje para el piso del Vehículo con materiales pesados | I7: Deflector de artefactos explosivos | J7: Blindaje para el techo del Vehículo con materiales livianos | K7: Blindaje para el techo del Vehículo con materiales pesados | L7: Refuerzo del sistema de frenos | M7: Intercomunicador interior/exterior del Vehículo tipo manos libres | N7: Centradores de puertas | O7: Protector metálico al carter | P7: Pito o claxon bitono | Q7: Luces tipo led de color rojo y azul en la parte delantera y trasera | R7: Cuatro luces estroboscópicas para señalización | S7: Adaptación de los vidrios de la zona de carga para camperos o camionetas | T7: Prueba balística | U7: Pintura (10% del exterior del Vehículo) | V7: Adhesivos de emblemas (por metro cuadrado) | W7: Barra estabilizadora | X7: Protector de platón | Y7: Alarma | Z7: Barra de luces, sistema de perifoneo y sirena | AA7: Sistema de videovigilancia | AB7: Dispositivo de localización vehicular AVL | AC7: Gancho trasero de fijación | AD7: Película de seguridad (por vidrio) | AE7: Radioteléfono alto desempeño | AF7: Radioteléfono sencillo | AG7: Sensor de reversa | AH7: Vidrio polarizado (por vidrio) | AI7: Llantas doble propósito | AJ7: Cojinería en cuero | AK7: Exploradoras adicionales | AL7: Winche y bomper | AM7: Sensor de parqueo (delantero)
A8: TOYOTA | B8: Unión Temporal Toyonorte Ltda. - Armor International De Colombia Ltda. – Blindex S.A. | C8: Blindaje nivel III (NIJ) con materiales livianos | D8: 18202320 | E8: 84800000 | F8: 1 | G8: 1 | H8: 1 | I8: 1 | J8: 1 | K8: 1 | L8: 1 | M8: 1 | N8: 1 | O8: 1 | P8: 1 | Q8: 1 | R8: 1 | S8: 1 | T8: 1 | U8: 598900 | V8: 106000 | W8: N/a | X8: N/a | Y8: 1 | Z8: 5278800 | AA8: 4028000 | AB8: 1176600 | AC8: 742000 | AD8: 42400 | AE8: 1865600 | AF8: 1865600 | AG8: 106000 | AH8: 42400 | AI8: 1643000 | AJ8: 1802000 | AK8: 487600 | AL8: 5989000 | AM8: 116600
A9: TOYOTA | B9: UNION TEMPORAL YOKOMOTOR S.A. - BLINSECURITY DE COLOMBIA LTDA - GMW SECURITY RENT A CAR LTDA | C9: Blindaje nivel III (NIJ) con materiales livianos | D9: 16200000 | E9: 100200000 | F9: 4400000 | G9: 1 | H9: 1 | I9: 1 | J9: 1 | K9: 1 | L9: 1000000 | M9: 1 | N9: 1 | O9: 1 | P9: 1 | Q9: 850000 | R9: 850000 | S9: 1 | T9: 500000 | U9: 617980 | V9: 139920 | W9: N/a | X9: N/a | Y9: 233200 | Z9: 5088000 | AA9: 5673120 | AB9: 1632400 | AC9: 903120 | AD9: 46640 | AE9: 3171520 | AF9: 2464500 | AG9: 318000 | AH9: 58300 | AI9: 954000 | AJ9: 2014000 | AK9: 543780 | AL9: 6042000 | AM9: 318000
A10: FORD | B10: UNION TEMPORAL MOTORYSA - CASATORO - CENTIGON | C10: Blindaje nivel IV (NIJ) con materiales pesados | D10: 17976106.46 | E10: 110839960 | F10: 6784000 | G10: 1590000 | H10: 1 | I10: 1908000 | J10: 2862000 | K10: 1 | L10: 5194000 | M10: 1 | N10: 1 | O10: 371000 | P10: 318000 | Q10: 848000 | R10: 954000 | S10: 477000 | T10: 508800 | U10: 591057.06 | V10: 302916.2 | W10: N/a | X10: N/a | Y10: 369322.02 | Z10: 6344290.8 | AA10: 3180000 | AB10: 1095813.16 | AC10: 338776 | AD10: 1 | AE10: 297604.54 | AF10: 2768685.02 | AG10: 1 | AH10: 1 | AI10: 3878805 | AJ10: 1 | AK10: 1674800 | AL10: 8988800 | AM10: 1
A11: NISSAN | B11: DISTRIBUIDORA NISSAN S.A. | C11: Blindaje nivel III (NIJ) con materiales livianos | D11: 6700000 | E11: 98074000 | F11: 5600000 | G11: 1 | H11: 1250000 | I11: 1800000 | J11: 1 | K11: 900000 | L11: 4900000 | M11: 1 | N11: 1 | O11: 350000 | P11: 300000 | Q11: 800000 | R11: 900000 | S11: 450000 | T11: 390000 | U11: 950000 | V11: 350000 | W11: N/a
A12: CHEVROLET | B12: AUTOMAYOR S.A. | C12: Blindaje nivel III (NIJ) con materiales livianos | D12: 26966400 | E12: 112360000 | F12: 5056200 | G12: 1 | H12: 1 | I12: 89888 | J12: 1 | K12: 1 | L12: 112360 | M12: 1 | N12: 1 | O12: 1 | P12: 1 | Q12: 1011240 | R12: 1348320 | S12: 1 | T12: 988768 | U12: N/a | V12: N/a | W12: 1 | X12: 1 | Y12: 449440 | Z12: 5977552 | AA12: 8988800 | AB12: 1573040 | AC12: 1235960 | AD12: 89888 | AE12: 5618000 | AF12: 3370800 | AG12: 1 | AH12: 89888 | AI12: 2247200 | AJ12: 1 | AK12: 1 | AL12: 7865200 | AM12: 1
A13: TOYOTA | B13: Unión Temporal Toyonorte Ltda. - Armor International De Colombia Ltda. – Blindex S.A. | C13: Blindaje nivel III (NIJ) con materiales pesados | D13: 18202320 | E13: 80560000 | F13: 1 | G13: 1 | H13: 1 | I13: 1 | J13: 1 | K13: 1 | L13: 1 | M13: 1 | N13: 1 | O13: 1 | P13: 1 | Q13: 1 | R13: 1 | S13: 1 | T13: 1 | U13: 598900 | V13: 106000 | W13: N/a | X13: N/a | Y13: 1 | Z13: 5278800 | AA13: 4028000 | AB13: 1176600 | AC13: 742000 | AD13: 42400 | AE13: 1865600 | AF13: 1865600 | AG13: 106000 | AH13: 42400 | AI13: 1643000 | AJ13: 1802000 | AK13: 487600 | AL13: 5989000 | AM13: 116600
A14: TOYOTA | B14: UNION TEMPORAL YOKOMOTOR S.A. - BLINSECURITY DE COLOMBIA LTDA - GMW SECURITY RENT A CAR LTDA | C14: Blindaje nivel III (NIJ) con materiales pesados | D14: 16200000 | E14: 81400000 | F14: 4400000 | G14: 1 | H14: 1 | I14: 1 | J14: 1 | K14: 1 | L14: 1000000 | M14: 1 | N14: 1 | O14: 1 | P14: 1 | Q14: 850000 | R14: 850000 | S14: 1 | T14: 500000 | U14: 617980 | V14: 139920 | W14: N/a | X14: N/a | Y14: 233200 | Z14: 5088000 | AA14: 5673120 | AB14: 1632400 | AC14: 903120 | AD14: 46640 | AE14: 3171520 | AF14: 2464500 | AG14: 318000 | AH14: 58300 | AI14: 954000 | AJ14: 2014000 | AK14: 543780 | AL14: 6042000 | AM14: 318000
A15: FORD | B15: UNION TEMPORAL MOTORYSA - CASATORO - CENTIGON | C15: Blindaje nivel IV (NIJ) con materiales livianos | D15: 17976106.46 | E15: 121179200 | F15: 6784000 | G15: 1 | H15: 1325000 | I15: 1908000 | J15: 1 | K15: 1272000 | L15: 5194000 | M15: 1 | N15: 1 | O15: 371000 | P15: 318000 | Q15: 848000 | R15: 954000 | S15: 477000 | T15: 508800 | U15: 591057.06 | V15: 302916.2 | W15: N/a | X15: N/a | Y15: 369322.02 | Z15: 6344290.8 | AA15: 3180000 | AB15: 1095813.16 | AC15: 338776 | AD15: 1 | AE15: 280759 | AF15: 2611967 | AG15: 1 | AH15: 1 | AI15: 3878805 | AJ15: 1 | AK15: 1674800 | AL15: 8988800 | AM15: 1
A16: SUZUKI | B16: ALBORAUTOS S.A.S | C16: Blindaje nivel III (NIJ) con materiales pesados | D16: 6259000 | E16: 72000000 | F16: 6256000 | G16: 3010717 | H16: 3010717 | I16: 2762500 | J16: 2146267 | K16: 1870000 | L16: 2443750 | M16: 1390396 | N16: 230000 | O16: 460000 | P16: 414000 | Q16: 766360 | R16: 965477 | S16: 782000 | T16: 908000 | U16: 617252 | V16: 169575 | W16: N/a | X16: 1 | Y16: 430919 | Z16: 8537469 | AA16: 8202194 | AB16: 1903988 | AC16: 1197001 | AD16: 77988 | AE16: 2415000 | AF16: 1722976 | AG16: 474810 | AH16: 77988 | AI16: 797999 | AJ16: 2693249 | AK16: 739129 | AL16: 10074751 | AM16: 498749
A17: CHEVROLET | B17: AUTOMAYOR S.A. | C17: Blindaje nivel III (NIJ) con materiales pesados | D17: 26966400 | E17: 92697000 | F17: 5056200 | G17: 1 | H17: 1 | I17: 89888 | J17: 1 | K17: 1 | L17: 112360 | M17: 1 | N17: 1 | O17: 1 | P17: 1 | Q17: 1011240 | R17: 1348320 | S17: 1 | T17: 988768 | U17: N/a | V17: N/a | W17: 1 | X17: 1 | Y17: 449440 | Z17: 5977552 | AA17: 8988800 | AB17: 1573040 | AC17: 1235960 | AD17: 89888 | AE17: 5618000 | AF17: 3370800 | AG17: 1 | AH17: 89888 | AI17: 2247200 | AJ17: 1 | AK17: 1 | AL17: 7865200 | AM17: 1
A18: TOYOTA | B18: Unión Temporal Toyonorte Ltda. - Armor International De Colombia Ltda. – Blindex S.A. | C18: Blindaje nivel IIIA (NIJ) con materiales livianos | D18: 18202320 | E18: 44520000 | F18: 1 | G18: 1 | H18: 1 | I18: 1 | J18: 1 | K18: 1 | L18: 1 | M18: 1 | N18: 1 | O18: 1 | P18: 1 | Q18: 1 | R18: 1 | S18: 1 | T18: 1 | U18: 598900 | V18: 106000 | W18: N/a | X18: N/a | Y18: 1 | Z18: 5278800 | AA18: 4028000 | AB18: 1176600 | AC18: 742000 | AD18: 42400 | AE18: 1865600 | AF18: 1865600 | AG18: 106000 | AH18: 42400 | AI18: 1643000 | AJ18: 1802000 | AK18: 487600 | AL18: 5989000 | AM18: 116600
A19: RENAULT | B19: 7m Group S.A. | C19: Blindaje nivel IIIA (NIJ) con materiales livianos | D19: 18982251.04 | E19: 50456000 | F19: 7801598.94 | G19: 3754540.14 | I19: 3444998.94 | J19: 2119998.94 | K19: 1589998.94 | L19: 3047498.94 | M19: 1842273.64 | N19: 304748.94 | O19: 609498.94 | P19: 548548.94 | Q19: 1015425.94 | R19: 1204037.04 | S19: 423998.94 | T19: 1006998.94 | U19: 507712.44 | V19: 406169.74 | W19: 280368.94 | X19: 754316.14 | Y19: 188578.24 | Z19: 5404971.8 | AA19: 6574163.46 | AB19: 1340072.14 | AC19: 580242.94 | AD19: 362662.04 | AE19: 3684548.34 | AF19: 2464498.94 | AG19: 317998.94 | AH19: 58298.94 | AI19: 953998.94 | AJ19: 1536998.94 | AK19: 543778.94 | AL19: 6041998.94 | AM19: 317998.94
A20: TOYOTA | B20: UNION TEMPORAL YOKOMOTOR S.A. - BLINSECURITY DE COLOMBIA LTDA - GMW SECURITY RENT A CAR LTDA | C20: Blindaje nivel IIIA (NIJ) con materiales livianos | D20: 16200000 | E20: 45000000 | F20: 4400000 | G20: 1 | H20: 1 | I20: 1 | J20: 1 | K20: 1 | L20: 1000000 | M20: 1 | N20: 1 | O20: 1 | P20: 1 | Q20: 850000 | R20: 850000 | S20: 1 | T20: 500000 | U20: 617980 | V20: 139920 | W20: N/a | X20: N/a | Y20: 233200 | Z20: 5088000 | AA20: 5673120 | AB20: 1632400 | AC20: 903120 | AD20: 46640 | AE20: 3171520 | AF20: 2464500 | AG20: 318000 | AH20: 58300 | AI20: 954000 | AJ20: 2014000 | AK20: 543780 | AL20: 6042000 | AM20: 318000
A21: MITSUBISHI | B21: UNION TEMPORAL MOTORYSA - CASATORO - CENTIGON | C21: Blindaje nivel IIIA (NIJ) con materiales pesados | D21: 21344067.78 | E21: 43411240 | F21: 636000 | G21: 1590000 | H21: 1 | I21: 1908000 | J21: 2862000 | K21: 1 | L21: 1 | M21: 1 | N21: 1 | O21: 371000 | P21: 318000 | Q21: 848000 | R21: 954000 | S21: 477000 | T21: 508800 | U21: 591057.06 | V21: 302916.2 | W21: N/a | X21: N/a | Y21: 369322.02 | Z21: 6344290.8 | AA21: 3180000 | AB21: 1095813.16 | AC21: 338776 | AD21: 1 | AE21: 297604.54 | AF21: 2768685.02 | AG21: 1 | AH21: 1 | AI21: =AI37*1.06 -> 1182112 | AJ21: 1 | AK21: 259021.6 | AL21: 5535934.8 | AM21: 107781.86
A22: CHEVROLET | B22: AUTOMAYOR S.A. | C22: Blindaje nivel IIIA (NIJ) con materiales livianos | D22: 26966400 | E22: 51123800 | F22: 5056200 | G22: 1 | H22: 1 | I22: 89888 | J22: 1 | K22: 1 | L22: 112360 | M22: 1 | N22: 1 | O22: 1 | P22: 1 | Q22: 1011240 | R22: 1348320 | S22: 1 | T22: 988768 | U22: N/a | V22: N/a | W22: 1 | X22: 1 | Y22: 449440 | Z22: 5977552 | AA22: 8988800 | AB22: 1573040 | AC22: 1235960 | AD22: 89888 | AE22: 5618000 | AF22: 3370800 | AG22: 1 | AH22: 89888 | AI22: 2247200 | AJ22: 1 | AK22: 1 | AL22: 7865200 | AM22: 1
A23: TOYOTA | B23: Unión Temporal Toyonorte Ltda. - Armor International De Colombia Ltda. – Blindex S.A. | C23: Blindaje nivel IIIA (NIJ) con materiales pesados | D23: 18202320 | E23: 39220000 | F23: 1 | G23: 1 | H23: 1 | I23: 1 | J23: 1 | K23: 1 | L23: 1 | M23: 1 | N23: 1 | O23: 1 | P23: 1 | Q23: 1 | R23: 1 | S23: 1 | T23: 1 | U23: 598900 | V23: 106000 | W23: N/a | X23: N/a | Y23: 1 | Z23: 5278800 | AA23: 4028000 | AB23: 1176600 | AC23: 742000 | AD23: 42400 | AE23: 1865600 | AF23: 1865600 | AG23: 106000 | AH23: 42400 | AI23: 1643000 | AJ23: 1802000 | AK23: 487600 | AL23: 5989000 | AM23: 116600
A24: TOYOTA | B24: UNION TEMPORAL YOKOMOTOR S.A. - BLINSECURITY DE COLOMBIA LTDA - GMW SECURITY RENT A CAR LTDA | C24: Blindaje nivel IIIA (NIJ) con materiales pesados | D24: 16200000 | E24: 39800000 | F24: 4400000 | G24: 1 | H24: 1 | I24: 1 | J24: 1 | K24: 1 | L24: 1000000 | M24: 1 | N24: 1 | O24: 1 | P24: 1 | Q24: 850000 | R24: 850000 | S24: 1 | T24: 500000 | U24: 617980 | V24: 139920 | W24: N/a | X24: N/a | Y24: 233200 | Z24: 5088000 | AA24: 5673120 | AB24: 1632400 | AC24: 903120 | AD24: 46640 | AE24: 3171520 | AF24: 2464500 | AG24: 318000 | AH24: 58300 | AI24: 954000 | AJ24: 2014000 | AK24: 543780 | AL24: 6042000 | AM24: 318000
A25: VOLKSWAGEN | B25: UNION TEMPORAL MOTORYSA - CASATORO - CENTIGON | C25: Blindaje nivel IIIA (NIJ) con materiales pesados | D25: 20940778.06 | E25: 43411240 | F25: 636000 | G25: 1590000 | H25: 1 | I25: 1908000 | J25: 2862000 | K25: 1 | L25: 1 | M25: 1 | N25: 1 | O25: 371000 | P25: 318000 | Q25: 848000 | R25: 954000 | S25: 477000 | T25: 508800 | U25: 591057.06 | V25: 302916.2 | W25: N/a | X25: N/a | Y25: 273476.82 | Z25: 6344290.8 | AA25: 3180000 | AB25: 1095813.16 | AC25: 713353.5 | AD25: 1 | AE25: 297604.54 | AF25: 2768685.02 | AG25: 300659.46 | AH25: 1 | AI25: 720800 | AJ25: 2946800 | AK25: 381600 | AL25: 5535934.8 | AM25: 201400
A26: CHEVROLET | B26: AUTOMAYOR S.A. | C26: Blindaje nivel IIIA (NIJ) con materiales pesados | D26: 26966400 | E26: 44719280 | F26: 5056200 | G26: 1 | H26: 1 | I26: 89888 | J26: 1 | K26: 1 | L26: 112360 | M26: 1 | N26: 1 | O26: 1 | P26: 1 | Q26: 1011240 | R26: 1348320 | S26: 1 | T26: 988768 | U26: N/a | V26: N/a | W26: 1 | X26: 1 | Y26: 449440 | Z26: 5977552 | AA26: 8988800 | AB26: 1573040 | AC26: 1235960 | AD26: 89888 | AE26: 5618000 | AF26: 3370800 | AG26: 1 | AH26: 89888 | AI26: 2247200 | AJ26: 1 | AK26: 1 | AL26: 7865200 | AM26: 1
A27: TOYOTA | B27: Unión Temporal Toyonorte Ltda. - Armor International De Colombia Ltda. – Blindex S.A. | C27: Blindaje nivel IV (NIJ) con materiales livianos | D27: 18202320 | E27: 111300000 | F27: 1 | G27: 1 | H27: 1 | I27: 4240000 | J27: 1 | K27: 1 | L27: 1 | M27: 1 | N27: 1 | O27: 1 | P27: 1 | Q27: 1 | R27: 1 | S27: 1 | T27: 1 | U27: 598900 | V27: 106000 | W27: N/a | X27: N/a | Y27: 1 | Z27: 5278800 | AA27: 4028000 | AB27: 1176600 | AC27: 742000 | AD27: 42400 | AE27: 1865600 | AF27: 1865600 | AG27: 106000 | AH27: 42400 | AI27: 1643000 | AJ27: 1802000 | AK27: 487600 | AL27: 5989000 | AM27: 116600
A28: TOYOTA | B28: UNION TEMPORAL YOKOMOTOR S.A. - BLINSECURITY DE COLOMBIA LTDA - GMW SECURITY RENT A CAR LTDA | C28: Blindaje nivel IV (NIJ) con materiales livianos | D28: 16200000 | E28: 116000000 | F28: 4400000 | G28: 1 | H28: 1 | I28: 1 | J28: 1 | K28: 1 | L28: 1000000 | M28: 1 | N28: 1 | O28: 1 | P28: 1 | Q28: 850000 | R28: 850000 | S28: 1 | T28: 500000 | U28: 617980 | V28: 139920 | W28: N/a | X28: N/a | Y28: 233200 | Z28: 5088000 | AA28: 5673120 | AB28: 1632400 | AC28: 903120 | AD28: 46640 | AE28: 3171520 | AF28: 2464500 | AG28: 318000 | AH28: 58300 | AI28: 954000 | AJ28: 2014000 | AK28: 543780 | AL28: 6042000 | AM28: 318000
A29: MERCEDES BENZ | B29: UNION TEMPORAL MOTORYSA - CASATORO - CENTIGON | C29: Blindaje nivel IIIA (NIJ) con materiales pesados | D29: 27723452 | E29: 43411240 | F29: 636000 | G29: 1590000 | H29: 1 | I29: 1908000 | J29: 2862000 | K29: 1 | L29: 1 | M29: 1 | N29: 1 | O29: 371000 | P29: 318000 | Q29: 848000 | R29: 954000 | S29: 477000 | T29: 508800 | U29: 591057.06 | V29: 302916.2 | W29: N/a | X29: N/a | Y29: 369322.02 | Z29: 6344290.8 | AA29: 3180000 | AB29: 1095813.16 | AC29: 338776 | AD29: 50880 | AE29: 297604.54 | AF29: 2768685.02 | AG29: 1 | AH29: 21200 | AI29: 1182112 | AJ29: 1 | AK29: 259021.6 | AL29: 5535934.8 | AM29: 107781.86
A30: TOYOTA | B30: Unión Temporal Toyonorte Ltda. - Armor International De Colombia Ltda. – Blindex S.A. | C30: Blindaje nivel IV (NIJ) con materiales pesados | D30: 18202320 | E30: 100700000 | F30: 1 | G30: 1 | H30: 1 | I30: 4240000 | J30: 1 | K30: 1 | L30: 1 | M30: 1 | N30: 1 | O30: 1 | P30: 1 | Q30: 1 | R30: 1 | S30: 1 | T30: 1 | U30: 598900 | V30: 106000 | W30: N/a | X30: N/a | Y30: 1 | Z30: 5278800 | AA30: 4028000 | AB30: 1176600 | AC30: 742000 | AD30: 42400 | AE30: 1865600 | AF30: 1865600 | AG30: 106000 | AH30: 42400 | AI30: 1643000 | AJ30: 1802000 | AK30: 487600 | AL30: 5989000 | AM30: 116600
A31: TOYOTA | B31: UNION TEMPORAL YOKOMOTOR S.A. - BLINSECURITY DE COLOMBIA LTDA - GMW SECURITY RENT A CAR LTDA | C31: Blindaje nivel IV (NIJ) con materiales pesados | D31: 16200000 | E31: 96250000 | F31: 4400000 | G31: 1 | H31: 1 | I31: 1 | J31: 1 | K31: 1 | L31: 1000000 | M31: 1 | N31: 1 | O31: 1 | P31: 1 | Q31: 850000 | R31: 850000 | S31: 1 | T31: 500000 | U31: 617980 | V31: 139920 | W31: N/a | X31: N/a | Y31: 233200 | Z31: 5088000 | AA31: 5673120 | AB31: 1632400 | AC31: 903120 | AD31: 46640 | AE31: 3171520 | AF31: 2464500 | AG31: 318000 | AH31: 58300 | AI31: 954000 | AJ31: 2014000 | AK31: 543780 | AL31: 6042000 | AM31: 318000
A32: FORD | B32: UNION TEMPORAL MOTORYSA - CASATORO - CENTIGON | C32: Blindaje nivel IIIA (NIJ) con materiales pesados | D32: 17976106.46 | E32: 43411240 | F32: 636000 | G32: 1590000 | H32: 1 | I32: 1908000 | J32: 2862000 | K32: 1 | L32: 1 | M32: 1 | N32: 1 | O32: 371000 | P32: 318000 | Q32: 848000 | R32: 954000 | S32: 477000 | T32: 508800 | U32: 591057.06 | V32: 302916.2 | W32: N/a | X32: N/a | Y32: 369322.02 | Z32: 6344290.8 | AA32: 3180000 | AB32: 1095813.16 | AC32: 338776 | AD32: 1 | AE32: 280759 | AF32: 2611967 | AG32: 1 | AH32: 1 | AI32: 3878805 | AJ32: 1 | AK32: 1674800 | AL32: 8988800 | AM32: 1
A33: Jeep | B33: 7m Group S.A. | C33: Blindaje nivel IIIA (NIJ) con materiales livianos | D33: 16209520 | E33: 50456000 | F33: 7801600 | G33: 3754541.2 | I33: 3445000 | J33: 2120000 | K33: 1590000 | L33: 3047500 | M33: 1842274.7 | N33: 304750 | O33: 609500 | P33: 548550 | Q33: 1015427 | R33: 1204038.1 | S33: 424000 | T33: 1007000 | U33: 507713.5 | V33: 406170.8 | W33: 280370 | X33: 754317.2 | Y33: 188579.3 | Z33: 5404972.86 | AA33: 6574164.52 | AB33: 1340073.2 | AC33: 580244 | AD33: 362663.1 | AE33: 3684549.4 | AF33: 2464500 | AG33: 318000 | AH33: 58300 | AI33: 954000 | AJ33: 1537000 | AK33: 543780 | AL33: 6042000 | AM33: 318000
A34: DODGE | B34: 7m Group S.A. | C34: Blindaje nivel IIIA (NIJ) con materiales livianos | D34: 18774720 | E34: 50456000 | F34: 7801601.06 | G34: 3754542.26 | I34: 3445001.06 | J34: 2120001.06 | K34: 1590001.06 | L34: 3047501.06 | M34: 1842275.76 | N34: 304751.06 | O34: 609501.06 | P34: 548551.06 | Q34: 1015428.06 | R34: 1204039.16 | S34: 424001.06 | T34: 1007001.06 | U34: 507714.56 | V34: 406171.86 | W34: 280371.06 | X34: 754318.26 | Y34: 188580.36 | Z34: 5404973.92 | AA34: 6574165.58 | AB34: 1340074.26 | AC34: 580245.06 | AD34: 362664.16 | AE34: 3684550.46 | AF34: 2464501.06 | AG34: 318001.06 | AH34: 58301.06 | AI34: 954001.06 | AJ34: 1537001.06 | AK34: 543781.06 | AL34: 6042001.06 | AM34: 318001.06
A35: PEUGEOT | B35: 7m Group S.A. | C35: Blindaje nivel IIIA (NIJ) con materiales livianos | D35: 17690267.92 | E35: 50456000 | F35: 7801602.12 | G35: 3754543.32 | I35: 3445002.12 | J35: 2120002.12 | K35: 1590002.12 | L35: 3047502.12 | M35: 1842276.82 | N35: 304752.12 | O35: 609502.12 | P35: 548552.12 | Q35: 1015429.12 | R35: 1204040.22 | S35: 424002.12 | T35: 1007002.12 | U35: 507715.62 | V35: 406172.92 | W35: 280372.12 | X35: 754319.32 | Y35: 188581.42 | Z35: 5404974.98 | AA35: 6574166.64 | AB35: 1340075.32 | AC35: 580246.12 | AD35: 362665.22 | AE35: 3684551.52 | AF35: 2464502.12 | AG35: 318002.12 | AH35: 58302.12 | AI35: 954002.12 | AJ35: 1537002.12 | AK35: 543782.12 | AL35: 6042002.12 | AM35: 318002.12
A36: MAZDA | B36: UNION TEMPORAL MOTORYSA - CASATORO - CENTIGON | C36: Blindaje nivel IIIA (NIJ) con materiales pesados | D36: 19408077.42 | E36: 43411240 | F36: 636000 | G36: 1590000 | H36: 1 | I36: 1908000 | J36: 2862000 | K36: 1 | L36: 1 | M36: 1 | N36: 1 | O36: 371000 | P36: 318000 | Q36: 848000 | R36: 954000 | S36: 477000 | T36: 508800 | U36: 591057.06 | V36: 302916.2 | W36: N/a | X36: N/a | Y36: 273476.82 | Z36: 6344290.8 | AA36: 3180000 | AB36: 1095813.16 | AC36: 713353.5 | AD36: 1 | AE36: 297604.54 | AF36: 2768685.02 | AG36: 300659.46 | AH36: 1 | AI36: 3878805 | AJ36: 1378551.2 | AK36: 259021.6 | AL36: 5535934.8 | AM36: 107781.86
A37: MITSUBISHI | B37: UNION TEMPORAL MOTORYSA - CASATORO - CENTIGON | C37: Blindaje nivel IIIA (NIJ) con materiales livianos | D37: 21344067.78 | E37: 50957380 | F37: 636000 | G37: 1 | H37: 1325000 | I37: 1908000 | J37: 1 | K37: 954000 | L37: 1 | M37: 1 | N37: 1 | O37: 371000 | P37: 318000 | Q37: 848000 | R37: 954000 | S37: 477000 | T37: 508800 | U37: 591057.06 | V37: 302916.2 | W37: N/a | X37: N/a | Y37: 369322.02 | Z37: 6344290.8 | AA37: 3180000 | AB37: 1095813.16 | AC37: 338776 | AD37: 1 | AE37: 297604.54 | AF37: 2768685.02 | AG37: 1 | AH37: 1 | AI37: 1115200 | AJ37: 1 | AK37: 259021.6 | AL37: 5535934.8 | AM37: 107781.86
A38: VOLKSWAGEN | B38: UNION TEMPORAL MOTORYSA - CASATORO - CENTIGON | C38: Blindaje nivel IIIA (NIJ) con materiales livianos | D38: 20940778.06 | E38: 50957380 | F38: 636000 | G38: 1 | H38: 1325000 | I38: 1908000 | J38: 1 | K38: 954000 | L38: 1 | M38: 1 | N38: 1 | O38: 371000 | P38: 318000 | Q38: 848000 | R38: 954000 | S38: 477000 | T38: 508800 | U38: 591057.06 | V38: 302916.2 | W38: N/a | X38: N/a | Y38: 273476.82 | Z38: 6344290.8 | AA38: 3180000 | AB38: 1095813.16 | AC38: 713353.5 | AD38: 1 | AE38: 297604.54 | AF38: 2768685.02 | AG38: 300659.46 | AH38: 1 | AI38: 720800 | AJ38: 2946800 | AK38: 381600 | AL38: 5535934.8 | AM38: 201400
A39: MERCEDES BENZ | B39: UNION TEMPORAL MOTORYSA - CASATORO - CENTIGON | C39: Blindaje nivel IIIA (NIJ) con materiales livianos | D39: 27723452 | E39: 50957380 | F39: 636000 | G39: 1 | H39: 1325000 | I39: 1908000 | J39: 1 | K39: 954000 | L39: 1 | M39: 1 | N39: 1 | O39: 371000 | P39: 318000 | Q39: 848000 | R39: 954000 | S39: 477000 | T39: 508800 | U39: 591057.06 | V39: 302916.2 | W39: N/a | X39: N/a | Y39: 369322.02 | Z39: 6344290.8 | AA39: 3180000 | AB39: 1095813.16 | AC39: 338776 | AD39: 50880 | AE39: 297604.54 | AF39: 2768685.02 | AG39: 1 | AH39: 21200 | AI39: 1182112 | AJ39: 1 | AK39: 259021.6 | AL39: 5535934.8 | AM39: 107781.86
A40: FORD | B40: UNION TEMPORAL MOTORYSA - CASATORO - CENTIGON | C40: Blindaje nivel IIIA (NIJ) con materiales livianos | D40: 17976106.46 | E40: 50957380 | F40: 636000 | G40: 1 | H40: 1325000 | I40: 1908000 | J40: 1 | K40: 954000 | L40: 1 | M40: 1 | N40: 1 | O40: 371000 | P40: 318000 | Q40: 848000 | R40: 954000 | S40: 477000 | T40: 508800 | U40: 591057.06 | V40: 302916.2 | W40: N/a | X40: N/a | Y40: 369322.02 | Z40: 6344290.8 | AA40: 3180000 | AB40: 1095813.16 | AC40: 338776 | AD40: 1 | AE40: 280759 | AF40: 2611967 | AG40: 1 | AH40: 1 | AI40: 3878805 | AJ40: 1 | AK40: 1674800 | AL40: 8988800 | AM40: 1
A41: MAZDA | B41: UNION TEMPORAL MOTORYSA - CASATORO - CENTIGON | C41: Blindaje nivel IIIA (NIJ) con materiales livianos | D41: 19408077.42 | E41: 50957380 | F41: 636000 | G41: 1 | H41: 1325000 | I41: 1908000 | J41: 1 | K41: 954000 | L41: 1 | M41: 1 | N41: 1 | O41: 371000 | P41: 318000 | Q41: 848000 | R41: 954000 | S41: 477000 | T41: 508800 | U41: 591057.06 | V41: 302916.2 | W41: N/a | X41: N/a | Y41: 273476.82 | Z41: 6344290.8 | AA41: 3180000 | AB41: 1095813.16 | AC41: 713353.5 | AD41: 1 | AE41: 297604.54 | AF41: 2768685.02 | AG41: 300659.46 | AH41: 1 | AI41: 3878805 | AJ41: 1378551.2 | AK41: 259021.6 | AL41: 5535934.8 | AM41: 107781.86
A42: FORD | B42: UNION TEMPORAL MOTORYSA - CASATORO - CENTIGON | C42: Blindaje nivel III (NIJ) con materiales pesados | D42: 17976106.46 | E42: 93393420 | F42: 5936000 | G42: 1590000 | H42: 1 | I42: 1908000 | J42: 2862000 | K42: 1 | L42: 5194000 | M42: 1 | N42: 1 | O42: 371000 | P42: 318000 | Q42: 848000 | R42: 954000 | S42: 477000 | T42: 508800 | U42: 591057.06 | V42: 302916.2 | W42: N/a | X42: N/a | Y42: 369322.02 | Z42: 6344290.8 | AA42: 3180000 | AB42: 1095813.16 | AC42: 338776 | AD42: 1 | AE42: 280759 | AF42: 2611967 | AG42: 1 | AH42: 1 | AI42: 3878805 | AJ42: 1 | AK42: 1674800 | AL42: 8988800 | AM42: 1
A43: MERCEDES BENZ | B43: UNION TEMPORAL MOTORYSA - CASATORO - CENTIGON | C43: Blindaje nivel III (NIJ) con materiales pesados | D43: 27723452 | E43: 83541780 | F43: 5936000 | G43: 2332000 | H43: 1 | I43: 1908000 | J43: 2862000 | K43: 1 | L43: 5194000 | M43: 1 | N43: 1 | O43: 371000 | P43: 318000 | Q43: 848000 | R43: 954000 | S43: 477000 | T43: 508800 | U43: 591057.06 | V43: 302916.2 | W43: N/a | X43: N/a | Y43: 369322.02 | Z43: 6344290.8 | AA43: 3180000 | AB43: 1095813.16 | AC43: 338776 | AD43: 50880 | AE43: 297604.54 | AF43: 2768685.02 | AG43: 1 | AH43: 21200 | AI43: 1182112 | AJ43: 1 | AK43: 259021.6 | AL43: 5535934.8 | AM43: 107781.86
A44: FORD | B44: UNION TEMPORAL MOTORYSA - CASATORO - CENTIGON | C44: Blindaje nivel III (NIJ) con materiales livianos | D44: 17976106.46 | E44: 103958440 | F44: 5936000 | G44: 1 | H44: 1325000 | I44: 1908000 | J44: 1 | K44: 1272000 | L44: 5194000 | M44: 1 | N44: 1 | O44: 371000 | P44: 318000 | Q44: 848000 | R44: 954000 | S44: 477000 | T44: 508800 | U44: 591057.06 | V44: 302916.2 | W44: N/a | X44: N/a | Y44: 369322.02 | Z44: 6344290.8 | AA44: 3180000 | AB44: 1095813.16 | AC44: 338776 | AD44: 1 | AE44: 280759 | AF44: 2611967 | AG44: 1 | AH44: 1 | AI44: 3878805 | AJ44: 1 | AK44: 1674800 | AL44: 8988800 | AM44: 1
A45: MERCEDES BENZ | B45: UNION TEMPORAL MOTORYSA - CASATORO - CENTIGON | C45: Blindaje nivel III (NIJ) con materiales livianos | D45: 27723452 | E45: 97202000 | F45: 5936000 | G45: 1 | H45: 1325000 | I45: 1908000 | J45: 1 | K45: 1272000 | L45: 5194000 | M45: 1 | N45: 1 | O45: 371000 | P45: 318000 | Q45: 848000 | R45: 954000 | S45: 477000 | T45: 508800 | U45: 591057.06 | V45: 302916.2 | W45: N/a | X45: N/a | Y45: 369322.02 | Z45: 6344290.8 | AA45: 3180000 | AB45: 1095813.16 | AC45: 338776 | AD45: 50880 | AE45: 297604.54 | AF45: 2768685.02 | AG45: 1 | AH45: 21200 | AI45: 1182112 | AJ45: 1 | AK45: 259021.6 | AL45: 5535934.8 | AM45: 107781.86

Sheet Referencias PickUp
B6: Listado de Vehículos de Referencia para el Acuerdo Marco de Precios LP-AMP-137-2017 para la adquisición de Vehículos Blindados
B8: Proveedor | C8: Tipo de blindaje | D8: Marca del Vehículo | E8: Vehículos de Referencia | F8: Código Fasecolda | G8: Precio Vehiculo | H8: 1 | I8: 2 a 10 | J8: 11 a 20 | K8: 21 a 30 | L8: 31 a 40 | M8: Mayor a 40
B9: Unión Temporal Toyonorte Ltda. - Armor International De Colombia Ltda. – Blindex S.A. | C9: Blindaje nivel IIIA (NIJ) con materiales livianos | D9: TOYOTA | E9: HILUX [8] 2.4LMT 2400CC TD 4X4 EURO IV | F9: 9021064 | G9: =VLOOKUP(F9,[4]Hoja1!$A$2:$B$14258,2,FALSE) -> 130500000 | H9: 0.01 | I9: 0.015 | J9: 0.017 | K9: 0.02 | L9: 0.025 | M9: 0.03
B10: Unión Temporal Toyonorte Ltda. - Armor International De Colombia Ltda. – Blindex S.A. | C10: Blindaje nivel IIIA (NIJ) con materiales livianos | D10: TOYOTA | E10: HILUX [8] 2.7LMT 2700CC 4X4 EURO IV | F10: 9021066 | G10: =VLOOKUP(F10,[4]Hoja1!$A$2:$B$14258,2,FALSE) -> 126400000 | H10: 0.01 | I10: 0.015 | J10: 0.017 | K10: 0.02 | L10: 0.025 | M10: 0.03
B11: Unión Temporal Toyonorte Ltda. - Armor International De Colombia Ltda. – Blindex S.A. | C11: Blindaje nivel IIIA (NIJ) con materiales livianos | D11: TOYOTA | E11: HILUX [8] 2.8LTP 2800CC TD 4X4 EURO IV | F11: 9021067 | G11: =VLOOKUP(F11,[4]Hoja1!$A$2:$B$14258,2,FALSE) -> 154900000 | H11: 0.01 | I11: 0.015 | J11: 0.017 | K11: 0.02 | L11: 0.025 | M11: 0.03
B12: Unión Temporal Toyonorte Ltda. - Armor International De Colombia Ltda. – Blindex S.A. | C12: Blindaje nivel IIIA (NIJ) con materiales pesados | D12: TOYOTA | E12: HILUX [8] 2.4LMT 2400CC TD 4X4 EURO IV | F12: 9021064 | G12: =VLOOKUP(F12,[4]Hoja1!$A$2:$B$14258,2,FALSE) -> 130500000 | H12: 0.01 | I12: 0.015 | J12: 0.017 | K12: 0.02 | L12: 0.025 | M12: 0.03
B13: Unión Temporal Toyonorte Ltda. - Armor International De Colombia Ltda. – Blindex S.A. | C13: Blindaje nivel IIIA (NIJ) con materiales pesados | D13: TOYOTA | E13: HILUX [8] 2.7LMT 2700CC 4X4 EURO IV | F13: 9021066 | G13: =VLOOKUP(F13,[4]Hoja1!$A$2:$B$14258,2,FALSE) -> 126400000 | H13: 0.01 | I13: 0.015 | J13: 0.017 | K13: 0.02 | L13: 0.025 | M13: 0.03
B14: Unión Temporal Toyonorte Ltda. - Armor International De Colombia Ltda. – Blindex S.A. | C14: Blindaje nivel IIIA (NIJ) con materiales pesados | D14: TOYOTA | E14: HILUX [8] 2.8LTP 2800CC TD 4X4 EURO IV | F14: 9021067 | G14: =VLOOKUP(F14,[4]Hoja1!$A$2:$B$14258,2,FALSE) -> 154900000 | H14: 0.01 | I14: 0.015 | J14: 0.017 | K14: 0.02 | L14: 0.025 | M14: 0.03
B15: Unión Temporal Toyonorte Ltda. - Armor International De Colombia Ltda. – Blindex S.A. | C15: Blindaje nivel III (NIJ) con materiales livianos | D15: TOYOTA | E15: HILUX [8] 2.4LMT 2400CC TD 4X4 EURO IV | F15: 9021064 | G15: =VLOOKUP(F15,[4]Hoja1!$A$2:$B$14258,2,FALSE) -> 130500000 | H15: 0.01 | I15: 0.015 | J15: 0.017 | K15: 0.02 | L15: 0.025 | M15: 0.03
B16: Unión Temporal Toyonorte Ltda. - Armor International De Colombia Ltda. – Blindex S.A. | C16: Blindaje nivel III (NIJ) con materiales livianos | D16: TOYOTA | E16: HILUX [8] 2.7LMT 2700CC 4X4 EURO IV | F16: 9021066 | G16: =VLOOKUP(F16,[4]Hoja1!$A$2:$B$14258,2,FALSE) -> 126400000 | H16: 0.01 | I16: 0.015 | J16: 0.017 | K16: 0.02 | L16: 0.025 | M16: 0.03
B17: Unión Temporal Toyonorte Ltda. - Armor International De Colombia Ltda. – Blindex S.A. | C17: Blindaje nivel III (NIJ) con materiales livianos | D17: TOYOTA | E17: HILUX [8] 2.8LTP 2800CC TD 4X4 EURO IV | F17: 9021067 | G17: =VLOOKUP(F17,[4]Hoja1!$A$2:$B$14258,2,FALSE) -> 154900000 | H17: 0.01 | I17: 0.015 | J17: 0.017 | K17: 0.02 | L17: 0.025 | M17: 0.03
B18: Unión Temporal Toyonorte Ltda. - Armor International De Colombia Ltda. – Blindex S.A. | C18: Blindaje nivel III (NIJ) con materiales pesados | D18: TOYOTA | E18: HILUX [8] 2.4LMT 2400CC TD 4X4 EURO IV | F18: 9021064 | G18: =VLOOKUP(F18,[4]Hoja1!$A$2:$B$14258,2,FALSE) -> 130500000 | H18: 0.01 | I18: 0.015 | J18: 0.017 | K18: 0.02 | L18: 0.025 | M18: 0.03
B19: Unión Temporal Toyonorte Ltda. - Armor International De Colombia Ltda. – Blindex S.A. | C19: Blindaje nivel III (NIJ) con materiales pesados | D19: TOYOTA | E19: HILUX [8] 2.7LMT 2700CC 4X4 EURO IV | F19: 9021066 | G19: =VLOOKUP(F19,[4]Hoja1!$A$2:$B$14258,2,FALSE) -> 126400000 | H19: 0.01 | I19: 0.015 | J19: 0.017 | K19: 0.02 | L19: 0.025 | M19: 0.03
B20: Unión Temporal Toyonorte Ltda. - Armor International De Colombia Ltda. – Blindex S.A. | C20: Blindaje nivel III (NIJ) con materiales pesados | D20: TOYOTA | E20: HILUX [8] 2.8LTP 2800CC TD 4X4 EURO IV | F20: 9021067 | G20: =VLOOKUP(F20,[4]Hoja1!$A$2:$B$14258,2,FALSE) -> 154900000 | H20: 0.01 | I20: 0.015 | J20: 0.017 | K20: 0.02 | L20: 0.025 | M20: 0.03
B21: Unión Temporal Toyonorte Ltda. - Armor International De Colombia Ltda. – Blindex S.A. | C21: Blindaje nivel IV (NIJ) con materiales livianos | D21: TOYOTA | E21: HILUX [8] 2.8LTP 2800CC TD 4X4 EURO IV | F21: 9021067 | G21: =VLOOKUP(F21,[4]Hoja1!$A$2:$B$14258,2,FALSE) -> 154900000 | H21: 0.01 | I21: 0.015 | J21: 0.017 | K21: 0.02 | L21: 0.025 | M21: 0.03
B22: Unión Temporal Toyonorte Ltda. - Armor International De Colombia Ltda. – Blindex S.A. | C22: Blindaje nivel IV (NIJ) con materiales pesados | D22: TOYOTA | E22: HILUX [8] 2.8LTP 2800CC TD 4X4 EURO IV | F22: 9021067 | G22: =VLOOKUP(F22,[4]Hoja1!$A$2:$B$14258,2,FALSE) -> 154900000 | H22: 0.01 | I22: 0.015 | J22: 0.017 | K22: 0.02 | L22: 0.025 | M22: 0.03
B23: 7m Group S.A. | C23: Blindaje nivel IIIA (NIJ) con materiales livianos | D23: RENAULT | E23: ALASKAN ZEN MT 2500CC TD 4X4 | F23: 8021003 | G23: =VLOOKUP(F23,[4]Hoja1!$A$2:$B$14258,2,FALSE) -> 118400000 | H23: 0.077 | I23: 0.078 | J23: 0.079 | K23: 0.08 | L23: 0.081 | M23: 0.082
B24: 7m Group S.A. | C24: Blindaje nivel IIIA (NIJ) con materiales livianos | D24: RENAULT | E24: ALASKAN INTENS AT 2500CC TD 4X4 | F24: 8021004 | G24: =VLOOKUP(F24,[4]Hoja1!$A$2:$B$14258,2,FALSE) -> 137400000 | H24: 0.077 | I24: 0.078 | J24: 0.079 | K24: 0.08 | L24: 0.081 | M24: 0.082
B25: 7m Group S.A. | C25: Blindaje nivel III (NIJ) con materiales pesados | D25: RENAULT | E25: ALASKAN ZEN MT 2500CC TD 4X4 | F25: 8021003 | G25: =VLOOKUP(F25,[4]Hoja1!$A$2:$B$14258,2,FALSE) -> 118400000 | H25: 0.077 | I25: 0.078 | J25: 0.079 | K25: 0.08 | L25: 0.081 | M25: 0.082
B26: 7m Group S.A. | C26: Blindaje nivel III (NIJ) con materiales pesados | D26: RENAULT | E26: ALASKAN INTENS AT 2500CC TD 4X4 | F26: 8021004 | G26: =VLOOKUP(F26,[4]Hoja1!$A$2:$B$14258,2,FALSE) -> 137400000 | H26: 0.077 | I26: 0.078 | J26: 0.079 | K26: 0.08 | L26: 0.081 | M26: 0.082
B27: 7m Group S.A. | C27: Blindaje nivel IIIA (NIJ) con materiales livianos | D27: RAM | E27: RAM [4][FL] 2500 CREW CAB [LARAMIE] TP 5700CC 4X4 6AB CT | F27: 2421011 | G27: =VLOOKUP(F27,[4]Hoja1!$A$2:$B$14258,2,FALSE) -> 164700000 | H27: 0.062 | I27: 0.064 | J27: 0.066 | K27: 0.068 | L27: 0.07 | M27: 0.072
B28: 7m Group S.A. | C28: Blindaje nivel III (NIJ) con materiales pesados | D28: RAM | E28: RAM [4][FL] 2500 CREW CAB [LARAMIE] TP 5700CC 4X4 6AB CT | F28: 2421011 | G28: =VLOOKUP(F28,[4]Hoja1!$A$2:$B$14258,2,FALSE) -> 164700000 | H28: 0.062 | I28: 0.064 | J28: 0.066 | K28: 0.068 | L28: 0.07 | M28: 0.072
B29: UNION TEMPORAL YOKOMOTOR S.A. - BLINSECURITY DE COLOMBIA LTDA - GMW SECURITY RENT A CAR LTDA | C29: Blindaje nivel IIIA (NIJ) con materiales livianos | D29: TOYOTA | E29: HILUX [8] 2.4L MT 2400CC TD 4X4 EURO IV | F29: 9021064 | G29: =VLOOKUP(F29,[4]Hoja1!$A$2:$B$14258,2,FALSE) -> 130500000 | H29: 0.01 | I29: 0.015 | J29: 0.017 | K29: 0.02 | L29: 0.025 | M29: 0.03
B30: UNION TEMPORAL YOKOMOTOR S.A. - BLINSECURITY DE COLOMBIA LTDA - GMW SECURITY RENT A CAR LTDA | C30: Blindaje nivel IIIA (NIJ) con materiales livianos | D30: TOYOTA | E30: HILUX [8] 2.7L MT 2700CC 4X4 EURO IV | F30: 9021066 | G30: =VLOOKUP(F30,[4]Hoja1!$A$2:$B$14258,2,FALSE) -> 126400000 | H30: 0.01 | I30: 0.015 | J30: 0.017 | K30: 0.02 | L30: 0.025 | M30: 0.03
B31: UNION TEMPORAL YOKOMOTOR S.A. - BLINSECURITY DE COLOMBIA LTDA - GMW SECURITY RENT A CAR LTDA | C31: Blindaje nivel IIIA (NIJ) con materiales livianos | D31: TOYOTA | E31: HILUX [8] 2.8L TP 2800CC TD 4X4 EURO IV | F31: 9021067 | G31: =VLOOKUP(F31,[4]Hoja1!$A$2:$B$14258,2,FALSE) -> 154900000 | H31: 0.01 | I31: 0.015 | J31: 0.017 | K31: 0.02 | L31: 0.025 | M31: 0.03
B32: UNION TEMPORAL YOKOMOTOR S.A. - BLINSECURITY DE COLOMBIA LTDA - GMW SECURITY RENT A CAR LTDA | C32: Blindaje nivel IIIA (NIJ) con materiales livianos | D32: TOYOTA | E32: HILUX [8] 2.8L MT 2800CC TD 4X4 EURO IV | F32: 9021068 | G32: =VLOOKUP(F32,[4]Hoja1!$A$2:$B$14258,2,FALSE) -> 160100000 | H32: 0.01 | I32: 0.015 | J32: 0.017 | K32: 0.02 | L32: 0.025 | M32: 0.03
B33: UNION TEMPORAL YOKOMOTOR S.A. - BLINSECURITY DE COLOMBIA LTDA - GMW SECURITY RENT A CAR LTDA | C33: Blindaje nivel III (NIJ) con materiales livianos | D33: TOYOTA | E33: HILUX [8] 2.4L MT 2400CC TD 4X4 EURO IV | F33: 9021064 | G33: =VLOOKUP(F33,[4]Hoja1!$A$2:$B$14258,2,FALSE) -> 130500000 | H33: 0.01 | I33: 0.015 | J33: 0.017 | K33: 0.02 | L33: 0.025 | M33: 0.03
B34: UNION TEMPORAL YOKOMOTOR S.A. - BLINSECURITY DE COLOMBIA LTDA - GMW SECURITY RENT A CAR LTDA | C34: Blindaje nivel III (NIJ) con materiales livianos | D34: TOYOTA | E34: HILUX [8] 2.7L MT 2700CC 4X4 EURO IV | F34: 9021066 | G34: =VLOOKUP(F34,[4]Hoja1!$A$2:$B$14258,2,FALSE) -> 126400000 | H34: 0.01 | I34: 0.015 | J34: 0.017 | K34: 0.02 | L34: 0.025 | M34: 0.03
B35: UNION TEMPORAL YOKOMOTOR S.A. - BLINSECURITY DE COLOMBIA LTDA - GMW SECURITY RENT A CAR LTDA | C35: Blindaje nivel III (NIJ) con materiales livianos | D35: TOYOTA | E35: HILUX [8] 2.8L TP 2800CC TD 4X4 EURO IV | F35: 9021067 | G35: =VLOOKUP(F35,[4]Hoja1!$A$2:$B$14258,2,FALSE) -> 154900000 | H35: 0.01 | I35: 0.015 | J35: 0.017 | K35: 0.02 | L35: 0.025 | M35: 0.03
B36: UNION TEMPORAL YOKOMOTOR S.A. - BLINSECURITY DE COLOMBIA LTDA - GMW SECURITY RENT A CAR LTDA | C36: Blindaje nivel III (NIJ) con materiales livianos | D36: TOYOTA | E36: HILUX [8] 2.8L MT 2800CC TD 4X4 EURO IV | F36: 9021068 | G36: =VLOOKUP(F36,[4]Hoja1!$A$2:$B$14258,2,FALSE) -> 160100000 | H36: 0.01 | I36: 0.015 | J36: 0.017 | K36: 0.02 | L36: 0.025 | M36: 0.03
B37: UNION TEMPORAL YOKOMOTOR S.A. - BLINSECURITY DE COLOMBIA LTDA - GMW SECURITY RENT A CAR LTDA | C37: Blindaje nivel IV (NIJ) con materiales pesados | D37: TOYOTA | E37: HILUX [8] 2.7L MT 2700CC 4X4 EURO IV | F37: 9021066 | G37: =VLOOKUP(F37,[4]Hoja1!$A$2:$B$14258,2,FALSE) -> 126400000 | H37: 0.01 | I37: 0.015 | J37: 0.017 | K37: 0.02 | L37: 0.025 | M37: 0.03
B38: UNION TEMPORAL YOKOMOTOR S.A. - BLINSECURITY DE COLOMBIA LTDA - GMW SECURITY RENT A CAR LTDA | C38: Blindaje nivel IV (NIJ) con materiales pesados | D38: TOYOTA | E38: HILUX [8] 2.8L TP 2800CC TD 4X4 EURO IV | F38: 9021067 | G38: =VLOOKUP(F38,[4]Hoja1!$A$2:$B$14258,2,FALSE) -> 154900000 | H38: 0.01 | I38: 0.015 | J38: 0.017 | K38: 0.02 | L38: 0.025 | M38: 0.03
B39: UNION TEMPORAL YOKOMOTOR S.A. - BLINSECURITY DE COLOMBIA LTDA - GMW SECURITY RENT A CAR LTDA | C39: Blindaje nivel IV (NIJ) con materiales pesados | D39: TOYOTA | E39: HILUX [8] 2.8L MT 2800CC TD 4X4 EURO IV | F39: 9021068 | G39: =VLOOKUP(F39,[4]Hoja1!$A$2:$B$14258,2,FALSE) -> 160100000 | H39: 0.01 | I39: 0.015 | J39: 0.017 | K39: 0.02 | L39: 0.025 | M39: 0.03
B40: UNION TEMPORAL YOKOMOTOR S.A. - BLINSECURITY DE COLOMBIA LTDA - GMW SECURITY RENT A CAR LTDA | C40: Blindaje nivel IV (NIJ) con materiales livianos | D40: TOYOTA | E40: HILUX [8] 2.7L MT 2700CC 4X4 EURO IV | F40: 9021066 | G40: =VLOOKUP(F40,[4]Hoja1!$A$2:$B$14258,2,FALSE) -> 126400000 | H40: 0.01 | I40: 0.015 | J40: 0.017 | K40: 0.02 | L40: 0.025 | M40: 0.03
B41: UNION TEMPORAL YOKOMOTOR S.A. - BLINSECURITY DE COLOMBIA LTDA - GMW SECURITY RENT A CAR LTDA | C41: Blindaje nivel IV (NIJ) con materiales livianos | D41: TOYOTA | E41: HILUX [8] 2.8L TP 2800CC TD 4X4 EURO IV | F41: 9021067 | G41: =VLOOKUP(F41,[4]Hoja1!$A$2:$B$14258,2,FALSE) -> 154900000 | H41: 0.01 | I41: 0.015 | J41: 0.017 | K41: 0.02 | L41: 0.025 | M41: 0.03
B42: UNION TEMPORAL YOKOMOTOR S.A. - BLINSECURITY DE COLOMBIA LTDA - GMW SECURITY RENT A CAR LTDA | C42: Blindaje nivel IV (NIJ) con materiales livianos | D42: TOYOTA | E42: HILUX [8] 2.8L MT 2800CC TD 4X4 EURO IV | F42: 9021068 | G42: =VLOOKUP(F42,[4]Hoja1!$A$2:$B$14258,2,FALSE) -> 160100000 | H42: 0.01 | I42: 0.015 | J42: 0.017 | K42: 0.02 | L42: 0.025 | M42: 0.03
B43: UNION TEMPORAL MOTORYSA - CASATORO - CENTIGON | C43: Blindaje nivel IIIA (NIJ) con materiales livianos | D43: MITSUBISHI | E43: L200 [5] 2.5L MT 2500CC TD 4X4 2AB ABS | F43: 6221024 | G43: =VLOOKUP(F43,[4]Hoja1!$A$2:$B$14258,2,FALSE) -> 119900000 | H43: 0.08 | I43: 0.08 | J43: 0.08 | K43: 0.08 | L43: 0.08 | M43: 0.08
B44: UNION TEMPORAL MOTORYSA - CASATORO - CENTIGON | C44: Blindaje nivel IIIA (NIJ) con materiales pesados | D44: MITSUBISHI | E44: L200 [5] 2.5L MT 2500CC TD 4X4 2AB ABS | F44: 6221024 | G44: =VLOOKUP(F44,[4]Hoja1!$A$2:$B$14258,2,FALSE) -> 119900000 | H44: 0.08 | I44: 0.08 | J44: 0.08 | K44: 0.08 | L44: 0.08 | M44: 0.08
B45: UNION TEMPORAL MOTORYSA - CASATORO - CENTIGON | C45: Blindaje nivel IIIA (NIJ) con materiales livianos | D45: MITSUBISHI | E45: L200 SPORTERO [5] HIGH POWER MT 2500CC TD 4X4 2AB ABS | F45: 6221025 | G45: =VLOOKUP(F45,[4]Hoja1!$A$2:$B$14258,2,FALSE) -> 136900000 | H45: 0.08 | I45: 0.08 | J45: 0.08 | K45: 0.08 | L45: 0.08 | M45: 0.08
B46: UNION TEMPORAL MOTORYSA - CASATORO - CENTIGON | C46: Blindaje nivel IIIA (NIJ) con materiales pesados | D46: MITSUBISHI | E46: L200 SPORTERO [5] HIGH POWER MT 2500CC TD 4X4 2AB ABS | F46: 6221025 | G46: =VLOOKUP(F46,[4]Hoja1!$A$2:$B$14258,2,FALSE) -> 136900000 | H46: 0.08 | I46: 0.08 | J46: 0.08 | K46: 0.08 | L46: 0.08 | M46: 0.08
B47: UNION TEMPORAL MOTORYSA - CASATORO - CENTIGON | C47: Blindaje nivel IIIA (NIJ) con materiales livianos | D47: MITSUBISHI | E47: L200 SPORTERO [5] HIGH POWER AT 2500CC TD 4X4 2AB ABS | F47: 6221026 | G47: =VLOOKUP(F47,[4]Hoja1!$A$2:$B$14258,2,FALSE) -> 141900000 | H47: 0.08 | I47: 0.08 | J47: 0.08 | K47: 0.08 | L47: 0.08 | M47: 0.08
B48: UNION TEMPORAL MOTORYSA - CASATORO - CENTIGON | C48: Blindaje nivel IIIA (NIJ) con materiales pesados | D48: MITSUBISHI | E48: L200 SPORTERO [5] HIGH POWER AT 2500CC TD 4X4 2AB ABS | F48: 6221026 | G48: =VLOOKUP(F48,[4]Hoja1!$A$2:$B$14258,2,FALSE) -> 141900000 | H48: 0.08 | I48: 0.08 | J48: 0.08 | K48: 0.08 | L48: 0.08 | M48: 0.08
B49: UNION TEMPORAL MOTORYSA - CASATORO - CENTIGON | C49: Blindaje nivel IIIA (NIJ) con materiales livianos | D49: VOLKSWAGEN | E49: AMAROK [FL] TRENDLINE T MT 2000CC 4X4 2AB ABS | F49: 9221017 | G49: =VLOOKUP(F49,[4]Hoja1!$A$2:$B$14258,2,FALSE) -> 111000000 | H49: 0.02 | I49: 0.02 | J49: 0.02 | K49: 0.02 | L49: 0.02 | M49: 0.02
B50: UNION TEMPORAL MOTORYSA - CASATORO - CENTIGON | C50: Blindaje nivel IIIA (NIJ) con materiales pesados | D50: VOLKSWAGEN | E50: AMAROK [FL] TRENDLINE T MT 2000CC 4X4 2AB ABS | F50: 9221017 | G50: =VLOOKUP(F50,[4]Hoja1!$A$2:$B$14258,2,FALSE) -> 111000000 | H50: 0.02 | I50: 0.02 | J50: 0.02 | K50: 0.02 | L50: 0.02 | M50: 0.02
B51: UNION TEMPORAL MOTORYSA - CASATORO - CENTIGON | C51: Blindaje nivel III (NIJ) con materiales livianos | D51: VOLKSWAGEN | E51: AMAROK [FL] TRENDLINE T MT 2000CC 4X4 2AB ABS | F51: 9221017 | G51: =VLOOKUP(F51,[4]Hoja1!$A$2:$B$14258,2,FALSE) -> 111000000 | H51: 0.02 | I51: 0.02 | J51: 0.02 | K51: 0.02 | L51: 0.02 | M51: 0.02
B52: UNION TEMPORAL MOTORYSA - CASATORO - CENTIGON | C52: Blindaje nivel III (NIJ) con materiales pesados | D52: VOLKSWAGEN | E52: AMAROK [FL] TRENDLINE T MT 2000CC 4X4 2AB ABS | F52: 9221017 | G52: =VLOOKUP(F52,[4]Hoja1!$A$2:$B$14258,2,FALSE) -> 111000000 | H52: 0.02 | I52: 0.02 | J52: 0.02 | K52: 0.02 | L52: 0.02 | M52: 0.02
B53: UNION TEMPORAL MOTORYSA - CASATORO - CENTIGON | C53: Blindaje nivel IIIA (NIJ) con materiales livianos | D53: VOLKSWAGEN | E53: AMAROK [FL] TRENDLINE MT 2000CC 4X4 2AB ABS RIN LUJO | F53: 9221019 | G53: =VLOOKUP(F53,[4]Hoja1!$A$2:$B$14258,2,FALSE) -> 112000000 | H53: 0.02 | I53: 0.02 | J53: 0.02 | K53: 0.02 | L53: 0.02 | M53: 0.02
B54: UNION TEMPORAL MOTORYSA - CASATORO - CENTIGON | C54: Blindaje nivel IIIA (NIJ) con materiales pesados | D54: VOLKSWAGEN | E54: AMAROK [FL] TRENDLINE MT 2000CC 4X4 2AB ABS RIN LUJO | F54: 9221019 | G54: =VLOOKUP(F54,[4]Hoja1!$A$2:$B$14258,2,FALSE) -> 112000000 | H54: 0.02 | I54: 0.02 | J54: 0.02 | K54: 0.02 | L54: 0.02 | M54: 0.02
B55: UNION TEMPORAL MOTORYSA - CASATORO - CENTIGON | C55: Blindaje nivel III (NIJ) con materiales livianos | D55: VOLKSWAGEN | E55: AMAROK [FL] TRENDLINE MT 2000CC 4X4 2AB ABS RIN LUJO | F55: 9221019 | G55: =VLOOKUP(F55,[4]Hoja1!$A$2:$B$14258,2,FALSE) -> 112000000 | H55: 0.02 | I55: 0.02 | J55: 0.02 | K55: 0.02 | L55: 0.02 | M55: 0.02
B56: UNION TEMPORAL MOTORYSA - CASATORO - CENTIGON | C56: Blindaje nivel III (NIJ) con materiales pesados | D56: VOLKSWAGEN | E56: AMAROK [FL] TRENDLINE MT 2000CC 4X4 2AB ABS RIN LUJO | F56: 9221019 | G56: =VLOOKUP(F56,[4]Hoja1!$A$2:$B$14258,2,FALSE) -> 112000000 | H56: 0.02 | I56: 0.02 | J56: 0.02 | K56: 0.02 | L56: 0.02 | M56: 0.02
B57: UNION TEMPORAL MOTORYSA - CASATORO - CENTIGON | C57: Blindaje nivel IIIA (NIJ) con materiales livianos | D57: VOLKSWAGEN | E57: AMAROK [FL] COMFORTLINE TP 2000CC 4X4 2AB ABS R17 | F57: 9221021 | G57: =VLOOKUP(F57,[4]Hoja1!$A$2:$B$14258,2,FALSE) -> 124000000 | H57: 0.02 | I57: 0.02 | J57: 0.02 | K57: 0.02 | L57: 0.02 | M57: 0.02
B58: UNION TEMPORAL MOTORYSA - CASATORO - CENTIGON | C58: Blindaje nivel IIIA (NIJ) con materiales pesados | D58: VOLKSWAGEN | E58: AMAROK [FL] COMFORTLINE TP 2000CC 4X4 2AB ABS R17 | F58: 9221021 | G58: =VLOOKUP(F58,[4]Hoja1!$A$2:$B$14258,2,FALSE) -> 124000000 | H58: 0.02 | I58: 0.02 | J58: 0.02 | K58: 0.02 | L58: 0.02 | M58: 0.02
B59: UNION TEMPORAL MOTORYSA - CASATORO - CENTIGON | C59: Blindaje nivel III (NIJ) con materiales livianos | D59: VOLKSWAGEN | E59: AMAROK [FL] COMFORTLINE TP 2000CC 4X4 2AB ABS R17 | F59: 9221021 | G59: =VLOOKUP(F59,[4]Hoja1!$A$2:$B$14258,2,FALSE) -> 124000000 | H59: 0.02 | I59: 0.02 | J59: 0.02 | K59: 0.02 | L59: 0.02 | M59: 0.02
B60: UNION TEMPORAL MOTORYSA - CASATORO - CENTIGON | C60: Blindaje nivel III (NIJ) con materiales pesados | D60: VOLKSWAGEN | E60: AMAROK [FL] COMFORTLINE TP 2000CC 4X4 2AB ABS R17 | F60: 9221021 | G60: =VLOOKUP(F60,[4]Hoja1!$A$2:$B$14258,2,FALSE) -> 124000000 | H60: 0.02 | I60: 0.02 | J60: 0.02 | K60: 0.02 | L60: 0.02 | M60: 0.02
B61: UNION TEMPORAL MOTORYSA - CASATORO - CENTIGON | C61: Blindaje nivel IIIA (NIJ) con materiales livianos | D61: VOLKSWAGEN | E61: AMAROK [FL] HIGHLINE TP 2000CC 4X4 6AB ABS R20 | F61: 9221022 | G61: =VLOOKUP(F61,[4]Hoja1!$A$2:$B$14258,2,FALSE) -> 147000000 | H61: 0.02 | I61: 0.02 | J61: 0.02 | K61: 0.02 | L61: 0.02 | M61: 0.02
B62: UNION TEMPORAL MOTORYSA - CASATORO - CENTIGON | C62: Blindaje nivel IIIA (NIJ) con materiales pesados | D62: VOLKSWAGEN | E62: AMAROK [FL] HIGHLINE TP 2000CC 4X4 6AB ABS R20 | F62: 9221022 | G62: =VLOOKUP(F62,[4]Hoja1!$A$2:$B$14258,2,FALSE) -> 147000000 | H62: 0.02 | I62: 0.02 | J62: 0.02 | K62: 0.02 | L62: 0.02 | M62: 0.02
B63: UNION TEMPORAL MOTORYSA - CASATORO - CENTIGON | C63: Blindaje nivel III (NIJ) con materiales livianos | D63: VOLKSWAGEN | E63: AMAROK [FL] HIGHLINE TP 2000CC 4X4 6AB ABS R20 | F63: 9221022 | G63: =VLOOKUP(F63,[4]Hoja1!$A$2:$B$14258,2,FALSE) -> 147000000 | H63: 0.02 | I63: 0.02 | J63: 0.02 | K63: 0.02 | L63: 0.02 | M63: 0.02
B64: UNION TEMPORAL MOTORYSA - CASATORO - CENTIGON | C64: Blindaje nivel III (NIJ) con materiales pesados | D64: VOLKSWAGEN | E64: AMAROK [FL] HIGHLINE TP 2000CC 4X4 6AB ABS R20 | F64: 9221022 | G64: =VLOOKUP(F64,[4]Hoja1!$A$2:$B$14258,2,FALSE) -> 147000000 | H64: 0.02 | I64: 0.02 | J64: 0.02 | K64: 0.02 | L64: 0.02 | M64: 0.02
B65: UNION TEMPORAL MOTORYSA - CASATORO - CENTIGON | C65: Blindaje nivel IIIA (NIJ) con materiales livianos | D65: MAZDA | E65: BT50 [2] [FL] PROFESSIONAL TP 3200CC 4X4 | F65: 5621030 | G65: =VLOOKUP(F65,[4]Hoja1!$A$2:$B$14258,2,FALSE) -> 120100000 | H65: 0.01 | I65: 0.01 | J65: 0.01 | K65: 0.01 | L65: 0.01 | M65: 0.01
B66: UNION TEMPORAL MOTORYSA - CASATORO - CENTIGON | C66: Blindaje nivel IIIA (NIJ) con materiales pesados | D66: MAZDA | E66: BT50 [2] [FL] PROFESSIONAL TP 3200CC 4X4 | F66: 5621030 | G66: =VLOOKUP(F66,[4]Hoja1!$A$2:$B$14258,2,FALSE) -> 120100000 | H66: 0.01 | I66: 0.01 | J66: 0.01 | K66: 0.01 | L66: 0.01 | M66: 0.01
B67: UNION TEMPORAL MOTORYSA - CASATORO - CENTIGON | C67: Blindaje nivel III (NIJ) con materiales livianos | D67: MAZDA | E67: BT50 [2] [FL] PROFESSIONAL TP 3200CC 4X4 | F67: 5621030 | G67: =VLOOKUP(F67,[4]Hoja1!$A$2:$B$14258,2,FALSE) -> 120100000 | H67: 0.01 | I67: 0.01 | J67: 0.01 | K67: 0.01 | L67: 0.01 | M67: 0.01
B68: UNION TEMPORAL MOTORYSA - CASATORO - CENTIGON | C68: Blindaje nivel III (NIJ) con materiales pesados | D68: MAZDA | E68: BT50 [2] [FL] PROFESSIONAL TP 3200CC 4X4 | F68: 5621030 | G68: =VLOOKUP(F68,[4]Hoja1!$A$2:$B$14258,2,FALSE) -> 120100000 | H68: 0.01 | I68: 0.01 | J68: 0.01 | K68: 0.01 | L68: 0.01 | M68: 0.01
B69: UNION TEMPORAL MOTORYSA - CASATORO - CENTIGON | C69: Blindaje nivel IIIA (NIJ) con materiales livianos | D69: MAZDA | E69: BT50 [2] [FL] PROFESSIONAL MT 3200CC 4X4 | F69: 5621031 | G69: =VLOOKUP(F69,[4]Hoja1!$A$2:$B$14258,2,FALSE) -> 113000000 | H69: 0.01 | I69: 0.01 | J69: 0.01 | K69: 0.01 | L69: 0.01 | M69: 0.01
B70: UNION TEMPORAL MOTORYSA - CASATORO - CENTIGON | C70: Blindaje nivel IIIA (NIJ) con materiales pesados | D70: MAZDA | E70: BT50 [2] [FL] PROFESSIONAL MT 3200CC 4X4 | F70: 5621031 | G70: =VLOOKUP(F70,[4]Hoja1!$A$2:$B$14258,2,FALSE) -> 113000000 | H70: 0.01 | I70: 0.01 | J70: 0.01 | K70: 0.01 | L70: 0.01 | M70: 0.01
B71: UNION TEMPORAL MOTORYSA - CASATORO - CENTIGON | C71: Blindaje nivel III (NIJ) con materiales livianos | D71: MAZDA | E71: BT50 [2] [FL] PROFESSIONAL MT 3200CC 4X4 | F71: 5621031 | G71: =VLOOKUP(F71,[4]Hoja1!$A$2:$B$14258,2,FALSE) -> 113000000 | H71: 0.01 | I71: 0.01 | J71: 0.01 | K71: 0.01 | L71: 0.01 | M71: 0.01
B72: UNION TEMPORAL MOTORYSA - CASATORO - CENTIGON | C72: Blindaje nivel III (NIJ) con materiales pesados | D72: MAZDA | E72: BT50 [2] [FL] PROFESSIONAL MT 3200CC 4X4 | F72: 5621031 | G72: =VLOOKUP(F72,[4]Hoja1!$A$2:$B$14258,2,FALSE) -> 113000000 | H72: 0.01 | I72: 0.01 | J72: 0.01 | K72: 0.01 | L72: 0.01 | M72: 0.01
B73: UNION TEMPORAL MOTORYSA - CASATORO - CENTIGON | C73: Blindaje nivel IIIA (NIJ) con materiales livianos | D73: FORD | E73: F150 [13] LARIAT TP 3500CC 4X4 | F73: 3021073 | G73: =VLOOKUP(F73,[4]Hoja1!$A$2:$B$14258,2,FALSE) -> 173000000 | H73: 0.02 | I73: 0.02 | J73: 0.02 | K73: 0.02 | L73: 0.02 | M73: 0.02
B74: UNION TEMPORAL MOTORYSA - CASATORO - CENTIGON | C74: Blindaje nivel IIIA (NIJ) con materiales pesados | D74: FORD | E74: F150 [13] LARIAT TP 3500CC 4X4 | F74: 3021073 | G74: =VLOOKUP(F74,[4]Hoja1!$A$2:$B$14258,2,FALSE) -> 173000000 | H74: 0.02 | I74: 0.02 | J74: 0.02 | K74: 0.02 | L74: 0.02 | M74: 0.02
B75: UNION TEMPORAL MOTORYSA - CASATORO - CENTIGON | C75: Blindaje nivel III (NIJ) con materiales livianos | D75: FORD | E75: F150 [13] LARIAT TP 3500CC 4X4 | F75: 3021073 | G75: =VLOOKUP(F75,[4]Hoja1!$A$2:$B$14258,2,FALSE) -> 173000000 | H75: 0.02 | I75: 0.02 | J75: 0.02 | K75: 0.02 | L75: 0.02 | M75: 0.02
B76: UNION TEMPORAL MOTORYSA - CASATORO - CENTIGON | C76: Blindaje nivel III (NIJ) con materiales pesados | D76: FORD | E76: F150 [13] LARIAT TP 3500CC 4X4 | F76: 3021073 | G76: =VLOOKUP(F76,[4]Hoja1!$A$2:$B$14258,2,FALSE) -> 173000000 | H76: 0.02 | I76: 0.02 | J76: 0.02 | K76: 0.02 | L76: 0.02 | M76: 0.02
B77: UNION TEMPORAL MOTORYSA - CASATORO - CENTIGON | C77: Blindaje nivel IV (NIJ) con materiales pesados | D77: FORD | E77: F150 [13] LARIAT TP 3500CC 4X4 | F77: 3021073 | G77: =VLOOKUP(F77,[4]Hoja1!$A$2:$B$14258,2,FALSE) -> 173000000 | H77: 0.02 | I77: 0.02 | J77: 0.02 | K77: 0.02 | L77: 0.02 | M77: 0.02
B78: AUTOMAYOR S.A. | C78: Blindaje nivel IIIA (NIJ) con materiales pesados | D78: CHEVROLET | E78: DMAX(3) 2.5L MT 2500CC 4X4 ABS 2AB | F78: 1621092 | G78: =VLOOKUP(F78,[4]Hoja1!$A$2:$B$14258,2,FALSE) -> 121200000 | H78: 0.12 | I78: 0.12 | J78: 0.12 | K78: 0.12 | L78: 0.12 | M78: 0.12
B79: AUTOMAYOR S.A. | C79: Blindaje nivel IIIA (NIJ) con materiales livianos | D79: CHEVROLET | E79: DMAX(3) 2.5L MT 2500CC 4X4 ABS 2AB | F79: 1621092 | G79: =VLOOKUP(F79,[4]Hoja1!$A$2:$B$14258,2,FALSE) -> 121200000 | H79: 0.12 | I79: 0.12 | J79: 0.12 | K79: 0.12 | L79: 0.12 | M79: 0.12
B80: AUTOMAYOR S.A. | C80: Blindaje nivel III (NIJ) con materiales pesados | D80: CHEVROLET | E80: DMAX(3) 2.5L MT 2500CC 4X4 ABS 2AB | F80: 1621092 | G80: =VLOOKUP(F80,[4]Hoja1!$A$2:$B$14258,2,FALSE) -> 121200000 | H80: 0.12 | I80: 0.12 | J80: 0.12 | K80: 0.12 | L80: 0.12 | M80: 0.12
B81: AUTOMAYOR S.A. | C81: Blindaje nivel III (NIJ) con materiales livianos | D81: CHEVROLET | E81: DMAX(3) 2.5L MT 2500CC 4X4 ABS 2AB | F81: 1621092 | G81: =VLOOKUP(F81,[4]Hoja1!$A$2:$B$14258,2,FALSE) -> 121200000 | H81: 0.12 | I81: 0.12 | J81: 0.12 | K81: 0.12 | L81: 0.12 | M81: 0.12
B82: AUTOMAYOR S.A. | C82: Blindaje nivel IIIA (NIJ) con materiales pesados | D82: CHEVROLET | E82: DMAX(3) 2.5L MT 2500CC 4X4 ABS 2AB AA | F82: 1621090 | G82: =VLOOKUP(F82,[4]Hoja1!$A$2:$B$14258,2,FALSE) -> 130600000 | H82: 0.12 | I82: 0.12 | J82: 0.12 | K82: 0.12 | L82: 0.12 | M82: 0.12
B83: AUTOMAYOR S.A. | C83: Blindaje nivel IIIA (NIJ) con materiales livianos | D83: CHEVROLET | E83: DMAX(3) 2.5L MT 2500CC 4X4 ABS 2AB AA | F83: 1621090 | G83: =VLOOKUP(F83,[4]Hoja1!$A$2:$B$14258,2,FALSE) -> 130600000 | H83: 0.12 | I83: 0.12 | J83: 0.12 | K83: 0.12 | L83: 0.12 | M83: 0.12
B84: AUTOMAYOR S.A. | C84: Blindaje nivel III (NIJ) con materiales pesados | D84: CHEVROLET | E84: DMAX(3) 2.5L MT 2500CC 4X4 ABS 2AB AA | F84: 1621090 | G84: =VLOOKUP(F84,[4]Hoja1!$A$2:$B$14258,2,FALSE) -> 130600000 | H84: 0.12 | I84: 0.12 | J84: 0.12 | K84: 0.12 | L84: 0.12 | M84: 0.12
B85: AUTOMAYOR S.A. | C85: Blindaje nivel III (NIJ) con materiales livianos | D85: CHEVROLET | E85: DMAX(3) 2.5L MT 2500CC 4X4 ABS 2AB AA | F85: 1621090 | G85: =VLOOKUP(F85,[4]Hoja1!$A$2:$B$14258,2,FALSE) -> 130600000 | H85: 0.12 | I85: 0.12 | J85: 0.12 | K85: 0.12 | L85: 0.12 | M85: 0.12

Sheet Precios Blindaje Pick Up
B1: Precios de Blindaje, Adecuaciones y Acsesorios
B2: Acuerdo Marco de Precios Vehículos Blindados LP-AMP-137-2017
B5: Tipo de Vehículo: Pick Up
A7: Marca | B7: Proveedor | C7: Tipo de blindaje | D7: Precio del Mantenimiento Preventivo | E7: Precio del Blindaje | F7: Refuerzo de la suspensión | G7: Blindaje para el piso del Vehículo con materiales livianos | H7: Blindaje para el piso del Vehículo con materiales pesados | I7: Deflector de artefactos explosivos | J7: Blindaje para el techo del Vehículo con materiales livianos | K7: Blindaje para el techo del Vehículo con materiales pesados | L7: Refuerzo del sistema de frenos | M7: Intercomunicador interior/exterior del Vehículo tipo manos libres | N7: Centradores de puertas | O7: Protector metálico al carter | P7: Pito o claxon bitono | Q7: Luces tipo led de color rojo y azul en la parte delantera y trasera | R7: Cuatro luces estroboscópicas para señalización | S7: Adaptación de los vidrios de la zona de carga para camperos o camionetas | T7: Prueba balística | U7: Pintura (10% del exterior del Vehículo) | V7: Adhesivos de emblemas (por metro cuadrado) | W7: Barra estabilizadora | X7: Protector de platón | Y7: Alarma | Z7: Barra de luces, sistema de perifoneo y sirena | AA7: Sistema de videovigilancia | AB7: Dispositivo de localización vehicular AVL | AC7: Gancho trasero de fijación | AD7: Película de seguridad (por vidrio) | AE7: Radioteléfono alto desempeño | AF7: Radioteléfono sencillo | AG7: Sensor de reversa | AH7: Vidrio polarizado (por vidrio) | AI7: Llantas doble propósito | AJ7: Cojinería en cuero | AK7: Exploradoras adicionales | AL7: Winche y bomper | AM7: Sensor de parqueo (delantero)
A8: TOYOTA | B8: Unión Temporal Toyonorte Ltda. - Armor International De Colombia Ltda. – Blindex S.A. | C8: Blindaje nivel III (NIJ) con materiales livianos | D8: 17172000 | E8: 84766080 | F8: 1 | G8: 1 | H8: 1 | I8: 1 | J8: 1 | K8: 1 | L8: 1 | M8: 1 | N8: 1 | O8: 1 | P8: 1 | Q8: 1 | R8: 1 | S8: 1 | T8: 1 | U8: 598900 | V8: 106000 | W8: 1 | X8: 742000 | Y8: 1 | Z8: 5278800 | AA8: 4028000 | AB8: 1176600 | AC8: 742000 | AD8: 42400 | AE8: 1865600 | AF8: 1865600 | AG8: 106000 | AH8: 42400 | AI8: 1643000 | AJ8: 1537000 | AK8: 487600 | AL8: 5989000 | AM8: 116600
A9: TOYOTA | B9: UNION TEMPORAL YOKOMOTOR S.A. - BLINSECURITY DE COLOMBIA LTDA - GMW SECURITY RENT A CAR LTDA | C9: Blindaje nivel III (NIJ) con materiales livianos | D9: 16200000 | E9: 94000000 | F9: 4400000 | G9: 1 | H9: 1 | I9: 1 | J9: 1 | K9: 1 | L9: 1000000 | M9: 1 | N9: 1 | O9: 1 | P9: 1 | Q9: 850000 | R9: 850000 | S9: 1 | T9: 500000 | U9: 617980 | V9: 139920 | W9: 1 | X9: 853000 | Y9: 233200 | Z9: 5088000 | AA9: 5673120 | AB9: 1632400 | AC9: 903120 | AD9: 46640 | AE9: 3171520 | AF9: 1865600 | AG9: 106000 | AH9: 42400 | AI9: 1643000 | AJ9: 1537000 | AK9: 487600 | AL9: 5989000 | AM9: 116600
A10: VOLKSWAGEN | B10: UNION TEMPORAL MOTORYSA - CASATORO - CENTIGON | C10: Blindaje nivel III (NIJ) con materiales livianos | D10: 17827777 | E10: 91700000 | F10: 5600000 | G10: 1 | H10: 1250000 | I10: 1800000 | J10: 1 | K10: 1200000 | L10: 4900000 | M10: 1 | N10: 1 | O10: 350000 | P10: 300000 | Q10: 800000 | R10: 900000 | S10: 450000 | T10: 480000 | U10: 557601 | V10: 285770 | W10: 1481870 | X10: 786957 | Y10: 257997 | Z10: 5985180 | AA10: 3000000 | AB10: 1033786 | AC10: 672975 | AD10: 1 | AE10: 280759 | AF10: 1760000 | AG10: 100000 | AH10: 40000 | AI10: 1550000 | AJ10: 1450000 | AK10: 460000 | AL10: 5650000 | AM10: 110000
A11: CHEVROLET | B11: AUTOMAYOR S.A. | C11: Blindaje nivel III (NIJ) con materiales livianos | D11: 15730400 | E11: 82135160 | F11: 5056200 | G11: 1 | H11: 1 | I11: 89888 | J11: 1 | K11: 1 | L11: 112360 | M11: 1 | N11: 1 | O11: 1 | P11: 1 | Q11: 1011240 | R11: 1348320 | T11: 988768 | U11: 865172 | V11: 67416 | W11: 1 | X11: 1 | Y11: 449440 | Z11: 5977552 | AA11: 8988800 | AB11: 1573040 | AC11: 1235960 | AD11: 89888 | AE11: 5618000 | AF11: 3370800 | AG11: 561800 | AH11: 89888 | AI11: 1797760 | AJ11: 2809000 | AK11: 786520 | AL11: 7865200 | AM11: 561800
A12: FORD | B12: UNION TEMPORAL MOTORYSA - CASATORO - CENTIGON | C12: Blindaje nivel III (NIJ) con materiales livianos | D12: 17228846 | E12: 91700000 | F12: 5600000 | G12: 1 | H12: 1250000 | I12: 1800000 | J12: 1 | K12: 1200000 | L12: 4900000 | M12: 1 | N12: 1 | O12: 350000 | P12: 300000 | Q12: 800000 | R12: 900000 | S12: 450000 | T12: 480000 | U12: 557601 | V12: 285770 | W12: 1 | X12: 1 | Y12: 348417 | Z12: 5985180 | AA12: 3000000 | AB12: 1033786 | AC12: 319600 | AD12: 1 | AE12: 280759 | AF12: 2611967 | AG12: 1 | AH12: 1 | AI12: 3659250 | AJ12: 1 | AK12: 1580000 | AL12: 8480000 | AM12: 1
A13: MAZDA | B13: UNION TEMPORAL MOTORYSA - CASATORO - CENTIGON | C13: Blindaje nivel III (NIJ) con materiales livianos | D13: 17906216 | E13: 91700000 | F13: 5600000 | G13: 1 | H13: 1250000 | I13: 1800000 | J13: 1 | K13: 1200000 | L13: 4900000 | M13: 1 | N13: 1 | O13: 350000 | P13: 300000 | Q13: 800000 | R13: 900000 | S13: 450000 | T13: 480000 | U13: 557601 | V13: 285770 | W13: 1481870 | X13: 786957 | Y13: 257997 | Z13: 5985180 | AA13: 3000000 | AB13: 1033786 | AC13: 672975 | AD13: 1 | AE13: 280759 | AF13: 2611967 | AG13: 283641 | AH13: 1 | AI13: 3659250 | AJ13: 1300520 | AK13: 244360 | AL13: 5222580 | AM13: 101681
A14: TOYOTA | B14: Unión Temporal Toyonorte Ltda. - Armor International De Colombia Ltda. – Blindex S.A. | C14: Blindaje nivel III (NIJ) con materiales pesados | D14: 17172000 | E14: 73154840 | F14: 1 | G14: 1 | H14: 1 | I14: 1 | J14: 1 | K14: 1 | L14: 1 | M14: 1 | N14: 1 | O14: 1 | P14: 1 | Q14: 1 | R14: 1 | S14: 1 | T14: 1 | U14: 598900 | V14: 106000 | W14: 1 | X14: 742000 | Y14: 1 | Z14: 5278800 | AA14: 4028000 | AB14: 1176600 | AC14: 742000 | AD14: 42400 | AE14: 1865600 | AF14: 1865600 | AG14: 106000 | AH14: 42400 | AI14: 1643000 | AJ14: 1537000 | AK14: 487600 | AL14: 5989000 | AM14: 116600
A15: RENAULT | B15: 7m Group S.A. | C15: Blindaje nivel III (NIJ) con materiales pesados | D15: 17172000 | E15: 76160000 | F15: 7360000 | H15: 3542020 | I15: 3250000 | J15: 2000000 | K15: 1500000 | L15: 2875000 | M15: 1737995 | N15: 287500 | O15: 575000 | P15: 517500 | Q15: 957950 | R15: 1135885 | S15: 400000 | T15: 950000 | U15: 478975 | V15: 383180 | W15: 264500 | X15: 711620 | Y15: 177905 | Z15: 5099031 | AA15: 6202042 | AB15: 1264220 | AC15: 547400 | AD15: 342135 | AE15: 3475990 | AF15: 1760000 | AG15: 100000 | AH15: 40000 | AI15: 1550000 | AJ15: 1450000 | AK15: 460000 | AL15: 5650000 | AM15: 110000
A16: VOLKSWAGEN | B16: UNION TEMPORAL MOTORYSA - CASATORO - CENTIGON | C16: Blindaje nivel III (NIJ) con materiales pesados | D16: 17172000 | E16: 78813000 | F16: 5600000 | G16: 2200000 | H16: 1 | I16: 1800000 | J16: 2700000 | K16: 1 | L16: 4900000 | M16: 1 | N16: 1 | O16: 350000 | P16: 300000 | Q16: 800000 | R16: 900000 | S16: 450000 | T16: 480000 | U16: 557601 | V16: 285770 | W16: 1481870 | X16: 786957 | Y16: 257997 | Z16: 5985180 | AA16: 3000000 | AB16: 1033786 | AC16: 672975 | AD16: 1 | AE16: 280759 | AF16: 2695945 | AG16: 164220 | AH16: 62000 | AI16: 2990000 | AJ16: 2463300 | AK16: 301070 | AL16: 7355688 | AM16: 1
A17: CHEVROLET | B17: AUTOMAYOR S.A. | C17: Blindaje nivel III (NIJ) con materiales pesados | D17: 17172000 | E17: 82135160 | F17: 5056200 | G17: 1 | H17: 1 | I17: 89888 | J17: 1 | K17: 1 | L17: 112360 | M17: 1 | N17: 1 | O17: 1 | P17: 1 | Q17: 1011240 | R17: 1348320 | T17: 988768 | U17: 865172 | V17: 67416 | W17: 1 | X17: 1 | Y17: 449440 | Z17: 5977552 | AA17: 8988800 | AB17: 1573040 | AC17: 1235960 | AD17: 89888 | AE17: 5618000 | AF17: 3370800 | AG17: 561800 | AH17: 89888 | AI17: 1797760 | AJ17: 2809000 | AK17: 786520 | AL17: 7865200 | AM17: 561800
A18: FORD | B18: UNION TEMPORAL MOTORYSA - CASATORO - CENTIGON | C18: Blindaje nivel III (NIJ) con materiales pesados | D18: 17228846 | E18: 78813000 | F18: 5600000 | G18: 2200000 | H18: 1 | I18: 1800000 | J18: 2700000 | K18: 1 | L18: 4900000 | M18: 1 | N18: 1 | O18: 350000 | P18: 300000 | Q18: 800000 | R18: 900000 | S18: 450000 | T18: 480000 | U18: 557601 | V18: 285770 | W18: 1 | X18: 1 | Y18: 348417 | Z18: 5985180 | AA18: 3000000 | AB18: 1033786 | AC18: 319600 | AD18: 1 | AE18: 280759 | AF18: 2611967 | AG18: 1 | AH18: 1 | AI18: 3659250 | AJ18: 1 | AK18: 1580000 | AL18: 8480000 | AM18: 1
A19: MAZDA | B19: UNION TEMPORAL MOTORYSA - CASATORO - CENTIGON | C19: Blindaje nivel III (NIJ) con materiales pesados | D19: 17906216 | E19: 78813000 | F19: 5600000 | G19: 1 | H19: 1250000 | I19: 1800000 | J19: 1 | K19: 1200000 | L19: 4900000 | M19: 1 | N19: 1 | O19: 350000 | P19: 300000 | Q19: 800000 | R19: 900000 | S19: 450000 | T19: 480000 | U19: 557601 | V19: 285770 | W19: 1481870 | X19: 786957 | Y19: 257997 | Z19: 5985180 | AA19: 3000000 | AB19: 1033786 | AC19: 672975 | AD19: 1 | AE19: 280759 | AF19: 2611967 | AG19: 283641 | AH19: 1 | AI19: 3659250 | AJ19: 1300520 | AK19: 244360 | AL19: 5222580 | AM19: 101681
A20: TOYOTA | B20: Unión Temporal Toyonorte Ltda. - Armor International De Colombia Ltda. – Blindex S.A. | C20: Blindaje nivel IIIA (NIJ) con materiales livianos | D20: 17172000 | E20: 42340640 | F20: 1 | G20: 1 | H20: 1 | I20: 1 | J20: 1 | K20: 1 | L20: 1 | M20: 1 | N20: 1 | O20: 1 | P20: 1 | Q20: 1 | R20: 1 | S20: 1 | T20: 1 | U20: 598900 | V20: 106000 | W20: 1 | X20: 742000 | Y20: 1 | Z20: 5278800 | AA20: 4028000 | AB20: 1176600 | AC20: 742000 | AD20: 42400 | AE20: 1865600 | AF20: 1865600 | AG20: 106000 | AH20: 42400 | AI20: 1643000 | AJ20: 1537000 | AK20: 487600 | AL20: 5989000 | AM20: 116600
A21: RENAULT | B21: 7m Group S.A. | C21: Blindaje nivel IIIA (NIJ) con materiales livianos | D21: 17172000 | E21: 45220000 | F21: 7360000 | G21: 3542020 | I21: 3250000 | J21: 2000000 | K21: 1500000 | L21: 2875000 | M21: 1737995 | N21: 287500 | O21: 575000 | P21: 517500 | Q21: 957950 | R21: 1135885 | S21: 400000 | T21: 950000 | U21: 478975 | V21: 383180 | W21: 264500 | X21: 711620 | Y21: 177905 | Z21: 5099031 | AA21: 6202042 | AB21: 1264220 | AC21: 547400 | AD21: 342135 | AE21: 3475990 | AF21: 2325000 | AG21: 300000 | AH21: 55000 | AI21: 900000 | AJ21: 1450000 | AK21: 513000 | AL21: 5700000 | AM21: 300000
A22: TOYOTA | B22: UNION TEMPORAL YOKOMOTOR S.A. - BLINSECURITY DE COLOMBIA LTDA - GMW SECURITY RENT A CAR LTDA | C22: Blindaje nivel IIIA (NIJ) con materiales livianos | D22: 16200000 | E22: 42200000 | F22: 4400000 | G22: 1 | H22: 1 | I22: 1 | J22: 1 | K22: 1 | L22: 1000000 | M22: 1 | N22: 1 | O22: 1 | P22: 1 | Q22: 850000 | R22: 850000 | S22: 1 | T22: 500000 | U22: 617980 | V22: 139920 | W22: 1 | X22: 853000 | Y22: 233200 | Z22: 5088000 | AA22: 5673120 | AB22: 1632400 | AC22: 903120 | AD22: 46640 | AE22: 3171520 | AF22: 2464500 | AG22: 318000 | AH22: 58300 | AI22: 954000 | AJ22: 1537000 | AK22: 543780 | AL22: 6042000 | AM22: 318000
A23: MITSUBISHI | B23: UNION TEMPORAL MOTORYSA - CASATORO - CENTIGON | C23: Blindaje nivel IIIA (NIJ) con materiales livianos | D23: 17172000 | E23: 44614000 | F23: 600000 | G23: 1 | H23: 1250000 | I23: 1800000 | J23: 1 | K23: 900000 | L23: 1 | M23: 1 | N23: 1 | O23: 350000 | P23: 300000 | Q23: 800000 | R23: 900000 | S23: 450000 | T23: 480000 | U23: 557601 | V23: 285770 | W23: 1 | X23: 786957 | Y23: 350000 | Z23: 5985180 | AA23: 3000000 | AB23: 1033786 | AC23: 672975 | AD23: 1 | AE23: 280759 | AF23: 2325000 | AG23: 300000 | AH23: 55000 | AI23: 900000 | AJ23: 1450000 | AK23: 513000 | AL23: 5700000 | AM23: 300000
A24: CHEVROLET | B24: AUTOMAYOR S.A. | C24: Blindaje nivel IIIA (NIJ) con materiales livianos | D24: 17172000 | E24: 82135160 | F24: 5056200 | G24: 1 | H24: 1 | I24: 89888 | J24: 1 | K24: 1 | L24: 112360 | M24: 1 | N24: 1 | O24: 1 | P24: 1 | Q24: 1011240 | R24: 1348320 | T24: 988768 | U24: 865172 | V24: 67416 | W24: 1 | X24: 1 | Y24: 449440 | Z24: 5977552 | AA24: 8988800 | AB24: 1573040 | AC24: 1235960 | AD24: 89888 | AE24: 5618000 | AF24: 3370800 | AG24: 561800 | AH24: 89888 | AI24: 1797760 | AJ24: 2809000 | AK24: 786520 | AL24: 7865200 | AM24: 561800
A25: VOLKSWAGEN | B25: UNION TEMPORAL MOTORYSA - CASATORO - CENTIGON | C25: Blindaje nivel IIIA (NIJ) con materiales livianos | D25: 17827777 | E25: 44614000 | F25: 600000 | G25: 1 | H25: 1250000 | I25: 1800000 | J25: 1 | K25: 900000 | L25: 1 | M25: 1 | N25: 1 | O25: 350000 | P25: 300000 | Q25: 800000 | R25: 900000 | S25: 450000 | T25: 480000 | U25: 557601 | V25: 285770 | W25: 1481870 | X25: 786957 | Y25: 257997 | Z25: 5985180 | AA25: 3000000 | AB25: 1033786 | AC25: 672975 | AD25: 1 | AE25: 280759 | AF25: 2611967 | AG25: 283641 | AH25: 1 | AI25: 680000 | AJ25: 2380000 | AK25: 244360 | AL25: 5222580 | AM25: 190000
A26: FORD | B26: UNION TEMPORAL MOTORYSA - CASATORO - CENTIGON | C26: Blindaje nivel IIIA (NIJ) con materiales livianos | D26: 17228846 | E26: 44614000 | F26: 600000 | G26: 1 | H26: 1250000 | I26: 1800000 | J26: 1 | K26: 900000 | L26: 1 | M26: 1 | N26: 1 | O26: 350000 | P26: 300000 | Q26: 800000 | R26: 900000 | S26: 450000 | T26: 480000 | U26: 557601 | V26: 285770 | W26: 1 | X26: 1 | Y26: 348417 | Z26: 5985180 | AA26: 3000000 | AB26: 1033786 | AC26: 319600 | AD26: 1 | AE26: 280759 | AF26: 2611967 | AG26: 1 | AH26: 1 | AI26: 3659250 | AJ26: 1 | AK26: 1580000 | AL26: 8480000 | AM26: 1
A27: MAZDA | B27: UNION TEMPORAL MOTORYSA - CASATORO - CENTIGON | C27: Blindaje nivel IIIA (NIJ) con materiales livianos | D27: 17906216 | E27: 44614000 | F27: 600000 | G27: 1 | H27: 1250000 | I27: 1800000 | J27: 1 | K27: 900000 | L27: 1 | M27: 1 | N27: 1 | O27: 350000 | P27: 300000 | Q27: 800000 | R27: 900000 | S27: 450000 | T27: 480000 | U27: 557601 | V27: 285770 | W27: 1481870 | X27: 786957 | Y27: 257997 | Z27: 5985180 | AA27: 3000000 | AB27: 1033786 | AC27: 672975 | AD27: 1 | AE27: 280759 | AF27: 2611967 | AG27: 283641 | AH27: 1 | AI27: 3659250 | AJ27: 1300520 | AK27: 244360 | AL27: 5222580 | AM27: 101681
A28: TOYOTA | B28: Unión Temporal Toyonorte Ltda. - Armor International De Colombia Ltda. – Blindex S.A. | C28: Blindaje nivel IIIA (NIJ) con materiales pesados | D28: 17172000 | E28: 37325356 | F28: 1 | G28: 1 | H28: 1 | I28: 1 | J28: 1 | K28: 1 | L28: 1 | M28: 1 | N28: 1 | O28: 1 | P28: 1 | Q28: 1 | R28: 1 | S28: 1 | T28: 1 | U28: 598900 | V28: 106000 | W28: 1 | X28: 742000 | Y28: 1 | Z28: 5278800 | AA28: 4028000 | AB28: 1176600 | AC28: 742000 | AD28: 42400 | AE28: 1865600 | AF28: 1865600 | AG28: 106000 | AH28: 42400 | AI28: 1643000 | AJ28: 1537000 | AK28: 487600 | AL28: 5989000 | AM28: 116600
A29: MITSUBISHI | B29: UNION TEMPORAL MOTORYSA - CASATORO - CENTIGON | C29: Blindaje nivel IIIA (NIJ) con materiales pesados | D29: 17172000 | E29: 37047000 | F29: 600000 | G29: 1500000 | H29: 1 | I29: 1800000 | J29: 2700000 | K29: 1 | L29: 1 | M29: 1 | N29: 1 | O29: 350000 | P29: 300000 | Q29: 800000 | R29: 900000 | S29: 450000 | T29: 480000 | U29: 557601 | V29: 285770 | W29: 1 | X29: 786957 | Y29: 350000 | Z29: 5985180 | AA29: 3000000 | AB29: 1033786 | AC29: 672975 | AD29: 1 | AE29: 280759 | AF29: 2611967 | AG29: 283641 | AH29: 1 | AI29: 680000 | AJ29: 2380000 | AK29: 244360 | AL29: 5222580 | AM29: 190000
A30: CHEVROLET | B30: AUTOMAYOR S.A. | C30: Blindaje nivel IIIA (NIJ) con materiales pesados | D30: 17172000 | E30: 82135160 | F30: 5056200 | G30: 1 | H30: 1 | I30: 89888 | J30: 1 | K30: 1 | L30: 112360 | M30: 1 | N30: 1 | O30: 1 | P30: 1 | Q30: 1011240 | R30: 1348320 | T30: 988768 | U30: 865172 | V30: 67416 | W30: 1 | X30: 1 | Y30: 449440 | Z30: 5977552 | AA30: 8988800 | AB30: 1573040 | AC30: 1235960 | AD30: 89888 | AE30: 5618000 | AF30: 3370800 | AG30: 561800 | AH30: 89888 | AI30: 1797760 | AJ30: 2809000 | AK30: 786520 | AL30: 7865200 | AM30: 561800
A31: VOLKSWAGEN | B31: UNION TEMPORAL MOTORYSA - CASATORO - CENTIGON | C31: Blindaje nivel IIIA (NIJ) con materiales pesados | D31: 17827777 | E31: 37047000 | F31: 600000 | G31: 1500000 | H31: 1 | I31: 1800000 | J31: 2700000 | K31: 1 | L31: 1 | M31: 1 | N31: 1 | O31: 350000 | P31: 300000 | Q31: 800000 | R31: 900000 | S31: 450000 | T31: 480000 | U31: 557601 | V31: 285770 | W31: 1481870 | X31: 786957 | Y31: 257997 | Z31: 5985180 | AA31: 3000000 | AB31: 1033786 | AC31: 672975 | AD31: 1 | AE31: 280759 | AF31: 2611967 | AG31: 283641 | AH31: 1 | AI31: 680000 | AJ31: 2380000 | AK31: 244360 | AL31: 5222580 | AM31: 190000
A32: FORD | B32: UNION TEMPORAL MOTORYSA - CASATORO - CENTIGON | C32: Blindaje nivel IIIA (NIJ) con materiales pesados | D32: 17228846 | E32: 37047000 | F32: 600000 | G32: 1500000 | H32: 1 | I32: 1800000 | J32: 2700000 | K32: 1 | L32: 1 | M32: 1 | N32: 1 | O32: 350000 | P32: 300000 | Q32: 800000 | R32: 900000 | S32: 450000 | T32: 480000 | U32: 557601 | V32: 285770 | W32: 1 | X32: 1 | Y32: 348417 | Z32: 5985180 | AA32: 3000000 | AB32: 1033786 | AC32: 319600 | AD32: 1 | AE32: 280759 | AF32: 2611967 | AG32: 1 | AH32: 1 | AI32: 3659250 | AJ32: 1 | AK32: 1580000 | AL32: 8480000 | AM32: 1
A33: MAZDA | B33: UNION TEMPORAL MOTORYSA - CASATORO - CENTIGON | C33: Blindaje nivel IIIA (NIJ) con materiales pesados | D33: 17906216 | E33: 37047000 | F33: 600000 | G33: 1500000 | H33: 1 | I33: 1800000 | J33: 2700000 | K33: 1 | L33: 1 | M33: 1 | N33: 1 | O33: 350000 | P33: 300000 | Q33: 800000 | R33: 900000 | S33: 450000 | T33: 480000 | U33: 557601 | V33: 285770 | W33: 1481870 | X33: 786957 | Y33: 257997 | Z33: 5985180 | AA33: 3000000 | AB33: 1033786 | AC33: 672975 | AD33: 1 | AE33: 280759 | AF33: 2611967 | AG33: 283641 | AH33: 1 | AI33: 3659250 | AJ33: 1300520 | AK33: 244360 | AL33: 5222580 | AM33: 101681
A34: TOYOTA | B34: Unión Temporal Toyonorte Ltda. - Armor International De Colombia Ltda. – Blindex S.A. | C34: Blindaje nivel IV (NIJ) con materiales livianos | D34: 17172000 | E34: 94540128 | F34: 1 | G34: 1 | H34: 1 | I34: 4240000 | J34: 1 | K34: 1 | L34: 1 | M34: 1 | N34: 1 | O34: 1 | P34: 1 | Q34: 1 | R34: 1 | S34: 1 | T34: 1 | U34: 598900 | V34: 106000 | W34: 1 | X34: 742000 | Y34: 1 | Z34: 5278800 | AA34: 4028000 | AB34: 1176600 | AC34: 742000 | AD34: 42400 | AE34: 1865600 | AF34: 1865600 | AG34: 106000 | AH34: 42400 | AI34: 1643000 | AJ34: 1537000 | AK34: 487600 | AL34: 5989000 | AM34: 116600
A35: TOYOTA | B35: UNION TEMPORAL YOKOMOTOR S.A. - BLINSECURITY DE COLOMBIA LTDA - GMW SECURITY RENT A CAR LTDA | C35: Blindaje nivel IV (NIJ) con materiales livianos | D35: 16200000 | E35: 104900000 | F35: 4400000 | G35: 1 | H35: 1 | I35: 1 | J35: 1 | K35: 1 | L35: 1000000 | M35: 1 | N35: 1 | O35: 1 | P35: 1 | Q35: 850000 | R35: 850000 | S35: 1 | T35: 500000 | U35: 617980 | V35: 139920 | W35: 1 | X35: 853000 | Y35: 233200 | Z35: 5088000 | AA35: 5673120 | AB35: 1632400 | AC35: 903120 | AD35: 46640 | AE35: 3171520 | AF35: 3180000 | AG35: 530000 | AH35: 84800 | AI35: 1696000 | AJ35: 2650000 | AK35: 742000 | AL35: 7420000 | AM35: 530000
A36: TOYOTA | B36: Unión Temporal Toyonorte Ltda. - Armor International De Colombia Ltda. – Blindex S.A. | C36: Blindaje nivel IV (NIJ) con materiales pesados | D36: 17172000 | E36: 87526744 | F36: 1 | G36: 1 | H36: 1 | I36: 4240000 | J36: 1 | K36: 1 | L36: 1 | M36: 1 | N36: 1 | O36: 1 | P36: 1 | Q36: 1 | R36: 1 | S36: 1 | T36: 1 | U36: 598900 | V36: 106000 | W36: 1 | X36: 742000 | Y36: 1 | Z36: 5278800 | AA36: 4028000 | AB36: 1176600 | AC36: 742000 | AD36: 42400 | AE36: 1865600 | AF36: 1865600 | AG36: 106000 | AH36: 42400 | AI36: 1643000 | AJ36: 1537000 | AK36: 487600 | AL36: 5989000 | AM36: 116600
A37: TOYOTA | B37: UNION TEMPORAL YOKOMOTOR S.A. - BLINSECURITY DE COLOMBIA LTDA - GMW SECURITY RENT A CAR LTDA | C37: Blindaje nivel IV (NIJ) con materiales pesados | D37: 16200000 | E37: 96750000 | F37: 4400000 | G37: 1 | H37: 1 | I37: 1 | J37: 1 | K37: 1 | L37: 1000000 | M37: 1 | N37: 1 | O37: 1 | P37: 1 | Q37: 850000 | R37: 850000 | S37: 1 | T37: 500000 | U37: 617980 | V37: 139920 | W37: 1 | X37: 853000 | Y37: 233200 | Z37: 5088000 | AA37: 5673120 | AB37: 1632400 | AC37: 903120 | AD37: 46640 | AE37: 3171520 | AF37: 3180000 | AG37: 530000 | AH37: 84800 | AI37: 1696000 | AJ37: 2650000 | AK37: 742000 | AL37: 7420000 | AM37: 530000
A38: FORD | B38: UNION TEMPORAL MOTORYSA - CASATORO - CENTIGON | C38: Blindaje nivel IV (NIJ) con materiales pesados | D38: 17228846 | E38: 94764000 | F38: 6400000 | G38: 2200000 | H38: 1 | I38: 1800000 | J38: 2700000 | K38: 1 | L38: 4900000 | M38: 1 | N38: 1 | O38: 350000 | P38: 300000 | Q38: 800000 | R38: 900000 | S38: 450000 | T38: 480000 | U38: 557601 | V38: 285770 | W38: 1 | X38: 1 | Y38: 348417 | Z38: 5985180 | AA38: 3000000 | AB38: 1033786 | AC38: 319600 | AD38: 1 | AE38: 280759 | AF38: 3000000 | AG38: 500000 | AH38: 80000 | AI38: 1600000 | AJ38: 2500000 | AK38: 700000 | AL38: 7000000 | AM38: 500000

Sheet Referencias BEmenor8p
B6: Listado de Vehículos de Referencia para el Acuerdo Marco de Precios LP-AMP-137-2017 para la adquisición de Vehículos Blindados
B8: Proveedor | C8: Tipo de blindaje | D8: Marca del Vehículo | E8: Vehículos de Referencia | F8: Código Fasecolda | G8: Precio Vehiculo | H8: 1 | I8: 2 a 10 | J8: 11 a 20 | K8: 21 a 30 | L8: 31 a 40 | M8: Mayor a 40
B9: Union temporal armor international de colombia ltda - armor international s.a. | C9: Blindaje nivel III | D9: HUNTER | E9: HUNTER LOG | F9: N/A | G9: 678400000 | H9: N/A | I9: N/A | J9: N/A | K9: N/A | L9: N/A | M9: N/A
B10: Union temporal armor international de colombia ltda - armor international s.a. | C10: Blindaje nivel III | D10: HUNTER | E10: HUNTER BTR8 | F10: N/A | G10: 720800000 | H10: N/A | I10: N/A | J10: N/A | K10: N/A | L10: N/A | M10: N/A
B11: 7m Group S.A. | C11: Blindaje nivel III | D11: Lenco | E11: BEARCAT G2 SWAT | F11: N/A | G11: 368880000 | H11: N/A | I11: N/A | J11: N/A | K11: N/A | L11: N/A | M11: N/A
B12: 7m Group S.A. | C12: Blindaje nivel III | D12: Lenco | E12: BEARCAT X3 PICK UP | F12: N/A | G12: 371000000 | H12: N/A | I12: N/A | J12: N/A | K12: N/A | L12: N/A | M12: N/A
B13: 7m Group S.A. | C13: Blindaje nivel III | D13: Lenco | E13: BEARCAT X2 PICK UP | F13: N/A | G13: 377360000 | H13: N/A | I13: N/A | J13: N/A | K13: N/A | L13: N/A | M13: N/A
B14: 7m Group S.A. | C14: Blindaje nivel III | D14: Kenwort | E14: T370 X1 | F14: N/A | G14: 377360000 | H14: N/A | I14: N/A | J14: N/A | K14: N/A | L14: N/A | M14: N/A
B15: Union temporal armor international de colombia ltda - armor international s.a. | C15: Blindaje nivel III | D15: HUNTER | E15: HUNTER TR8 | F15: N/A | G15: 913720000 | H15: N/A | I15: N/A | J15: N/A | K15: N/A | L15: N/A | M15: N/A
B16: 7m Group S.A. | C16: Blindaje nivel III | D16: Lenco | E16: BEARCAT X3 FIRECAT | F16: N/A | G16: 593600000 | H16: N/A | I16: N/A | J16: N/A | K16: N/A | L16: N/A | M16: N/A
B17: 7m Group S.A. | C17: Blindaje nivel III | D17: Kenwort | E17: T370 X1LA | F17: N/A | G17: 619040000 | H17: N/A | I17: N/A | J17: N/A | K17: N/A | L17: N/A | M17: N/A
B18: 7m Group S.A. | C18: Blindaje nivel III | D18: Kenwort | E18: T460 X4LA | F18: N/A | G18: 657200000 | H18: N/A | I18: N/A | J18: N/A | K18: N/A | L18: N/A | M18: N/A
B19: 7m Group S.A. | C19: Blindaje nivel III | D19: Hino | E19: FG8JPR1 | F19: N/A | G19: 678400000 | H19: N/A | I19: N/A | J19: N/A | K19: N/A | L19: N/A | M19: N/A
B20: 7m Group S.A. | C20: Blindaje nivel III | D20: DAF | E20: CF65 Z2 | F20: N/A | G20: 890400000 | H20: N/A | I20: N/A | J20: N/A | K20: N/A | L20: N/A | M20: N/A
B21: Union temporal armor international de colombia ltda - armor international s.a. | C21: Blindaje nivel IV | D21: HUNTER | E21: HUNTER LOG-4 | F21: N/A | G21: 711260000 | H21: N/A | I21: N/A | J21: N/A | K21: N/A | L21: N/A | M21: N/A
B22: Union temporal armor international de colombia ltda - armor international s.a. | C22: Blindaje nivel IV | D22: HUNTER | E22: HUNTER BTR8-4 | F22: N/A | G22: 742000000 | H22: N/A | I22: N/A | J22: N/A | K22: N/A | L22: N/A | M22: N/A
B23: Union temporal armor international de colombia ltda - armor international s.a. | C23: Blindaje nivel IV | D23: HUNTER | E23: HUNTER TR8-4 | F23: N/A | G23: 933860000 | H23: N/A | I23: N/A | J23: N/A | K23: N/A | L23: N/A | M23: N/A
B24: 7m Group S.A. | C24: Blindaje nivel IV | D24: Lenco | E24: BEARCAT G4 | F24: N/A | G24: 508800000 | H24: N/A | I24: N/A | J24: N/A | K24: N/A | L24: N/A | M24: N/A
B25: 7m Group S.A.

Sheet Precios BEmenor8p
B1: Precios de Blindaje, Adecuaciones y Acsesorios
B2: Acuerdo Marco de Precios Vehículos Blindados LP-AMP-137-2017
B5: Tipo de Vehículo: Pick Up
A7: Marca | B7: Proveedor | C7: Tipo de blindaje | D7: Precio del Mantenimiento Preventivo | E7: Precio del Blindaje | F7: Refuerzo de la suspensión | G7: Blindaje para el piso del Vehículo con materiales livianos | H7: Blindaje para el piso del Vehículo con materiales pesados | I7: Deflector de artefactos explosivos | J7: Blindaje para el techo del Vehículo con materiales livianos | K7: Blindaje para el techo del Vehículo con materiales pesados | L7: Refuerzo del sistema de frenos | M7: Intercomunicador interior/exterior del Vehículo tipo manos libres | N7: Centradores de puertas | O7: Protector metálico al carter | P7: Pito o claxon bitono | Q7: Luces tipo led de color rojo y azul en la parte delantera y trasera | R7: Cuatro luces estroboscópicas para señalización | S7: Adaptación de los vidrios de la zona de carga para camperos o camionetas | T7: Prueba balística | U7: Pintura (10% del exterior del Vehículo) | V7: Adhesivos de emblemas (por metro cuadrado) | W7: Barra estabilizadora | X7: Protector de platón | Y7: Alarma | Z7: Barra de luces, sistema de perifoneo y sirena | AA7: Sistema de videovigilancia | AB7: Dispositivo de localización vehicular AVL | AC7: Gancho trasero de fijación | AD7: Película de seguridad (por vidrio) | AE7: Radioteléfono alto desempeño | AF7: Radioteléfono sencillo | AG7: Sensor de reversa | AH7: Vidrio polarizado (por vidrio) | AI7: Llantas doble propósito | AJ7: Cojinería en cuero | AK7: Exploradoras adicionales | AL7: Winche y bomper | AM7: Sensor de parqueo (delantero)
A8: HUNTER | B8: Union temporal armor international de colombia ltda - armor international s.a. | C8: Blindaje nivel III | D8: 1 | E8: 169600000 | F8: N/A | G8: N/A | H8: N/A | I8: N/A | J8: N/A | K8: N/A | L8: N/A | M8: N/A | N8: N/A | O8: N/A | P8: N/A | Q8: N/A | R8: N/A | S8: N/A | T8: N/A | U8: N/A | V8: N/A | W8: N/A | X8: N/A | Y8: N/A | Z8: N/A | AA8: N/A | AB8: N/A | AC8: N/A | AD8: N/A | AE8: N/A | AF8: N/A | AG8: N/A | AH8: N/A | AI8: N/A | AJ8: N/A | AK8: N/A | AL8: N/A | AM8: N/A
A9: Lenco | B9: 7m Group S.A. | C9: Blindaje nivel III | D9: 106212000 | E9: 553320000 | F9: N/A | G9: N/A | H9: N/A | I9: N/A | J9: N/A | K9: N/A | L9: N/A | M9: N/A | N9: N/A | O9: N/A | P9: N/A | Q9: N/A | R9: N/A | S9: N/A | T9: N/A | U9: N/A | V9: N/A | W9: N/A | X9: N/A | Y9: N/A | Z9: N/A | AA9: N/A | AB9: N/A | AC9: N/A | AD9: N/A | AE9: N/A | AF9: N/A | AG9: N/A | AH9: N/A | AI9: N/A | AJ9: N/A | AK9: N/A | AL9: N/A | AM9: N/A
A10: HUNTER | B10: Union temporal armor international de colombia ltda - armor international s.a. | C10: Blindaje nivel IV | D10: 1 | E10: 173840000 | F10: N/A | G10: N/A | H10: N/A | I10: N/A | J10: N/A | K10: N/A | L10: N/A | M10: N/A | N10: N/A | O10: N/A | P10: N/A | Q10: N/A | R10: N/A | S10: N/A | T10: N/A | U10: N/A | V10: N/A | W10: N/A | X10: N/A | Y10: N/A | Z10: N/A | AA10: N/A | AB10: N/A | AC10: N/A | AD10: N/A | AE10: N/A | AF10: N/A | AG10: N/A | AH10: N/A | AI10: N/A | AJ10: N/A | AK10: N/A | AL10: N/A | AM10: N/A
A11: Lenco | B11: 7m Group S.A. | C11: Blindaje nivel IV | D11: 137800000 | E11: 763200000 | F11: N/A | G11: N/A | H11: N/A | I11: N/A | J11: N/A | K11: N/A | L11: N/A | M11: N/A | N11: N/A | O11: N/A | P11: N/A | Q11: N/A | R11: N/A | S11: N/A | T11: N/A | U11: N/A | V11: N/A | W11: N/A | X11: N/A | Y11: N/A | Z11: N/A | AA11: N/A | AB11: N/A | AC11: N/A | AD11: N/A | AE11: N/A | AF11: N/A | AG11: N/A | AH11: N/A | AI11: N/A | AJ11: N/A | AK11: N/A | AL11: N/A | AM11: N/A
A12: DAF | B12: 7m Group S.A. | C12: Blindaje nivel III | D12: 116600000 | E12: 1335600000 | F12: N/A | G12: N/A | H12: N/A | I12: N/A | J12: N/A | K12: N/A | L12: N/A | M12: N/A | N12: N/A | O12: N/A | P12: N/A | Q12: N/A | R12: N/A | S12: N/A | T12: N/A | U12: N/A | V12: N/A | W12: N/A | X12: N/A | Y12: N/A | Z12: N/A | AA12: N/A | AB12: N/A | AC12: N/A | AD12: N/A | AE12: N/A | AF12: N/A | AG12: N/A | AH12: N/A | AI12: N/A | AJ12: N/A | AK12: N/A | AL12: N/A | AM12: N/A
A13: Hino | B13: 7m Group S.A. | C13: Blindaje nivel III | D13: 106212000 | E13: 1017600000 | F13: N/A | G13: N/A | H13: N/A | I13: N/A | J13: N/A | K13: N/A | L13: N/A | M13: N/A | N13: N/A | O13: N/A | P13: N/A | Q13: N/A | R13: N/A | S13: N/A | T13: N/A | U13: N/A | V13: N/A | W13: N/A | X13: N/A | Y13: N/A | Z13: N/A | AA13: N/A | AB13: N/A | AC13: N/A | AD13: N/A | AE13: N/A | AF13: N/A | AG13: N/A | AH13: N/A | AI13: N/A | AJ13: N/A | AK13: N/A | AL13: N/A | AM13: N/A
A14: Kenworth | B14: 7m Group S.A. | C14: Blindaje nivel III | D14: 127518000 | E14: 928560000 | F14: N/A | G14: N/A | H14: N/A | I14: N/A | J14: N/A | K14: N/A | L14: N/A | M14: N/A | N14: N/A | O14: N/A | P14: N/A | Q14: N/A | R14: N/A | S14: N/A | T14: N/A | U14: N/A | V14: N/A | W14: N/A | X14: N/A | Y14: N/A | Z14: N/A | AA14: N/A | AB14: N/A | AC14: N/A | AD14: N/A | AE14: N/A | AF14: N/A | AG14: N/A | AH14: N/A | AI14: N/A | AJ14: N/A | AK14: N/A | AL14: N/A | AM14: N/A

Sheet Referencias BEmayoigual8p
B6: Listado de Vehículos de Referencia para el Acuerdo Marco de Precios LP-AMP-137-2017 para la adquisición de Vehículos Blindados
B8: Proveedor | C8: Tipo de blindaje | D8: Marca del Vehículo | E8: Vehículos de Referencia | F8: Código Fasecolda | G8: Precio Vehiculo | H8: 1 | I8: 2 a 10 | J8: 11 a 20 | K8: 21 a 30 | L8: 31 a 40 | M8: Mayor a 40
B9: Union temporal armor international de colombia ltda - armor international s.a. | C9: Blindaje nivel III | D9: HUNTER | E9: HUNTER BTR12 | F9: N/A | G9: 737760000 | H9: N/A | I9: N/A | J9: N/A | K9: N/A | L9: N/A | M9: N/A
B10: 7m Group S.A. | C10: Blindaje nivel III | D10: Lenco | E10: BEARCAT G2 MEDVAC | F10: N/A | G10: 371424000 | H10: N/A | I10: N/A | J10: N/A | K10: N/A | L10: N/A | M10: N/A
B11: 7m Group S.A. | C11: Blindaje nivel III | D11: Kenwort | E11: T370 X1 F | F11: N/A | G11: 373120000 | H11: N/A | I11: N/A | J11: N/A | K11: N/A | L11: N/A | M11: N/A
B12: 7m Group S.A. | C12: Blindaje nivel III | D12: Lenco | E12: BEARCAT G3 | F12: N/A | G12: 381600000 | H12: N/A | I12: N/A | J12: N/A | K12: N/A | L12: N/A | M12: N/A
B13: 7m Group S.A. | C13: Blindaje nivel III | D13: DAF | E13: CF65 Z2 F | F13: N/A | G13: 407040000 | H13: N/A | I13: N/A | J13: N/A | K13: N/A | L13: N/A | M13: N/A
B14: Union temporal armor international de colombia ltda - armor international s.a. | C14: Blindaje nivel III | D14: HUNTER | E14: HUNTER TR12 | F14: N/A | G14: 940220000 | H14: N/A | I14: N/A | J14: N/A | K14: N/A | L14: N/A | M14: N/A
B15: Union temporal armor international de colombia ltda - armor international s.a. | C15: Blindaje nivel IV | D15: HUNTER | E15: HUNTER BTR12-4 | F15: N/A | G15: 764260000 | H15: N/A | I15: N/A | J15: N/A | K15: N/A | L15: N/A | M15: N/A
B16: Union temporal armor international de colombia ltda - armor international s.a. | C16: Blindaje nivel IV | D16: HUNTER | E16: HUNTER TR12-4 | F16: N/A | G16: 954000000 | H16: N/A | I16: N/A | J16: N/A | K16: N/A | L16: N/A | M16: N/A
B17: 7m Group S.A. | C17: Blindaje nivel IV | D17: Lenco | E17: BEARCAT G5 | F17: N/A | G17: 593600000 | H17: N/A | I17: N/A | J17: N/A | K17: N/A | L17: N/A | M17: N/A
B18: Union temporal armor international de colombia ltda - armor international s.a. | C18: Blindaje nivel IV | D18: HUNTER | E18: HUNTER XL16-4 | F18: N/A | G18: 1446900000 | H18: N/A | I18: N/A | J18: N/A | K18: N/A | L18: N/A | M18: N/A

Sheet PreciosBEmayoigual8p
B1: Precios de Blindaje, Adecuaciones y Acsesorios
B2: Acuerdo Marco de Precios Vehículos Blindados LP-AMP-137-2017
B5: Tipo de Vehículo: Pick Up
A7: Marca | B7: Proveedor | C7: Tipo de blindaje | D7: Precio del Mantenimiento Preventivo | E7: Precio del Blindaje | F7: Refuerzo de la suspensión | G7: Blindaje para el piso del Vehículo con materiales livianos | H7: Blindaje para el piso del Vehículo con materiales pesados | I7: Deflector de artefactos explosivos | J7: Blindaje para el techo del Vehículo con materiales livianos | K7: Blindaje para el techo del Vehículo con materiales pesados | L7: Refuerzo del sistema de frenos | M7: Intercomunicador interior/exterior del Vehículo tipo manos libres | N7: Centradores de puertas | O7: Protector metálico al carter | P7: Pito o claxon bitono | Q7: Luces tipo led de color rojo y azul en la parte delantera y trasera | R7: Cuatro luces estroboscópicas para señalización | S7: Adaptación de los vidrios de la zona de carga para camperos o camionetas | T7: Prueba balística | U7: Pintura (10% del exterior del Vehículo) | V7: Adhesivos de emblemas (por metro cuadrado) | W7: Barra estabilizadora | X7: Protector de platón | Y7: Alarma | Z7: Barra de luces, sistema de perifoneo y sirena | AA7: Sistema de videovigilancia | AB7: Dispositivo de localización vehicular AVL | AC7: Gancho trasero de fijación | AD7: Película de seguridad (por vidrio) | AE7: Radioteléfono alto desempeño | AF7: Radioteléfono sencillo | AG7: Sensor de reversa | AH7: Vidrio polarizado (por vidrio) | AI7: Llantas doble propósito | AJ7: Cojinería en cuero | AK7: Exploradoras adicionales | AL7: Winche y bomper | AM7: Sensor de parqueo (delantero)
A8: HUNTER | B8: Union temporal armor international de colombia ltda - armor international s.a. | C8: Blindaje nivel III | D8: 1 | E8: 184440000 | F8: N/A | G8: N/A | H8: N/A | I8: N/A | J8: N/A | K8: N/A | L8: N/A | M8: N/A | N8: N/A | O8: N/A | P8: N/A | Q8: N/A | R8: N/A | S8: N/A | T8: N/A | U8: N/A | V8: N/A | W8: N/A | X8: N/A | Y8: N/A | Z8: N/A | AA8: N/A | AB8: N/A | AC8: N/A | AD8: N/A | AE8: N/A | AF8: N/A | AG8: N/A | AH8: N/A | AI8: N/A | AJ8: N/A | AK8: N/A | AL8: N/A | AM8: N/A
A9: Lenco | B9: 7m Group S.A. | C9: Blindaje nivel III | D9: 106212000 | E9: 557136000 | F9: N/A | G9: N/A | H9: N/A | I9: N/A | J9: N/A | K9: N/A | L9: N/A | M9: N/A | N9: N/A | O9: N/A | P9: N/A | Q9: N/A | R9: N/A | S9: N/A | T9: N/A | U9: N/A | V9: N/A | W9: N/A | X9: N/A | Y9: N/A | Z9: N/A | AA9: N/A | AB9: N/A | AC9: N/A | AD9: N/A | AE9: N/A | AF9: N/A | AG9: N/A | AH9: N/A | AI9: N/A | AJ9: N/A | AK9: N/A | AL9: N/A | AM9: N/A
A10: HUNTER | B10: Union temporal armor international de colombia ltda - armor international s.a. | C10: Blindaje nivel IV | D10: 1 | E10: 184440000 | F10: N/A | G10: N/A | H10: N/A | I10: N/A | J10: N/A | K10: N/A | L10: N/A | M10: N/A | N10: N/A | O10: N/A | P10: N/A | Q10: N/A | R10: N/A | S10: N/A | T10: N/A | U10: N/A | V10: N/A | W10: N/A | X10: N/A | Y10: N/A | Z10: N/A | AA10: N/A | AB10: N/A | AC10: N/A | AD10: N/A | AE10: N/A | AF10: N/A | AG10: N/A | AH10: N/A | AI10: N/A | AJ10: N/A | AK10: N/A | AL10: N/A | AM10: N/A
A11: Lenco | B11: 7m Group S.A. | C11: Blindaje nivel IV | D11: 143630000 | E11: 890400000 | F11: N/A | G11: N/A | H11: N/A | I11: N/A | J11: N/A | K11: N/A | L11: N/A | M11: N/A | N11: N/A | O11: N/A | P11: N/A | Q11: N/A | R11: N/A | S11: N/A | T11: N/A | U11: N/A | V11: N/A | W11: N/A | X11: N/A | Y11: N/A | Z11: N/A | AA11: N/A | AB11: N/A | AC11: N/A | AD11: N/A | AE11: N/A | AF11: N/A | AG11: N/A | AH11: N/A | AI11: N/A | AJ11: N/A | AK11: N/A | AL11: N/A | AM11: N/A
A12: Kenwort | B12: 7m Group S.A. | C12: Blindaje nivel III | D12: 106212000 | E12: 559680000 | F12: N/A | G12: N/A | H12: N/A | I12: N/A | J12: N/A | K12: N/A | L12: N/A | M12: N/A | N12: N/A | O12: N/A | P12: N/A | Q12: N/A | R12: N/A | S12: N/A | T12: N/A | U12: N/A | V12: N/A | W12: N/A | X12: N/A | Y12: N/A | Z12: N/A | AA12: N/A | AB12: N/A | AC12: N/A | AD12: N/A | AE12: N/A | AF12: N/A | AG12: N/A | AH12: N/A | AI12: N/A | AJ12: N/A | AK12: N/A | AL12: N/A | AM12: N/A
A13: DAF | B13: 7m Group S.A. | C13: Blindaje nivel III | D13: 111936000 | E13: 610560000 | F13: N/A | G13: N/A | H13: N/A | I13: N/A | J13: N/A | K13: N/A | L13: N/A | M13: N/A | N13: N/A | O13: N/A | P13: N/A | Q13: N/A | R13: N/A | S13: N/A | T13: N/A | U13: N/A | V13: N/A | W13: N/A | X13: N/A | Y13: N/A | Z13: N/A | AA13: N/A | AB13: N/A | AC13: N/A | AD13: N/A | AE13: N/A | AF13: N/A | AG13: N/A | AH13: N/A | AI13: N/A | AJ13: N/A | AK13: N/A | AL13: N/A | AM13: N/A

Sheet Fasecolda
B1: Codigo | C1: Precio | D1: Precio 2017
B2: 101001 | C2: 12200000 | D2: 12200000
B3: 208003 | C3: 66900000 | D3: 66900000
B4: 208004 | C4: 74900000 | D4: 74900000
B5: 206001 | C5: 43800000 | D5: 43800000
B6: 319001 | C6: 8800000 | D6: 8800000
B7: 319003 | C7: 9400000 | D7: 9400000
B8: 319004 | C8: 11800000 | D8: 11800000
B9: 319005 | C9: 12300000 | D9: 12300000
B10: 319006 | C10: 10200000 | D10: 10200000
B11: 319009 | C11: 7800000 | D11: 7800000
B12: 319010 | C12: 9300000 | D12: 9300000
B13: 319011 | C13: 11400000 | D13: 11400000
B14: 319012 | C14: 10200000 | D14: 10200000
B15: 319013 | C15: 9700000 | D15: 9700000
B16: 319014 | C16: 11500000 | D16: 11500000
B17: 319018 | C17: 14900000 | D17: 14900000
B18: 319019 | C18: 15300000 | D18: 15300000
B19: 319007 | C19: 10500000 | D19: 10500000
B20: 319008 | C20: 12300000 | D20: 12300000
B21: 319015 | C21: 9300000 | D21: 9300000
B22: 319016 | C22: 10500000 | D22: 10500000
B23: 319017 | C23: 8700000 | D23: 8700000
B24: 319020 | C24: 12500000 | D24: 12500000
B25: 319002 | C25: 9400000 | D25: 9400000
B26: 317067 | C26: 10000000 | D26: 10000000
B27: 317035 | C27: 6700000 | D27: 6700000
B28: 317003 | C28: 2800000 | D28: 2800000
B29: 317009 | C29: 2700000 | D29: 2700000
B30: 317028 | C30: 3000000 | D30: 3000000
B31: 317006 | C31: 4800000 | D31: 4800000
B32: 317007 | C32: 2900000 | D32: 2900000
B33: 317010 | C33: 5300000 | D33: 5300000
B34: 317016 | C34: 4400000 | D34: 4400000
B35: 317017 | C35: 4700000 | D35: 4700000
B36: 317019 | C36: 2400000 | D36: 2400000
B37: 317022 | C37: 4700000 | D37: 4700000
B38: 317004 | C38: 2900000 | D38: 2900000
B39: 317008 | C39: 2700000 | D39: 2700000
B40: 317015 | C40: 3900000 | D40: 3900000
B41: 317025 | C41: 4300000 | D41: 4300000
B42: 317029 | C42: 2100000 | D42: 2100000
B43: 317030 | C43: 3100000 | D43: 3100000
B44: 317037 | C44: 3300000 | D44: 3300000
B45: 317038 | C45: 4800000 | D45: 4800000
B46: 317039 | C46: 3400000 | D46: 3400000
B47: 317041 | C47: 3600000 | D47: 3600000
B48: 317042 | C48: 3500000 | D48: 3500000
B49: 317043 | C49: 4500000 | D49: 4500000
B50: 317044 | C50: 3900000 | D50: 3900000
B51: 317045 | C51: 6000000 | D51: 6000000
B52: 317046 | C52: 2600000 | D52: 2600000
B53: 317047 | C53: 2800000 | D53: 2800000
B54: 317048 | C54: 4400000 | D54: 4400000
B55: 317049 | C55: 3000000 | D55: 3000000
B56: 317050 | C56: 6600000 | D56: 6600000
B57: 317051 | C57: 5300000 | D57: 5300000
B58: 317052 | C58: 7000000 | D58: 7000000
B59: 317053 | C59: 4000000 | D59: 4000000
B60: 317054 | C60: 3600000 | D60: 3600000
B61: 317055 | C61: 3000000 | D61: 3000000
B62: 317056 | C62: 5000000 | D62: 5000000
B63: 317057 | C63: 7800000 | D63: 7800000
B64: 317058 | C64: 5200000 | D64: 5200000
B65: 317059 | C65: 4200000 | D65: 4200000
B66: 317060 | C66: 6900000 | D66: 6900000
B67: 317061 | C67: 5000000 | D67: 5000000
B68: 317062 | C68: 6300000 | D68: 6300000
B69: 317063 | C69: 4000000 | D69: 4000000
B70: 317064 | C70: 3600000 | D70: 3600000
B71: 317065 | C71: 6300000 | D71: 6300000
B72: 317066 | C72: 7000000 | D72: 7000000
B73: 317068 | C73: 5100000 | D73: 5100000
B74: 317069 | C74: 4500000 | D74: 4500000
B75: 317070 | C75: 4000000 | D75: 4000000
B76: 317071 | C76: 6000000 | D76: 6000000
B77: 317072 | C77: 9500000 | D77: 9500000
B78: 317073 | C78: 12500000 | D78: 12500000
B79: 317074 | C79: 4600000 | D79: 4600000
B80: 317075 | C80: 4000000 | D80: 4000000
B81: 317076 | C81: 4500000 | D81: 4500000
B82: 317077 | C82: 4200000 | D82: 4200000
B83: 317078 | C83: 6100000 | D83: 6100000
B84: 317079 | C84: 4900000 | D84: 4900000
B85: 317080 | C85: 3300000 | D85: 3300000
B86: 317081 | C86: 4000000 | D86: 4000000
B87: 317082 | C87: 4500000 | D87: 4500000
B88: 317083 | C88: 6800000 | D88: 6800000
B89: 317084 | C89: 12600000 | D89: 12600000
B90: 317085 | C90: 9000000 | D90: 9000000
B91: 408008 | C91: 37000000 | D91: 37000000
B92: 408014 | C92: 20600000 | D92: 20600000
B93: 408015 | C93: 40000000 | D93: 40000000
B94: 408016 | C94: 44000000 | D94: 44000000
B95: 408017 | C95: 25600000 | D95: 25600000
B96: 421001 | C96: 60400000 | D96: 60400000
B97: 508001 | C97: 36400000 | D97: 36400000
B98: 508002 | C98: 38200000 | D98: 38200000
B99: 508003 | C99: 39400000 | D99: 39400000
B100: 507001 | C100: 18300000 | D100: 18300000
B101: 520001 | C101: 19800000 | D101: 19800000
B102: 503002 | C102: 152400000 | D102: 152400000
B103: 503003 | C103: 67200000 | D103: 67200000
B104: 503001 | C104: 37100000 | D104: 37100000
B105: 503004 | C105: 21500000 | D105: 21500000
B106: 506002 | C106: 19800000 | D106: 19800000
B107: 506003 | C107: 55000000 | D107: 55000000
B108: 601014 | C108: 109600000 | D108: 109600000
B109: 601015 | C109: 115300000 | D109: 115300000
B110: 601053 | C110: 119100000 | D110: 119100000
B111: 601054 | C111: 125400000 | D111: 125400000
B112: 601078 | C112: 144800000 | D112: 144800000
B113: 601106 | C113: 146300000 | D113: 146300000
B114: 601124 | C114: 123100000 | D114: 123100000
B115: 601131 | C115: 158000000 | D115: 158000000
B116: 601133 | C116: 180000000 | D116: 180000000
B117: 601151 | C117: 127900000 | D117: 127900000
B118: 601159 | C118: 479900000 | D118: 479900000
B119: 601161 | C119: 298200000 | D119: 298200000
B120: 601166 | C120: 157700000 | D120: 157700000
B121: 601171 | C121: 169900000 | D121: 169900000
B122: 601185 | C122: 176900000 | D122: 176900000
B123: 601205 | C123: 198900000 | D123: 198900000
B124: 601206 | C124: 168900000 | D124: 168900000
B125: 601211 | C125: 313100000 | D125: 313100000
B126: 601218 | C126: 169900000 | D126: 169900000
B127: 601020 | C127: 63700000 | D127: 63700000
B128: 601021 | C128: 67000000 | D128: 67000000
B129: 601025 | C129: 117000000 | D129: 117000000
B130: 601027 | C130: 71000000 | D130: 71000000
B131: 601028 | C131: 64800000 | D131: 64800000
B132: 601029 | C132: 117400000 | D132: 117400000
B133: 601030 | C133: 76300000 | D133: 76300000
B134: 601031 | C134: 72800000 | D134: 72800000
B135: 601032 | C135: 68900000 | D135: 68900000
B136: 601041 | C136: 80300000 | D136: 80300000
B137: 601047 | C137: 74500000 | D137: 74500000
B138: 601055 | C138: 123200000 | D138: 123200000
B139: 601058 | C139: 83900000 | D139: 83900000
B140: 601061 | C140: 87500000 | D140: 87500000
B141: 601062 | C141: 68000000 | D141: 68000000
B142: 601063 | C142: 64900000 | D142: 64900000
B143: 601068 | C143: 83100000 | D143: 83100000
B144: 601077 | C144: 135100000 | D144: 135100000
B145: 601080 | C145: 81400000 | D145: 81400000
B146: 601081 | C146: 112100000 | D146: 112100000
B147: 601084 | C147: 114300000 | D147: 114300000
B148: 601087 | C148: 155600000 | D148: 155600000
B149: 601088 | C149: 85000000 | D149: 85000000
B150: 601095 | C150: 115800000 | D150: 115800000
B151: 601096 | C151: 128000000 | D151: 128000000
B152: 601099 | C152: 60700000 | D152: 60700000
B153: 601100 | C153: 95500000 | D153: 95500000
B154: 601107 | C154: 80400000 | D154: 80400000
B155: 601110 | C155: 77600000 | D155: 77600000
B156: 601111 | C156: 81700000 | D156: 81700000
B157: 601112 | C157: 81500000 | D157: 81500000
B158: 601113 | C158: 85500000 | D158: 85500000
B159: 601118 | C159: 87500000 | D159: 87500000
B160: 601119 | C160: 185300000 | D160: 185300000
B161: 601121 | C161: 123600000 | D161: 123600000
B162: 601122 | C162: 419200000 | D162: 419200000
B163: 601128 | C163: 99900000 | D163: 99900000
B164: 601132 | C164: 65000000 | D164: 65000000
B165: 601134 | C165: 115200000 | D165: 115200000
B166: 601135 | C166: 257000000 | D166: 257000000
B167: 601136 | C167: 213000000 | D167: 213000000
B168: 601137 | C168: 74900000 | D168: 74900000
B169: 601142 | C169: 80000000 | D169: 80000000
B170: 601143 | C170: 91200000 | D170: 91200000
B171: 601150 | C171: 80000000 | D171: 80000000
B172: 601155 | C172: 81900000 | D172: 81900000
B173: 601156 | C173: 122300000 | D173: 122300000
B174: 601160 | C174: 431400000 | D174: 431400000
B175: 601162 | C175: 112900000 | D175: 112900000
B176: 601164 | C176: 72600000 | D176: 72600000
B177: 601165 | C177: 97500000 | D177: 97500000
B178: 601167 | C178: 115600000 | D178: 115600000
B179: 601168 | C179: 99900000 | D179: 99900000
B180: 601169 | C180: 81700000 | D180: 81700000
B181: 601174 | C181: 89900000 | D181: 89900000
B182: 601175 | C182: 125800000 | D182: 125800000
B183: 601177 | C183: 153900000 | D183: 153900000
B184: 601180 | C184: 154200000 | D184: 154200000
B185: 601181 | C185: 85500000 | D185: 85500000
B186: 601182 | C186: 176900000 | D186: 176900000
B187: 601184 | C187: 109900000 | D187: 109900000
B188: 601189 | C188: 99900000 | D188: 99900000
B189: 601190 | C189: 94900000 | D189: 94900000
B190: 601194 | C190: 109900000 | D190: 109900000
B191: 601196 | C191: 119900000 | D191: 119900000
B192: 601198 | C192: 299900000 | D192: 299900000
B193: 601202 | C193: 199900000 | D193: 199900000
B194: 601203 | C194: 107900000 | D194: 107900000
B195: 601208 | C195: 164900000 | D195: 164900000
B196: 601209 | C196: 749900000 | D196: 749900000
B197: 601210 | C197: 306500000 | D197: 306500000
B198: 601214 | C198: 222900000 | D198: 222900000
B199: 601219 | C199: 169900000 | D199: 169900000
B200: 601220 | C200: 94600000 | D200: 94600000
... 13815 more rows

Sheet ActFasecolda
A1: Directorio | B1: C:\Users\howard.carmen\Documents\Vehiculos Blindados\Guia_Excel_282.xls
D2: 1
